ORGANISATION_NAME,SERVICE_RESPONSIBLE,SUPPLIER_NAME,SUPPLIER_CODE,PAYMENT_DATE,TRANSACTION_REF,NET_AMOUNT_BY_LINE_ITEM,IRRECOVERABLE_VAT,PURPOSE_OF_SPEND,PROCUREMENT_CATEGORY_NAME,TRANSACTION_TYPE,PAYMENT_TYPE,CARD_TRANS,INVOICE_DATE,FINANCIAL_YEAR,FINANCIAL_PERIOD,SUPPLIERS_INVOICE_REFERENCE,COST_CENTRE_CODE,COST_CENTRE_DESC,ACCOUNT_CODE,ACCOUNT_DESC
GUILDFORD BOROUGH COUNCIL,BUILDING MAINTENANCE,GALLAGHER BRICKWORK,79272,12/08/2016 00:00,1904034,2795,0,PAYMENT TO CONTRACTORS,GENERAL BUILDERS,Invoice,BACS,None,01/06/2018 00:00,2016,5,69,K1515,BUILDING MAINTENANCE,D4468,PAYMENT TO CONTRACTORS
GUILDFORD BOROUGH COUNCIL,BUILDING MAINTENANCE,CERTSURE LLP,6193,27/03/2018 00:00,1994830,455,0,GENERAL SUBSCRIPTIONS,PROFESSIONAL ASSOCIATIONS,Invoice,BACS,None,01/04/2018 00:00,2017,12,86125501,K1515,BUILDING MAINTENANCE,D7497,GENERAL SUBSCRIPTIONS
GUILDFORD BOROUGH COUNCIL,CIVIC EXPENSES,SUNRISE MANAGEMENT,79070,24/04/2018 00:00,1995067,750,0,BOROUGH PROMOTIONAL EXPENSES,PERFORMING ARTISTS,Invoice,BACS,None,21/04/2018 00:00,2017,12,7006,F2131,CIVIC EXPENSES,D9421,BOROUGH PROMOTIONAL EXPENSES
GUILDFORD BOROUGH COUNCIL,GUILDFORD HOUSE,REDACTED,0,12/04/2018 00:00,1998445,217.1,0,CRAFTWORK - SALE OR RETURN,,Invoice,BACS,None,04/04/2018 00:00,2018,1,REDACTED,A4511,GUILDFORD HOUSE ADMINISTRATION,K3931,CRAFTWORK - SALE OR RETURN
GUILDFORD BOROUGH COUNCIL,BUSINESS & TOURISM,BLUEPRINT TRAVEL MEDIA LTD,69796,19/04/2018 00:00,1998778,400,0,GENERAL TOURISM MARKETING,OTHER INFORMATION SERVICE PROVIDERS,Invoice,BACS,None,12/04/2018 00:00,2018,1,53390,F5545,TOURISM,D9403,GENERAL TOURISM MARKETING
GUILDFORD BOROUGH COUNCIL,OTHER ST DEBTORS,REDACTED,0,10/04/2018 00:00,1998229,6600,0,CASH PAID,PROPERTY LETTING AND ESTATE AGENTS,Invoice,BACS,None,09/04/2018 00:00,2018,1,REDACTED,J01064,HOUSING H4U SCHEME,2175,CASH PAID
GUILDFORD BOROUGH COUNCIL,PARKS & COUNTRYSIDE,A & P SERVICES (SURREY) LTD,32016,17/04/2018 00:00,1998488,228.57,0,GAMES & PLAYGROUND EQUIPMENT,AGRICULTURAL ENGINEERS,Invoice,BACS,None,10/04/2018 00:00,2018,1,4471,A1245,STOKE RECREATION GROUND,D1455,GAMES & PLAYGROUND EQUIPMENT
GUILDFORD BOROUGH COUNCIL,GUILDFORD HOUSE,REDACTED,0,12/04/2018 00:00,1998445,-75.99,0,COMMISSION ON CRAFTWORK SALES,,Invoice,BACS,None,04/04/2018 00:00,2018,1,REDACTED,A4511,GUILDFORD HOUSE ADMINISTRATION,K5918,COMMISSION ON CRAFTWORK SALES
GUILDFORD BOROUGH COUNCIL,PARKS & COUNTRYSIDE,A & P SERVICES (SURREY) LTD,32016,17/04/2018 00:00,1998488,685.71,0,GAMES & PLAYGROUND EQUIPMENT,AGRICULTURAL ENGINEERS,Invoice,BACS,None,10/04/2018 00:00,2018,1,4471,A1250,STOKE PARK,D1455,GAMES & PLAYGROUND EQUIPMENT
GUILDFORD BOROUGH COUNCIL,TENANTS' SERVICES,BRITISH GAS TRADING LTD,34127,17/04/2018 00:00,1998653,45.22,0,GAS,MAINS UTILITY MULTIPLE SERVICE PROVIDERS,Invoice,BACS,None,06/04/2018 00:00,2018,1,8.50057E+11,M1151,TENANTS SERVICES (BHS),B2221,GAS
GUILDFORD BOROUGH COUNCIL,BUSINESS & TOURISM,BRITISH DESTINATIONS,70604,17/04/2018 00:00,1998815,550,0,GENERAL TOURISM MARKETING,OTHER TRAVEL AND TOURISM SERVICE PROVIDERS,Invoice,BACS,None,12/04/2018 00:00,2018,1,1955,F5545,TOURISM,D9403,GENERAL TOURISM MARKETING
GUILDFORD BOROUGH COUNCIL,PARKS & COUNTRYSIDE,A & P SERVICES (SURREY) LTD,32016,17/04/2018 00:00,1998488,228.58,0,GAMES & PLAYGROUND EQUIPMENT,AGRICULTURAL ENGINEERS,Invoice,BACS,None,10/04/2018 00:00,2018,1,4471,A1210,STOUGHTON REC GROUND,D1455,GAMES & PLAYGROUND EQUIPMENT
GUILDFORD BOROUGH COUNCIL,TENANTS' SERVICES,BRITISH GAS TRADING LTD,34127,01/05/2018 00:00,2000925,7.39,0,GAS,MAINS UTILITY MULTIPLE SERVICE PROVIDERS,Invoice,BACS,None,17/04/2018 00:00,2018,1,8.51011E+11,M1151,TENANTS SERVICES (BHS),B2221,GAS
GUILDFORD BOROUGH COUNCIL,TENANTS' SERVICES,BRITISH GAS TRADING LTD,34127,17/04/2018 00:00,1998654,31.5,0,ELECTRICITY,MAINS UTILITY MULTIPLE SERVICE PROVIDERS,Invoice,BACS,None,06/04/2018 00:00,2018,1,8.50057E+11,M1151,TENANTS SERVICES (BHS),B2215,ELECTRICITY
GUILDFORD BOROUGH COUNCIL,RESPONSIVE & PLANNED MAINTENAN,C L C CONTRACTORS LIMITED,9829,26/04/2018 08:52,2000271,-2483,0,EXTERNAL DECORATIONS,PROPERTY MAINTENANCE CONTRACTORS,Credit Note,,None,26/04/2018 08:52,2018,1,AP74336-001,M5114,REPAIRS-CYCLICAL (BHS),B1324,EXTERNAL DECORATIONS
GUILDFORD BOROUGH COUNCIL,RESPONSIVE & PLANNED MAINTENAN,C L C CONTRACTORS LIMITED,9829,26/04/2018 08:52,2000271,-170,0,INTERNAL DECS; PLANNED PROGRAM,PROPERTY MAINTENANCE CONTRACTORS,Credit Note,,None,26/04/2018 08:52,2018,1,AP74336-001,M5114,REPAIRS-CYCLICAL (BHS),B1357,INTERNAL DECS; PLANNED PROGRAM
GUILDFORD BOROUGH COUNCIL,BUILDING MAINTENANCE,C A MOORE,1131,01/05/2018 00:00,2000913,756,0,MATERIALS; SUB CONTRACTOR,JOINERS AND CARPENTERS,Invoice,BACS,None,09/04/2018 00:00,2018,1,389,K1515,BUILDING MAINTENANCE,D1542,MATERIALS; SUB CONTRACTOR
GUILDFORD BOROUGH COUNCIL,RESPONSIVE & PLANNED MAINTENAN,BROOK STREET (UK) LIMITED,92713,01/05/2018 00:00,2000927,458.15,0,AGENCY STAFF,OTHER RECRUITMENT AGENCIES AND SERVICE PROVIDERS,Invoice,BACS,None,25/04/2018 00:00,2018,1,30106131,M5111,REPAIRS-ADMIN (BHS),A5191,AGENCY STAFF
GUILDFORD BOROUGH COUNCIL,HEATING,BSW BUILDING SERVICES LTD,90032,11/04/2018 11:05,1998338,-1250,0,CONTRACT PYTS-MAIN CONTRACTOR,"PLUMBING, HEATING AND AC (HVAC) CONTRACTORS",Credit Note,,None,11/04/2018 11:05,2018,1,71133,N44063,STORAGE HEARING UPGRADES 1718,1233,CONTRACT PYTS-MAIN CONTRACTOR
GUILDFORD BOROUGH COUNCIL,RESPONSIVE & PLANNED MAINTENAN,C L C CONTRACTORS LIMITED,9829,26/04/2018 08:52,2000271,-780,0,INTERNAL DECS; PLANNED PROGRAM,PROPERTY MAINTENANCE CONTRACTORS,Credit Note,,None,26/04/2018 08:52,2018,1,AP74336-001,M5114,REPAIRS-CYCLICAL (BHS),B1357,INTERNAL DECS; PLANNED PROGRAM
GUILDFORD BOROUGH COUNCIL,BUILDING MAINTENANCE,C A MOORE,1131,01/05/2018 00:00,2000913,900,0,PAYMENT TO CONTRACTORS,JOINERS AND CARPENTERS,Invoice,BACS,None,09/04/2018 00:00,2018,1,389,K1515,BUILDING MAINTENANCE,D4468,PAYMENT TO CONTRACTORS
GUILDFORD BOROUGH COUNCIL,RESPONSIVE & PLANNED MAINTENAN,C L C CONTRACTORS LIMITED,9829,26/04/2018 08:52,2000271,-180,0,INTERNAL DECS; PLANNED PROGRAM,PROPERTY MAINTENANCE CONTRACTORS,Credit Note,,None,26/04/2018 08:52,2018,1,AP74336-001,M5114,REPAIRS-CYCLICAL (BHS),B1357,INTERNAL DECS; PLANNED PROGRAM
GUILDFORD BOROUGH COUNCIL,RESPONSIVE & PLANNED MAINTENAN,BROOK STREET (UK) LIMITED,92713,01/05/2018 00:00,2000919,495.3,0,AGENCY STAFF,OTHER RECRUITMENT AGENCIES AND SERVICE PROVIDERS,Invoice,BACS,None,04/04/2018 00:00,2018,1,30969575,M5111,REPAIRS-ADMIN (BHS),A5191,AGENCY STAFF
GUILDFORD BOROUGH COUNCIL,TOWN CENTRE CCTV SYSTEM,BRITISH TELECOM PLC,18923,17/04/2018 00:00,1998656,6926.94,0,TRANSMISSION LINE RENTAL,FIXED TELECOMS SERVICE PROVIDERS,Invoice,BACS,None,03/04/2018 00:00,2018,1,20026305,F7540,TOWN CENTRE CCTV SYSTEM,D5489,TRANSMISSION LINE RENTAL
GUILDFORD BOROUGH COUNCIL,PROCUREMENT,BUTLER ROSS LTD,92493,24/04/2018 00:00,1997071,2176.95,0,ADVERTISING STAFF VACANCIES,OTHER RECRUITMENT AGENCIES AND SERVICE PROVIDERS,Invoice,BACS,None,03/04/2018 00:00,2018,1,1214,G3593,PROCUREMENT SERVICES,A7111,ADVERTISING STAFF VACANCIES
GUILDFORD BOROUGH COUNCIL,OTHER PROPERTY,CAMELOT REAL ESTATE MANAGEMENT LIMITED,58863,17/04/2018 00:00,1998820,495.72,0,SECURITY SERVICES,,Invoice,BACS,None,11/04/2018 00:00,2018,1,18100136,B6120,BURPHAM COURT FARM,D4477,SECURITY SERVICES
GUILDFORD BOROUGH COUNCIL,RESPONSIVE & PLANNED MAINTENAN,C L C CONTRACTORS LIMITED,9829,26/04/2018 00:00,2000274,-1504,0,EXTERNAL DECORATIONS,PROPERTY MAINTENANCE CONTRACTORS,Credit Note,,None,04/04/2018 00:00,2018,1,AP74336-002,M5114,REPAIRS-CYCLICAL (BHS),B1324,EXTERNAL DECORATIONS
GUILDFORD BOROUGH COUNCIL,INDUSTRIAL ESTATES,CASTLE WATER LIMITED,89638,24/04/2018 00:00,1998968,382.74,0,WATER BY METER,MAINS WATER SUPPLIERS,Invoice,BACS,None,12/04/2018 00:00,2018,1,TW1761987045,B5341,MIDLETON INDUSTRIAL ESTATE,B4221,WATER BY METER
GUILDFORD BOROUGH COUNCIL,BUILDING MAINTENANCE,CHAMBERS WASTE MANAGEMENT PLC,1275,26/04/2018 00:00,1999748,62.3,0,TIPPING FEES,OTHER WASTE DISPOSAL SUPPLIERS,Invoice,BACS,None,14/04/2018 00:00,2018,1,P259651,K1515,BUILDING MAINTENANCE,D4489,TIPPING FEES
GUILDFORD BOROUGH COUNCIL,STOCKS,CERTAS ENERGY UK LIMITED,7593,26/04/2018 00:00,1998420,13229.09,0,PURCHASES,OIL FUEL SUPPLIERS,Invoice,BACS,None,06/04/2018 00:00,2018,1,9642626,I03001,FUEL (FLEET MNGT),2591,PURCHASES
GUILDFORD BOROUGH COUNCIL,ESTATE IMPROVEMENTS,CENTRAL LINEMARKINGS LTD,1258,17/04/2018 00:00,1998344,550,0,CONTRACT PYTS-MINOR CONTRACTOR,ROAD MARKING SERVICE PROVIDERS,Invoice,BACS,None,10/04/2018 00:00,2018,1,481111,N49092,ENV IMPROVEMENTS 1718,1234,CONTRACT PYTS-MINOR CONTRACTOR
GUILDFORD BOROUGH COUNCIL,DAY SERVICES,CARELINE THE AGENCY FOR CARESTAFF LIMITED,23629,24/04/2018 00:00,1999801,1071.36,0,AGENCY STAFF,NURSING AND MEDICAL RECRUITMENT AGENCIES,Invoice,BACS,None,11/04/2018 00:00,2018,1,P176056,C8188,WEST HUB SHAWFIELD,A5191,AGENCY STAFF
GUILDFORD BOROUGH COUNCIL,BUILDING MAINTENANCE,CHAMBERS WASTE MANAGEMENT PLC,1275,26/04/2018 00:00,1999746,733.59,0,TIPPING FEES,OTHER WASTE DISPOSAL SUPPLIERS,Invoice,BACS,None,14/04/2018 00:00,2018,1,P259581,K1515,BUILDING MAINTENANCE,D4489,TIPPING FEES
GUILDFORD BOROUGH COUNCIL,MUSEUM,CASTLE WATER LIMITED,89638,17/04/2018 00:00,1998365,53.77,0,WATER BY METER,MAINS WATER SUPPLIERS,Invoice,BACS,None,03/04/2018 00:00,2018,1,TW3862819371,A5511,MUSEUM,B4221,WATER BY METER
GUILDFORD BOROUGH COUNCIL,BUILDING MAINTENANCE,CHAMBERS WASTE MANAGEMENT PLC,1275,24/04/2018 00:00,1998930,437.8,0,TIPPING FEES,OTHER WASTE DISPOSAL SUPPLIERS,Invoice,BACS,None,07/04/2018 00:00,2018,1,P259049,K1515,BUILDING MAINTENANCE,D4489,TIPPING FEES
GUILDFORD BOROUGH COUNCIL,INCOME COLLECTION,CCSCOLLECT,72937,26/04/2018 00:00,1999773,80.03,0,AGENCY SERVICES,DEBT COLLECTORS,Invoice,BACS,None,01/04/2018 00:00,2018,1,93805,M1121,INCOME COLLECTION (BHS),D4423,AGENCY SERVICES
GUILDFORD BOROUGH COUNCIL,PUBLIC CONVENIENCES,CASTLE WATER LIMITED,89638,17/04/2018 00:00,1998237,30.56,0,WATER BY METER,MAINS WATER SUPPLIERS,Invoice,BACS,None,03/04/2018 00:00,2018,1,TW2196646350,K6563,NORTH STREET - URINAL,B4221,WATER BY METER
GUILDFORD BOROUGH COUNCIL,PARKS & COUNTRYSIDE,CHARTERED INSTITUTE OF ENVIRONMENTAL HEALTH,1280,19/04/2018 00:00,1999309,212,0,PROFESSIONAL SUBSCRIPTIONS,THIRD PARTY SUPPLIER,Invoice,BACS,None,17/04/2018 00:00,2018,1,2018/0055,A1900,PARKS MANAGEMENT AND ADMIN,A7136,PROFESSIONAL SUBSCRIPTIONS
GUILDFORD BOROUGH COUNCIL,PUBLIC CONVENIENCES,CASTLE WATER LIMITED,89638,17/04/2018 00:00,1998364,9.99,0,WATER BY METER,MAINS WATER SUPPLIERS,Invoice,BACS,None,03/04/2018 00:00,2018,1,TW6238838229,K6550,G LIVE PUB CON,B4221,WATER BY METER
GUILDFORD BOROUGH COUNCIL,PARKS & COUNTRYSIDE,CHARTERED INSTITUTE OF HORTICULTURE,75135,26/04/2018 00:00,2000158,212,0,PROFESSIONAL SUBSCRIPTIONS,PROFESSIONAL ASSOCIATIONS,Invoice,BACS,None,17/04/2018 00:00,2018,1,2018/0055,A1900,PARKS MANAGEMENT AND ADMIN,A7136,PROFESSIONAL SUBSCRIPTIONS
GUILDFORD BOROUGH COUNCIL,PARKS & COUNTRYSIDE,CHARTERED INSTITUTE OF HORTICULTURE,75135,10/04/2018 00:00,1997828,42.5,0,PROFESSIONAL SUBSCRIPTIONS,PROFESSIONAL ASSOCIATIONS,Invoice,BACS,None,04/04/2018 00:00,2018,1,2018/0039,A1900,PARKS MANAGEMENT AND ADMIN,A7136,PROFESSIONAL SUBSCRIPTIONS
GUILDFORD BOROUGH COUNCIL,BUILDING MAINTENANCE,CHAMBERS WASTE MANAGEMENT PLC,1275,19/04/2018 00:00,1998824,570.09,0,PAYMENT TO CONTRACTORS,OTHER WASTE DISPOSAL SUPPLIERS,Invoice,BACS,None,07/04/2018 00:00,2018,1,P258710,K1515,BUILDING MAINTENANCE,D4468,PAYMENT TO CONTRACTORS
GUILDFORD BOROUGH COUNCIL,PARKS & COUNTRYSIDE,CBS WORKSPACE LTD T/A CBS BLINDS,93664,26/04/2018 00:00,1999924,4094.32,0,CONSULTANTS FEES - PROJECTS,AWNING AND CANOPY SUPPLIERS,Invoice,BACS,None,11/04/2018 00:00,2018,1,INV-2047,P18187,WOODBRIDGE ROAD PROJECT,1221,CONSULTANTS FEES - PROJECTS
GUILDFORD BOROUGH COUNCIL,BUILDING MAINTENANCE,CHAMBERS WASTE MANAGEMENT PLC,1275,26/04/2018 00:00,1999747,62.3,0,TIPPING FEES,OTHER WASTE DISPOSAL SUPPLIERS,Invoice,BACS,None,14/04/2018 00:00,2018,1,P259400,K1515,BUILDING MAINTENANCE,D4489,TIPPING FEES
GUILDFORD BOROUGH COUNCIL,PARKS & COUNTRYSIDE,CASTLE WATER LIMITED,89638,17/04/2018 00:00,1998326,52.33,0,WATER BY METER,MAINS WATER SUPPLIERS,Invoice,BACS,None,03/04/2018 00:00,2018,1,TW9775485454,A1260,ALLEN HOUSE GROUNDS,B4221,WATER BY METER
GUILDFORD BOROUGH COUNCIL,PUBLIC CONVENIENCES,CASTLE WATER LIMITED,89638,24/04/2018 00:00,1999351,23.53,0,WATER BY METER,MAINS WATER SUPPLIERS,Invoice,BACS,None,16/04/2018 00:00,2018,1,TW1071894259,K6560,TUNSGATE PUB CON,B4221,WATER BY METER
GUILDFORD BOROUGH COUNCIL,HOMELESSNESS,CHASE INVENTORY SERVICES LTD,42781,24/04/2018 00:00,1997794,115,0,BUILDING CONDITION SURVEYS,REMOVAL SERVICE PROVIDERS,Invoice,BACS,None,03/04/2018 00:00,2018,1,90544,C3316,EMERGENCY ACCOMMODATION,D4420,BUILDING CONDITION SURVEYS
GUILDFORD BOROUGH COUNCIL,INDUSTRIAL ESTATES,CASTLE WATER LIMITED,89638,24/04/2018 00:00,1999384,620.8,0,WATER BY METER,MAINS WATER SUPPLIERS,Invoice,BACS,None,17/04/2018 00:00,2018,1,TW0806281470,B5342,MIDLETON INDUSTRIAL EST (RECH),B4221,WATER BY METER
GUILDFORD BOROUGH COUNCIL,PARKS & COUNTRYSIDE,CASTLE WATER LIMITED,89638,05/04/2018 00:00,1997143,11.45,0,WATER BY METER,MAINS WATER SUPPLIERS,Invoice,BACS,None,02/04/2018 00:00,2018,1,TW0651285568,A1270,WOODBRIDGE ROAD,B4221,WATER BY METER
GUILDFORD BOROUGH COUNCIL,MARKETS,CASTLE WATER LIMITED,89638,17/04/2018 00:00,1998235,17.64,0,WATER BY METER,MAINS WATER SUPPLIERS,Invoice,BACS,None,03/04/2018 00:00,2018,1,TW3817230571,B5721,NORTH STREET MARKET,B4221,WATER BY METER
GUILDFORD BOROUGH COUNCIL,GUILDFORD HOUSE,REDACTED,0,12/04/2018 00:00,1998441,-3.15,0,COMMISSION ON CRAFTWORK SALES,,Invoice,BACS,None,04/04/2018 00:00,2018,1,REDACTED,A4511,GUILDFORD HOUSE ADMINISTRATION,K5918,COMMISSION ON CRAFTWORK SALES
GUILDFORD BOROUGH COUNCIL,GUILDFORD HOUSE,REDACTED,0,12/04/2018 00:00,1998441,9,0,CRAFTWORK - SALE OR RETURN,,Invoice,BACS,None,04/04/2018 00:00,2018,1,REDACTED,A4511,GUILDFORD HOUSE ADMINISTRATION,K3931,CRAFTWORK - SALE OR RETURN
GUILDFORD BOROUGH COUNCIL,STOCKS,CERTAS ENERGY UK LIMITED,7593,26/04/2018 00:00,1999758,4848.5,0,PURCHASES,OIL FUEL SUPPLIERS,Invoice,BACS,None,16/04/2018 00:00,2018,1,9699124,I03001,FUEL (FLEET MNGT),2591,PURCHASES
GUILDFORD BOROUGH COUNCIL,LEISURE PLAY DEVELOPMENT,CAMPAIGN,19915,19/04/2018 00:00,1999281,555.83,0,INSTRUCTORS FEES,OUTDOOR ACTIVITY PROVIDERS,Invoice,BACS,None,11/04/2018 00:00,2018,1,93003,A4126,FISH,D4451,INSTRUCTORS FEES
GUILDFORD BOROUGH COUNCIL,GUILDFORD HOUSE,REDACTED,0,12/04/2018 00:00,1998456,35,0,CRAFTWORK - SALE OR RETURN,,Invoice,BACS,None,04/04/2018 00:00,2018,1,REDACTED,A4511,GUILDFORD HOUSE ADMINISTRATION,K3931,CRAFTWORK - SALE OR RETURN
GUILDFORD BOROUGH COUNCIL,STOCKS,CERTAS ENERGY UK LIMITED,7593,26/04/2018 00:00,1999757,14848.5,0,PURCHASES,OIL FUEL SUPPLIERS,Invoice,BACS,None,16/04/2018 00:00,2018,1,9699108,I03001,FUEL (FLEET MNGT),2591,PURCHASES
GUILDFORD BOROUGH COUNCIL,GUILDFORD HOUSE,REDACTED,0,12/04/2018 00:00,1998456,-12.25,0,COMMISSION ON CRAFTWORK SALES,,Invoice,BACS,None,04/04/2018 00:00,2018,1,REDACTED,A4511,GUILDFORD HOUSE ADMINISTRATION,K5918,COMMISSION ON CRAFTWORK SALES
GUILDFORD BOROUGH COUNCIL,MUSEUM,CASTLE WATER LIMITED,89638,24/04/2018 00:00,1998969,8.56,0,WATER BY METER,MAINS WATER SUPPLIERS,Invoice,BACS,None,06/04/2018 00:00,2018,1,TW0863450435,A5531,UNDERCROFT 72/74 HIGH STREET,B4221,WATER BY METER
GUILDFORD BOROUGH COUNCIL,BUILDING MAINTENANCE,CERTSURE LLP,6193,24/04/2018 00:00,1999730,42,0,GENERAL SUBSCRIPTIONS,PROFESSIONAL ASSOCIATIONS,Invoice,BACS,None,09/04/2018 00:00,2018,1,86168433,K1515,BUILDING MAINTENANCE,D7497,GENERAL SUBSCRIPTIONS
GUILDFORD BOROUGH COUNCIL,GUILDFORD HOUSE,CASTLE WATER LIMITED,89638,17/04/2018 00:00,1998236,696.56,0,WATER BY METER,MAINS WATER SUPPLIERS,Invoice,BACS,None,02/04/2018 00:00,2018,1,TW8176527412,A4511,GUILDFORD HOUSE ADMINISTRATION,B4221,WATER BY METER
GUILDFORD BOROUGH COUNCIL,BUILDING MAINTENANCE,CHAMBERS WASTE MANAGEMENT PLC,1275,01/05/2018 00:00,1999929,811.86,0,TIPPING FEES,OTHER WASTE DISPOSAL SUPPLIERS,Invoice,BACS,None,14/04/2018 00:00,2018,1,P260104,K1515,BUILDING MAINTENANCE,D4489,TIPPING FEES
GUILDFORD BOROUGH COUNCIL,BUILDING MAINTENANCE,CHAMBERS WASTE MANAGEMENT PLC,1275,24/04/2018 00:00,1998966,62.3,0,TIPPING FEES,OTHER WASTE DISPOSAL SUPPLIERS,Invoice,BACS,None,07/04/2018 00:00,2018,1,P258562,K1515,BUILDING MAINTENANCE,D4489,TIPPING FEES
GUILDFORD BOROUGH COUNCIL,OFFICE SERVICES TEAM,SOLO MANAGED SERVICES (UK) LTD,92351,24/04/2018 00:00,1999861,23,0,EXTERNAL PRINTING & DESIGN,,Invoice,BACS,None,09/04/2018 00:00,2018,1,32690,G4545,REPROGRAPHICS UNIT,D3454,EXTERNAL PRINTING & DESIGN
GUILDFORD BOROUGH COUNCIL,OTHER ST DEBTORS,REDACTED,0,10/04/2018 00:00,1997777,4350,0,CASH PAID,PROPERTY LETTING AND ESTATE AGENTS,Invoice,BACS,None,09/04/2018 00:00,2018,1,REDACTED,J01064,HOUSING H4U SCHEME,2175,CASH PAID
GUILDFORD BOROUGH COUNCIL,PARKS & COUNTRYSIDE,STOKE PARK RFC,93633,24/04/2018 00:00,1999425,50,0,TRAINING,,Invoice,BACS,None,16/04/2018 00:00,2018,1,18-04-008,A1209,PARKS AND OPEN SPACES GENERAL,A7161,TRAINING
GUILDFORD BOROUGH COUNCIL,BUILDING MAINTENANCE,SURREY COUNTY WINDOWS LTD,68672,26/04/2018 00:00,2000212,3032.72,0,MATERIALS; SUB CONTRACTOR,WINDOW AND DOOR INSTALLERS,Invoice,BACS,None,20/04/2018 00:00,2018,1,ORD X0068007,K1515,BUILDING MAINTENANCE,D1542,MATERIALS; SUB CONTRACTOR
GUILDFORD BOROUGH COUNCIL,BUILDING MAINTENANCE,SURREY COUNTY WINDOWS LTD,68672,12/04/2018 00:00,1998388,1037.3,0,PAYMENT TO CONTRACTORS,WINDOW AND DOOR INSTALLERS,Invoice,BACS,None,09/04/2018 00:00,2018,1,ORD X0068007,K1515,BUILDING MAINTENANCE,D4468,PAYMENT TO CONTRACTORS
GUILDFORD BOROUGH COUNCIL,BUILDING MAINTENANCE,SURREY COUNTY WINDOWS LTD,68672,24/04/2018 00:00,1999829,1750,0,MATERIALS; SUB CONTRACTOR,WINDOW AND DOOR INSTALLERS,Invoice,BACS,None,20/04/2018 00:00,2018,1,ORD X0068007,K1515,BUILDING MAINTENANCE,D1542,MATERIALS; SUB CONTRACTOR
GUILDFORD BOROUGH COUNCIL,BUILDING MAINTENANCE,SURREY COUNTY WINDOWS LTD,68672,12/04/2018 00:00,1998394,428.12,0,PAYMENT TO CONTRACTORS,WINDOW AND DOOR INSTALLERS,Invoice,BACS,None,06/04/2018 00:00,2018,1,ORD X0068007,K1515,BUILDING MAINTENANCE,D4468,PAYMENT TO CONTRACTORS
GUILDFORD BOROUGH COUNCIL,BUILDING MAINTENANCE,SURREY COUNTY WINDOWS LTD,68672,26/04/2018 00:00,2000212,1215,0,PAYMENT TO CONTRACTORS,WINDOW AND DOOR INSTALLERS,Invoice,BACS,None,20/04/2018 00:00,2018,1,ORD X0068007,K1515,BUILDING MAINTENANCE,D4468,PAYMENT TO CONTRACTORS
GUILDFORD BOROUGH COUNCIL,GF NET REVENUE ACCOUNT,ST MARTHA PARISH COUNCIL,9323,05/04/2018 00:00,1997039,7030,0,OOE - PARISH PRECEPTS PAID,LOCAL GOVERNMENT [UK ONLY],Invoice,BACS,None,03/04/2018 00:00,2018,1,PARISH PRECEPT,V01005,GF NET REVENUE ACCOUNT,2482,OOE - PARISH PRECEPTS PAID
GUILDFORD BOROUGH COUNCIL,MUSEUM,STEWART IRONS,58243,24/04/2018 00:00,1999308,100,0,PS-R&M REACTIVE REPAIRS,GENERAL BUILDERS,Invoice,BACS,None,16/04/2018 00:00,2018,1,383,A5511,MUSEUM,B1627,PS-R&M REACTIVE REPAIRS
GUILDFORD BOROUGH COUNCIL,BUILDING MAINTENANCE,SURREY COUNTY WINDOWS LTD,68672,24/04/2018 00:00,1999829,2210,0,PAYMENT TO CONTRACTORS,WINDOW AND DOOR INSTALLERS,Invoice,BACS,None,20/04/2018 00:00,2018,1,ORD X0068007,K1515,BUILDING MAINTENANCE,D4468,PAYMENT TO CONTRACTORS
GUILDFORD BOROUGH COUNCIL,BUILDING MAINTENANCE,SURREY COUNTY WINDOWS LTD,68672,12/04/2018 00:00,1998388,222.7,0,MATERIALS; SUB CONTRACTOR,WINDOW AND DOOR INSTALLERS,Invoice,BACS,None,09/04/2018 00:00,2018,1,ORD X0068007,K1515,BUILDING MAINTENANCE,D1542,MATERIALS; SUB CONTRACTOR
GUILDFORD BOROUGH COUNCIL,BUILDING MAINTENANCE,SURREY COUNTY WINDOWS LTD,68672,17/04/2018 00:00,1998905,3677.34,0,MATERIALS; SUB CONTRACTOR,WINDOW AND DOOR INSTALLERS,Invoice,BACS,None,13/04/2018 00:00,2018,1,ORD X0068007,K1515,BUILDING MAINTENANCE,D1542,MATERIALS; SUB CONTRACTOR
GUILDFORD BOROUGH COUNCIL,PARISH & LOCAL LIAISON,ST MARTHA PARISH COUNCIL,9323,05/04/2018 00:00,1997039,19.5,0,LCTSS PARISH GRANT,LOCAL GOVERNMENT [UK ONLY],Invoice,BACS,None,03/04/2018 00:00,2018,1,PARISH PRECEPT,F1115,PARISH LIAISON,D7431,LCTSS PARISH GRANT
GUILDFORD BOROUGH COUNCIL,BUSINESS & TOURISM,STEVE REED TOURISM LTD,66722,10/04/2018 00:00,1997902,2800,0,GENERAL TOURISM MARKETING,FULL SERVICE MARKETING AGENCIES,Invoice,BACS,None,06/04/2018 00:00,2018,1,2026,F5545,TOURISM,D9403,GENERAL TOURISM MARKETING
GUILDFORD BOROUGH COUNCIL,BUILDING MAINTENANCE,SURREY COUNTY WINDOWS LTD,68672,12/04/2018 00:00,1998393,1866.05,0,PAYMENT TO CONTRACTORS,WINDOW AND DOOR INSTALLERS,Invoice,BACS,None,06/04/2018 00:00,2018,1,ORD X0068007,K1515,BUILDING MAINTENANCE,D4468,PAYMENT TO CONTRACTORS
GUILDFORD BOROUGH COUNCIL,OTHER EMPLOYEE COSTS,SURREY COUNTY COUNCIL,23023,19/04/2018 00:00,1999283,1020,0,CHILD PROTECTION - CONT TO SCC,LOCAL GOVERNMENT [UK ONLY],Invoice,BACS,None,16/04/2018 00:00,2018,1,9500164678,F7530,MISC EMPLOYEE EXPENSES,D7455,CHILD PROTECTION - CONT TO SCC
GUILDFORD BOROUGH COUNCIL,GRANTS,STANNAH STAIRLIFTS LTD,7667,17/04/2018 00:00,1998730,5077,0,GRANTS TO PRIVATE OWNERS,STAIRLIFT SUPPLIERS,Invoice,BACS,None,12/04/2018 00:00,2018,1,S085085504,N51008,MANDATORY DFG,1311,GRANTS TO PRIVATE OWNERS
GUILDFORD BOROUGH COUNCIL,OTHER ST CREDITORS,STANNAH STAIRLIFTS LTD,7667,01/05/2018 00:00,2000745,2137,0,PAYMENTS,STAIRLIFT SUPPLIERS,Invoice,BACS,None,24/04/2018 00:00,2018,1,S085084544,L02088,CARE & REPAIR CLIENT FUND,2489,PAYMENTS
GUILDFORD BOROUGH COUNCIL,LAND CHARGES,SURREY COUNTY COUNCIL,23023,17/04/2018 00:00,1998324,5397,0,PAYMENT TO SCC,LOCAL GOVERNMENT [UK ONLY],Invoice,BACS,None,09/04/2018 00:00,2018,1,9500163833,F4111,LOCAL LAND CHARGES,D9481,PAYMENT TO SCC
GUILDFORD BOROUGH COUNCIL,OTHER EMPLOYEE COSTS,SURREY COUNTY COUNCIL,23023,19/04/2018 00:00,1999288,100,0,CHILD PROTECTION - CONT TO SCC,LOCAL GOVERNMENT [UK ONLY],Invoice,BACS,None,16/04/2018 00:00,2018,1,9500164701,F7530,MISC EMPLOYEE EXPENSES,D7455,CHILD PROTECTION - CONT TO SCC
GUILDFORD BOROUGH COUNCIL,GRANTS,STANNAH STAIRLIFTS LTD,7667,19/04/2018 00:00,1999344,5359,0,GRANTS TO PRIVATE OWNERS,STAIRLIFT SUPPLIERS,Invoice,BACS,None,17/04/2018 00:00,2018,1,S0850085506,N51008,MANDATORY DFG,1311,GRANTS TO PRIVATE OWNERS
GUILDFORD BOROUGH COUNCIL,GRANTS,STANNAH STAIRLIFTS LTD,7667,19/04/2018 00:00,1999341,5209,0,GRANTS TO PRIVATE OWNERS,STAIRLIFT SUPPLIERS,Invoice,BACS,None,17/04/2018 00:00,2018,1,S0850085506,N51008,MANDATORY DFG,1311,GRANTS TO PRIVATE OWNERS
GUILDFORD BOROUGH COUNCIL,GRANTS,STANNAH STAIRLIFTS LTD,7667,01/05/2018 00:00,2000738,4975,0,GRANTS TO PRIVATE OWNERS,STAIRLIFT SUPPLIERS,Invoice,BACS,None,26/04/2018 00:00,2018,1,S085086006,N51008,MANDATORY DFG,1311,GRANTS TO PRIVATE OWNERS
GUILDFORD BOROUGH COUNCIL,SALARY COSTS,SURREY COUNTY COUNCIL,22368,17/04/2018 00:00,1998910,226.37,0,SUPER'N; EMPLOYERS CONT'N,LOCAL GOVERNMENT [UK ONLY],Invoice,BACS,None,16/04/2018 00:00,2018,1,SUPERANNUATION,G1111,SALARY COSTS,P9186,SUPER'N; EMPLOYERS CONT'N
GUILDFORD BOROUGH COUNCIL,BUILDING MAINTENANCE,SURREY COUNTY WINDOWS LTD,68672,10/04/2018 00:00,1997934,1496.97,0,PAYMENT TO CONTRACTORS,WINDOW AND DOOR INSTALLERS,Invoice,BACS,None,03/04/2018 00:00,2018,1,ORD X0068007,K1515,BUILDING MAINTENANCE,D4468,PAYMENT TO CONTRACTORS
GUILDFORD BOROUGH COUNCIL,LA ST CREDITORS,SURREY COUNTY COUNCIL,22368,17/04/2018 00:00,1998910,118557.54,0,PAYMENTS,LOCAL GOVERNMENT [UK ONLY],Invoice,BACS,None,16/04/2018 00:00,2018,1,SUPERANNUATION,L08030,SALS - NORMAL SUPERANNUATION,2489,PAYMENTS
GUILDFORD BOROUGH COUNCIL,BUILDING MAINTENANCE,SURREY COUNTY WINDOWS LTD,68672,12/04/2018 00:00,1998394,51.88,0,MATERIALS; SUB CONTRACTOR,WINDOW AND DOOR INSTALLERS,Invoice,BACS,None,06/04/2018 00:00,2018,1,ORD X0068007,K1515,BUILDING MAINTENANCE,D1542,MATERIALS; SUB CONTRACTOR
GUILDFORD BOROUGH COUNCIL,VEHICLE MAINTENANCE,SOUTHERN ELECTROMOTIVE DISTRIBUTION LTD,7603,26/04/2018 00:00,1998042,198.06,0,SPARES FOR VEHICLES,CAR AND VAN SERVICING AND MAINTENANCE PROVIDERS,Invoice,BACS,None,06/04/2018 00:00,2018,1,3517751,K5551,VEHICLE MAINTENANCE,D1589,SPARES FOR VEHICLES
GUILDFORD BOROUGH COUNCIL,LA ST CREDITORS,SURREY COUNTY COUNCIL,22368,17/04/2018 00:00,1998910,188.23,0,PAYMENTS,LOCAL GOVERNMENT [UK ONLY],Invoice,BACS,None,16/04/2018 00:00,2018,1,SUPERANNUATION,L10036,WKLY PAY - NORMAL SUPERANN,2489,PAYMENTS
GUILDFORD BOROUGH COUNCIL,LA ST CREDITORS,SURREY COUNTY COUNCIL,22368,17/04/2018 00:00,1998910,2169.36,0,PAYMENTS,LOCAL GOVERNMENT [UK ONLY],Invoice,BACS,None,16/04/2018 00:00,2018,1,SUPERANNUATION,L08032,SALS - SPECIAL SUPERANNUATION,2489,PAYMENTS
GUILDFORD BOROUGH COUNCIL,HOUSING OUTSIDE THE HRA,SOUTHERN GAS NETWORKS PLC,53174,26/04/2018 00:00,2000248,723.6,0,HEATING; REPAIRS WATER/CENTRAL,MAINS GAS SUPPLIERS,Invoice,BACS,None,20/04/2018 00:00,2018,1,1593985,C3313,HOUSING COMPANY,B1351,HEATING; REPAIRS WATER/CENTRAL
GUILDFORD BOROUGH COUNCIL,VEHICLE MAINTENANCE,SOUTHERN ELECTROMOTIVE DISTRIBUTION LTD,7603,26/04/2018 00:00,1999294,83,0,CONSUMABLES,CAR AND VAN SERVICING AND MAINTENANCE PROVIDERS,Invoice,BACS,None,13/04/2018 00:00,2018,1,352109,K5551,VEHICLE MAINTENANCE,D1587,CONSUMABLES
GUILDFORD BOROUGH COUNCIL,OTHER ST CREDITORS,SPECIALIST ADAPTIVE SERVICES,80311,17/04/2018 00:00,1998688,4650,0,PAYMENTS,FIXED DISABILITY EQUIPMENT SUPPLIERS,Invoice,BACS,None,09/04/2018 00:00,2018,1,2018 09,L02088,CARE & REPAIR CLIENT FUND,2489,PAYMENTS
GUILDFORD BOROUGH COUNCIL,VEHICLE MAINTENANCE,SOUTHERN ELECTROMOTIVE DISTRIBUTION LTD,7603,26/04/2018 00:00,1998491,16.76,0,SPARES FOR VEHICLES,CAR AND VAN SERVICING AND MAINTENANCE PROVIDERS,Invoice,BACS,None,10/04/2018 00:00,2018,1,351921,K5551,VEHICLE MAINTENANCE,D1589,SPARES FOR VEHICLES
GUILDFORD BOROUGH COUNCIL,VEHICLE MAINTENANCE,SOUTHERN ELECTROMOTIVE DISTRIBUTION LTD,7603,26/04/2018 00:00,1998927,9.76,0,SPARES FOR VEHICLES,CAR AND VAN SERVICING AND MAINTENANCE PROVIDERS,Invoice,BACS,None,13/04/2018 00:00,2018,1,352108,K5551,VEHICLE MAINTENANCE,D1589,SPARES FOR VEHICLES
GUILDFORD BOROUGH COUNCIL,BUSINESS & TOURISM,SPECTEL PRODUCTIONS LIMITED,69139,10/04/2018 00:00,1997853,95,0,GENERAL TOURISM MARKETING,ADVERTISING AGENCIES,Invoice,BACS,None,03/04/2018 00:00,2018,1,3960,F5545,TOURISM,D9403,GENERAL TOURISM MARKETING
GUILDFORD BOROUGH COUNCIL,DEVELOPMENT CONTROL,COMENSURA LTD,32435,01/05/2018 00:00,2000804,473.55,0,AGENCY STAFF,OTHER RECRUITMENT AGENCIES AND SERVICE PROVIDERS,Invoice,BACS,None,17/04/2018 00:00,2018,1,1007962,D5100,DEVELOPMENT CONTROL - FEE EARN,A5191,AGENCY STAFF
GUILDFORD BOROUGH COUNCIL,REFUSE AND RECYCLING,COMENSURA LTD,32435,12/04/2018 00:00,1998294,-0.78,0,AGENCY STAFF,OTHER RECRUITMENT AGENCIES AND SERVICE PROVIDERS,Invoice,BACS,None,11/04/2018 00:00,2018,1,581388,B7711,RECYCLING ADMINISTRATION,A5191,AGENCY STAFF
GUILDFORD BOROUGH COUNCIL,REFUSE AND RECYCLING,COMENSURA LTD,32435,05/04/2018 00:00,1997392,506.33,0,AGENCY STAFF,OTHER RECRUITMENT AGENCIES AND SERVICE PROVIDERS,Invoice,BACS,None,04/04/2018 00:00,2018,1,1007541,B7744,GREEN WASTE,A5191,AGENCY STAFF
GUILDFORD BOROUGH COUNCIL,OPERATIONS TECHNICAL SERVICES,COMENSURA LTD,32435,01/05/2018 00:00,2000804,829.04,0,AGENCY STAFF,OTHER RECRUITMENT AGENCIES AND SERVICE PROVIDERS,Invoice,BACS,None,17/04/2018 00:00,2018,1,1007962,G3546,ICT SERVICE DESK,A5191,AGENCY STAFF
GUILDFORD BOROUGH COUNCIL,MUSEUM,COMENSURA LTD,32435,01/05/2018 00:00,2000804,533.86,0,AGENCY STAFF,OTHER RECRUITMENT AGENCIES AND SERVICE PROVIDERS,Invoice,BACS,None,17/04/2018 00:00,2018,1,1007962,A5511,MUSEUM,A5191,AGENCY STAFF
GUILDFORD BOROUGH COUNCIL,REFUSE AND RECYCLING,COMENSURA LTD,32435,13/04/2018 00:00,1998703,93.38,0,AGENCY STAFF,OTHER RECRUITMENT AGENCIES AND SERVICE PROVIDERS,Invoice,BACS,None,11/04/2018 00:00,2018,1,1007818,K3551,REFUSE COLLECTION,A5191,AGENCY STAFF
GUILDFORD BOROUGH COUNCIL,BUILDING MAINTENANCE,COMENSURA LTD,32435,13/04/2018 00:00,1998703,350.76,0,AGENCY STAFF,OTHER RECRUITMENT AGENCIES AND SERVICE PROVIDERS,Invoice,BACS,None,11/04/2018 00:00,2018,1,1007818,K1515,BUILDING MAINTENANCE,A5191,AGENCY STAFF
GUILDFORD BOROUGH COUNCIL,REFUSE AND RECYCLING,COMENSURA LTD,32435,13/04/2018 00:00,1998703,474.29,0,AGENCY STAFF,OTHER RECRUITMENT AGENCIES AND SERVICE PROVIDERS,Invoice,BACS,None,11/04/2018 00:00,2018,1,1007818,K3551,REFUSE COLLECTION,A5191,AGENCY STAFF
GUILDFORD BOROUGH COUNCIL,REFUSE AND RECYCLING,COMENSURA LTD,32435,05/04/2018 00:00,1997392,546.9,0,AGENCY STAFF,OTHER RECRUITMENT AGENCIES AND SERVICE PROVIDERS,Invoice,BACS,None,04/04/2018 00:00,2018,1,1007541,B7766,KERBSIDE RECYCLING,A5191,AGENCY STAFF
GUILDFORD BOROUGH COUNCIL,STREET CLEANSING,COMENSURA LTD,32435,13/04/2018 00:00,1998703,215.1,0,AGENCY STAFF,OTHER RECRUITMENT AGENCIES AND SERVICE PROVIDERS,Invoice,BACS,None,11/04/2018 00:00,2018,1,1007818,B8512,ENVIRONMENTAL AND DOG CONTROL,A5191,AGENCY STAFF
GUILDFORD BOROUGH COUNCIL,STREET CLEANSING,COMENSURA LTD,32435,05/04/2018 00:00,1997392,-0.9,0,AGENCY STAFF,OTHER RECRUITMENT AGENCIES AND SERVICE PROVIDERS,Invoice,BACS,None,04/04/2018 00:00,2018,1,1007541,K4551,STREET CLEANSING,A5191,AGENCY STAFF
GUILDFORD BOROUGH COUNCIL,OPERATIONS TECHNICAL SERVICES,COMENSURA LTD,32435,01/05/2018 00:00,2000804,834.72,0,AGENCY STAFF,OTHER RECRUITMENT AGENCIES AND SERVICE PROVIDERS,Invoice,BACS,None,17/04/2018 00:00,2018,1,1007962,G3546,ICT SERVICE DESK,A5191,AGENCY STAFF
GUILDFORD BOROUGH COUNCIL,REFUSE AND RECYCLING,COMENSURA LTD,32435,01/05/2018 00:00,2000819,-1.68,0,AGENCY STAFF,OTHER RECRUITMENT AGENCIES AND SERVICE PROVIDERS,Invoice,BACS,None,24/04/2018 00:00,2018,1,1008233,B7744,GREEN WASTE,A5191,AGENCY STAFF
GUILDFORD BOROUGH COUNCIL,ON STREET PARKING,COMENSURA LTD,32435,05/04/2018 00:00,1997392,470.89,0,AGENCY STAFF,OTHER RECRUITMENT AGENCIES AND SERVICE PROVIDERS,Invoice,BACS,None,04/04/2018 00:00,2018,1,1007541,B2215,WAVERLEY ON-STREET,A5191,AGENCY STAFF
GUILDFORD BOROUGH COUNCIL,REFUSE AND RECYCLING,COMENSURA LTD,32435,13/04/2018 00:00,1998703,639.63,0,AGENCY STAFF,OTHER RECRUITMENT AGENCIES AND SERVICE PROVIDERS,Invoice,BACS,None,11/04/2018 00:00,2018,1,1007818,B7744,GREEN WASTE,A5191,AGENCY STAFF
GUILDFORD BOROUGH COUNCIL,DEVELOPMENT CONTROL,COMENSURA LTD,32435,13/04/2018 00:00,1998703,387.63,0,AGENCY STAFF,OTHER RECRUITMENT AGENCIES AND SERVICE PROVIDERS,Invoice,BACS,None,11/04/2018 00:00,2018,1,1007818,D5100,DEVELOPMENT CONTROL - FEE EARN,A5191,AGENCY STAFF
GUILDFORD BOROUGH COUNCIL,REFUSE AND RECYCLING,COMENSURA LTD,32435,13/04/2018 00:00,1998703,-0.76,0,AGENCY STAFF,OTHER RECRUITMENT AGENCIES AND SERVICE PROVIDERS,Invoice,BACS,None,11/04/2018 00:00,2018,1,1007818,B7744,GREEN WASTE,A5191,AGENCY STAFF
GUILDFORD BOROUGH COUNCIL,STREET CLEANSING,COMENSURA LTD,32435,01/05/2018 00:00,2000804,346.33,0,AGENCY STAFF,OTHER RECRUITMENT AGENCIES AND SERVICE PROVIDERS,Invoice,BACS,None,17/04/2018 00:00,2018,1,1007962,K4551,STREET CLEANSING,A5191,AGENCY STAFF
GUILDFORD BOROUGH COUNCIL,REFUSE AND RECYCLING,COMENSURA LTD,32435,01/05/2018 00:00,2000819,200.1,0,AGENCY STAFF,OTHER RECRUITMENT AGENCIES AND SERVICE PROVIDERS,Invoice,BACS,None,24/04/2018 00:00,2018,1,1008233,B7744,GREEN WASTE,A5191,AGENCY STAFF
GUILDFORD BOROUGH COUNCIL,DEVELOPMENT CONTROL,COMENSURA LTD,32435,01/05/2018 00:00,2000819,484.34,0,AGENCY STAFF,OTHER RECRUITMENT AGENCIES AND SERVICE PROVIDERS,Invoice,BACS,None,24/04/2018 00:00,2018,1,1008233,D5100,DEVELOPMENT CONTROL - FEE EARN,A5191,AGENCY STAFF
GUILDFORD BOROUGH COUNCIL,REFUSE AND RECYCLING,COMENSURA LTD,32435,01/05/2018 00:00,2000819,497.4,0,AGENCY STAFF,OTHER RECRUITMENT AGENCIES AND SERVICE PROVIDERS,Invoice,BACS,None,24/04/2018 00:00,2018,1,1008233,K3551,REFUSE COLLECTION,A5191,AGENCY STAFF
GUILDFORD BOROUGH COUNCIL,REFUSE AND RECYCLING,COMENSURA LTD,32435,05/04/2018 00:00,1997392,779.7,0,AGENCY STAFF,OTHER RECRUITMENT AGENCIES AND SERVICE PROVIDERS,Invoice,BACS,None,04/04/2018 00:00,2018,1,1007541,B7766,KERBSIDE RECYCLING,A5191,AGENCY STAFF
GUILDFORD BOROUGH COUNCIL,BUILDING MAINTENANCE,COMENSURA LTD,32435,01/05/2018 00:00,2000804,261.36,0,AGENCY STAFF,OTHER RECRUITMENT AGENCIES AND SERVICE PROVIDERS,Invoice,BACS,None,17/04/2018 00:00,2018,1,1007962,K1515,BUILDING MAINTENANCE,A5191,AGENCY STAFF
GUILDFORD BOROUGH COUNCIL,REFUSE AND RECYCLING,COMENSURA LTD,32435,01/05/2018 00:00,2000804,567.45,0,AGENCY STAFF,OTHER RECRUITMENT AGENCIES AND SERVICE PROVIDERS,Invoice,BACS,None,17/04/2018 00:00,2018,1,1007962,B7744,GREEN WASTE,A5191,AGENCY STAFF
GUILDFORD BOROUGH COUNCIL,REFUSE AND RECYCLING,COMENSURA LTD,32435,01/05/2018 00:00,2000819,312.11,0,AGENCY STAFF,OTHER RECRUITMENT AGENCIES AND SERVICE PROVIDERS,Invoice,BACS,None,24/04/2018 00:00,2018,1,1008233,K3551,REFUSE COLLECTION,A5191,AGENCY STAFF
GUILDFORD BOROUGH COUNCIL,BUILDING MAINTENANCE,COMENSURA LTD,32435,13/04/2018 00:00,1998703,284.4,0,AGENCY STAFF,OTHER RECRUITMENT AGENCIES AND SERVICE PROVIDERS,Invoice,BACS,None,11/04/2018 00:00,2018,1,1007818,K1515,BUILDING MAINTENANCE,A5191,AGENCY STAFF
GUILDFORD BOROUGH COUNCIL,STREET CLEANSING,COMENSURA LTD,32435,01/05/2018 00:00,2000819,547.6,0,AGENCY STAFF,OTHER RECRUITMENT AGENCIES AND SERVICE PROVIDERS,Invoice,BACS,None,24/04/2018 00:00,2018,1,1008233,K4551,STREET CLEANSING,A5191,AGENCY STAFF
GUILDFORD BOROUGH COUNCIL,REFUSE AND RECYCLING,COMENSURA LTD,32435,05/04/2018 00:00,1997392,479.97,0,AGENCY STAFF,OTHER RECRUITMENT AGENCIES AND SERVICE PROVIDERS,Invoice,BACS,None,04/04/2018 00:00,2018,1,1007541,B7766,KERBSIDE RECYCLING,A5191,AGENCY STAFF
GUILDFORD BOROUGH COUNCIL,REFUSE AND RECYCLING,COMENSURA LTD,32435,13/04/2018 00:00,1998703,-1.26,0,AGENCY STAFF,OTHER RECRUITMENT AGENCIES AND SERVICE PROVIDERS,Invoice,BACS,None,11/04/2018 00:00,2018,1,1007818,K3551,REFUSE COLLECTION,A5191,AGENCY STAFF
GUILDFORD BOROUGH COUNCIL,DEVELOPMENT CONTROL,COMENSURA LTD,32435,05/04/2018 00:00,1997392,163.62,0,AGENCY STAFF,OTHER RECRUITMENT AGENCIES AND SERVICE PROVIDERS,Invoice,BACS,None,04/04/2018 00:00,2018,1,1007541,D5100,DEVELOPMENT CONTROL - FEE EARN,A5191,AGENCY STAFF
GUILDFORD BOROUGH COUNCIL,REFUSE AND RECYCLING,COMENSURA LTD,32435,01/05/2018 00:00,2000804,588.06,0,AGENCY STAFF,OTHER RECRUITMENT AGENCIES AND SERVICE PROVIDERS,Invoice,BACS,None,17/04/2018 00:00,2018,1,1007962,B7766,KERBSIDE RECYCLING,A5191,AGENCY STAFF
GUILDFORD BOROUGH COUNCIL,DEVELOPMENT CONTROL,COMENSURA LTD,32435,13/04/2018 00:00,1998703,368.04,0,AGENCY STAFF,OTHER RECRUITMENT AGENCIES AND SERVICE PROVIDERS,Invoice,BACS,None,11/04/2018 00:00,2018,1,1007818,D5100,DEVELOPMENT CONTROL - FEE EARN,A5191,AGENCY STAFF
GUILDFORD BOROUGH COUNCIL,DEVELOPMENT CONTROL,COMENSURA LTD,32435,01/05/2018 00:00,2000804,471.75,0,AGENCY STAFF,OTHER RECRUITMENT AGENCIES AND SERVICE PROVIDERS,Invoice,BACS,None,17/04/2018 00:00,2018,1,1007962,D5100,DEVELOPMENT CONTROL - FEE EARN,A5191,AGENCY STAFF
GUILDFORD BOROUGH COUNCIL,REFUSE AND RECYCLING,COMENSURA LTD,32435,05/04/2018 00:00,1997392,619.64,0,AGENCY STAFF,OTHER RECRUITMENT AGENCIES AND SERVICE PROVIDERS,Invoice,BACS,None,04/04/2018 00:00,2018,1,1007541,B7766,KERBSIDE RECYCLING,A5191,AGENCY STAFF
GUILDFORD BOROUGH COUNCIL,STREET CLEANSING,COMENSURA LTD,32435,01/05/2018 00:00,2000819,563.9,0,AGENCY STAFF,OTHER RECRUITMENT AGENCIES AND SERVICE PROVIDERS,Invoice,BACS,None,24/04/2018 00:00,2018,1,1008233,K4551,STREET CLEANSING,A5191,AGENCY STAFF
GUILDFORD BOROUGH COUNCIL,STREET CLEANSING,COMENSURA LTD,32435,13/04/2018 00:00,1998703,345.66,0,AGENCY STAFF,OTHER RECRUITMENT AGENCIES AND SERVICE PROVIDERS,Invoice,BACS,None,11/04/2018 00:00,2018,1,1007818,K4551,STREET CLEANSING,A5191,AGENCY STAFF
GUILDFORD BOROUGH COUNCIL,REFUSE AND RECYCLING,COMENSURA LTD,32435,05/04/2018 00:00,1997392,-1,0,AGENCY STAFF,OTHER RECRUITMENT AGENCIES AND SERVICE PROVIDERS,Invoice,BACS,None,04/04/2018 00:00,2018,1,1007541,B7744,GREEN WASTE,A5191,AGENCY STAFF
GUILDFORD BOROUGH COUNCIL,REFUSE AND RECYCLING,COMENSURA LTD,32435,05/04/2018 00:00,1997392,383.75,0,AGENCY STAFF,OTHER RECRUITMENT AGENCIES AND SERVICE PROVIDERS,Invoice,BACS,None,04/04/2018 00:00,2018,1,1007541,B7744,GREEN WASTE,A5191,AGENCY STAFF
GUILDFORD BOROUGH COUNCIL,LEGAL SERVICES,COMENSURA LTD,32435,01/05/2018 00:00,2000819,1643.4,0,AGENCY STAFF,OTHER RECRUITMENT AGENCIES AND SERVICE PROVIDERS,Invoice,BACS,None,24/04/2018 00:00,2018,1,1008233,G4525,LEGAL SERVICES,A5191,AGENCY STAFF
GUILDFORD BOROUGH COUNCIL,REFUSE AND RECYCLING,COMENSURA LTD,32435,01/05/2018 00:00,2000819,150.3,0,AGENCY STAFF,OTHER RECRUITMENT AGENCIES AND SERVICE PROVIDERS,Invoice,BACS,None,24/04/2018 00:00,2018,1,1008233,K3551,REFUSE COLLECTION,A5191,AGENCY STAFF
GUILDFORD BOROUGH COUNCIL,REFUSE AND RECYCLING,COMENSURA LTD,32435,12/04/2018 00:00,1998294,495.38,0,AGENCY STAFF,OTHER RECRUITMENT AGENCIES AND SERVICE PROVIDERS,Invoice,BACS,None,11/04/2018 00:00,2018,1,581388,B7711,RECYCLING ADMINISTRATION,A5191,AGENCY STAFF
GUILDFORD BOROUGH COUNCIL,REFUSE AND RECYCLING,COMENSURA LTD,32435,13/04/2018 00:00,1998703,770.37,0,AGENCY STAFF,OTHER RECRUITMENT AGENCIES AND SERVICE PROVIDERS,Invoice,BACS,None,11/04/2018 00:00,2018,1,1007818,K3551,REFUSE COLLECTION,A5191,AGENCY STAFF
GUILDFORD BOROUGH COUNCIL,DEVELOPMENT CONTROL,COMENSURA LTD,32435,01/05/2018 00:00,2000804,473.57,0,AGENCY STAFF,OTHER RECRUITMENT AGENCIES AND SERVICE PROVIDERS,Invoice,BACS,None,17/04/2018 00:00,2018,1,1007962,D5100,DEVELOPMENT CONTROL - FEE EARN,A5191,AGENCY STAFF
GUILDFORD BOROUGH COUNCIL,REFUSE AND RECYCLING,COMENSURA LTD,32435,05/04/2018 00:00,1997392,632.51,0,AGENCY STAFF,OTHER RECRUITMENT AGENCIES AND SERVICE PROVIDERS,Invoice,BACS,None,04/04/2018 00:00,2018,1,1007541,B7766,KERBSIDE RECYCLING,A5191,AGENCY STAFF
GUILDFORD BOROUGH COUNCIL,INCOME COLLECTION,COMENSURA LTD,32435,13/04/2018 00:00,1998703,498.58,0,AGENCY STAFF,OTHER RECRUITMENT AGENCIES AND SERVICE PROVIDERS,Invoice,BACS,None,11/04/2018 00:00,2018,1,1007818,M1121,INCOME COLLECTION (BHS),A5191,AGENCY STAFF
GUILDFORD BOROUGH COUNCIL,STREET CLEANSING,COMENSURA LTD,32435,05/04/2018 00:00,1997392,301.2,0,AGENCY STAFF,OTHER RECRUITMENT AGENCIES AND SERVICE PROVIDERS,Invoice,BACS,None,04/04/2018 00:00,2018,1,1007541,K4551,STREET CLEANSING,A5191,AGENCY STAFF
GUILDFORD BOROUGH COUNCIL,REFUSE AND RECYCLING,COMENSURA LTD,32435,05/04/2018 00:00,1997392,-1.29,0,AGENCY STAFF,OTHER RECRUITMENT AGENCIES AND SERVICE PROVIDERS,Invoice,BACS,None,04/04/2018 00:00,2018,1,1007541,B7766,KERBSIDE RECYCLING,A5191,AGENCY STAFF
GUILDFORD BOROUGH COUNCIL,STREET CLEANSING,COMENSURA LTD,32435,01/05/2018 00:00,2000804,-1.48,0,AGENCY STAFF,OTHER RECRUITMENT AGENCIES AND SERVICE PROVIDERS,Invoice,BACS,None,17/04/2018 00:00,2018,1,1007962,K4551,STREET CLEANSING,A5191,AGENCY STAFF
GUILDFORD BOROUGH COUNCIL,REFUSE AND RECYCLING,COMENSURA LTD,32435,01/05/2018 00:00,2000819,158.7,0,AGENCY STAFF,OTHER RECRUITMENT AGENCIES AND SERVICE PROVIDERS,Invoice,BACS,None,24/04/2018 00:00,2018,1,1008233,B7766,KERBSIDE RECYCLING,A5191,AGENCY STAFF
GUILDFORD BOROUGH COUNCIL,STREET CLEANSING,COMENSURA LTD,32435,01/05/2018 00:00,2000819,-1.2,0,AGENCY STAFF,OTHER RECRUITMENT AGENCIES AND SERVICE PROVIDERS,Invoice,BACS,None,24/04/2018 00:00,2018,1,1008233,K4551,STREET CLEANSING,A5191,AGENCY STAFF
GUILDFORD BOROUGH COUNCIL,REFUSE AND RECYCLING,COMENSURA LTD,32435,01/05/2018 00:00,2000819,98.97,0,AGENCY STAFF,OTHER RECRUITMENT AGENCIES AND SERVICE PROVIDERS,Invoice,BACS,None,24/04/2018 00:00,2018,1,1008233,K3551,REFUSE COLLECTION,A5191,AGENCY STAFF
GUILDFORD BOROUGH COUNCIL,REFUSE AND RECYCLING,COMENSURA LTD,32435,01/05/2018 00:00,2000819,602.71,0,AGENCY STAFF,OTHER RECRUITMENT AGENCIES AND SERVICE PROVIDERS,Invoice,BACS,None,24/04/2018 00:00,2018,1,1008233,K3551,REFUSE COLLECTION,A5191,AGENCY STAFF
GUILDFORD BOROUGH COUNCIL,REFUSE AND RECYCLING,COMENSURA LTD,32435,13/04/2018 00:00,1998703,572.04,0,AGENCY STAFF,OTHER RECRUITMENT AGENCIES AND SERVICE PROVIDERS,Invoice,BACS,None,11/04/2018 00:00,2018,1,1007818,K3551,REFUSE COLLECTION,A5191,AGENCY STAFF
GUILDFORD BOROUGH COUNCIL,REFUSE AND RECYCLING,COMENSURA LTD,32435,01/05/2018 00:00,2000819,296.91,0,AGENCY STAFF,OTHER RECRUITMENT AGENCIES AND SERVICE PROVIDERS,Invoice,BACS,None,24/04/2018 00:00,2018,1,1008233,K3551,REFUSE COLLECTION,A5191,AGENCY STAFF
GUILDFORD BOROUGH COUNCIL,REFUSE AND RECYCLING,COMENSURA LTD,32435,01/05/2018 00:00,2000804,-1.04,0,AGENCY STAFF,OTHER RECRUITMENT AGENCIES AND SERVICE PROVIDERS,Invoice,BACS,None,17/04/2018 00:00,2018,1,1007962,B7766,KERBSIDE RECYCLING,A5191,AGENCY STAFF
GUILDFORD BOROUGH COUNCIL,DEVELOPMENT CONTROL,COMENSURA LTD,32435,13/04/2018 00:00,1998703,336.57,0,AGENCY STAFF,OTHER RECRUITMENT AGENCIES AND SERVICE PROVIDERS,Invoice,BACS,None,11/04/2018 00:00,2018,1,1007818,D5200,DEVELOPMENT CONTROL NON FEE,A5191,AGENCY STAFF
GUILDFORD BOROUGH COUNCIL,REFUSE AND RECYCLING,COMENSURA LTD,32435,01/05/2018 00:00,2000804,544.89,0,AGENCY STAFF,OTHER RECRUITMENT AGENCIES AND SERVICE PROVIDERS,Invoice,BACS,None,17/04/2018 00:00,2018,1,1007962,K3551,REFUSE COLLECTION,A5191,AGENCY STAFF
GUILDFORD BOROUGH COUNCIL,REFUSE AND RECYCLING,COMENSURA LTD,32435,01/05/2018 00:00,2000804,-1.8,0,AGENCY STAFF,OTHER RECRUITMENT AGENCIES AND SERVICE PROVIDERS,Invoice,BACS,None,17/04/2018 00:00,2018,1,1007962,B7766,KERBSIDE RECYCLING,A5191,AGENCY STAFF
GUILDFORD BOROUGH COUNCIL,REFUSE AND RECYCLING,COMENSURA LTD,32435,05/04/2018 00:00,1997392,94.79,0,AGENCY STAFF,OTHER RECRUITMENT AGENCIES AND SERVICE PROVIDERS,Invoice,BACS,None,04/04/2018 00:00,2018,1,1007541,B7744,GREEN WASTE,A5191,AGENCY STAFF
GUILDFORD BOROUGH COUNCIL,LEGAL SERVICES,COMENSURA LTD,32435,01/05/2018 00:00,2000804,1667.83,0,AGENCY STAFF,OTHER RECRUITMENT AGENCIES AND SERVICE PROVIDERS,Invoice,BACS,None,17/04/2018 00:00,2018,1,1007962,G4525,LEGAL SERVICES,A5191,AGENCY STAFF
GUILDFORD BOROUGH COUNCIL,BUILDING MAINTENANCE,COMENSURA LTD,32435,13/04/2018 00:00,1998703,142.2,0,AGENCY STAFF,OTHER RECRUITMENT AGENCIES AND SERVICE PROVIDERS,Invoice,BACS,None,11/04/2018 00:00,2018,1,1007818,K1515,BUILDING MAINTENANCE,A5191,AGENCY STAFF
GUILDFORD BOROUGH COUNCIL,STREET CLEANSING,COMENSURA LTD,32435,01/05/2018 00:00,2000819,434.4,0,AGENCY STAFF,OTHER RECRUITMENT AGENCIES AND SERVICE PROVIDERS,Invoice,BACS,None,24/04/2018 00:00,2018,1,1008233,K4551,STREET CLEANSING,A5191,AGENCY STAFF
GUILDFORD BOROUGH COUNCIL,REFUSE AND RECYCLING,COMENSURA LTD,32435,01/05/2018 00:00,2000819,74.06,0,AGENCY STAFF,OTHER RECRUITMENT AGENCIES AND SERVICE PROVIDERS,Invoice,BACS,None,24/04/2018 00:00,2018,1,1008233,K3551,REFUSE COLLECTION,A5191,AGENCY STAFF
GUILDFORD BOROUGH COUNCIL,LEGAL SERVICES,COMENSURA LTD,32435,01/05/2018 00:00,2000819,1667.83,0,AGENCY STAFF,OTHER RECRUITMENT AGENCIES AND SERVICE PROVIDERS,Invoice,BACS,None,24/04/2018 00:00,2018,1,1008233,G4525,LEGAL SERVICES,A5191,AGENCY STAFF
GUILDFORD BOROUGH COUNCIL,MOT BAY,COMENSURA LTD,32435,19/04/2018 00:00,1999336,542.79,0,AGENCY STAFF,OTHER RECRUITMENT AGENCIES AND SERVICE PROVIDERS,Invoice,BACS,None,18/04/2018 00:00,2018,1,581427,V8598,MOT STATION,A5191,AGENCY STAFF
GUILDFORD BOROUGH COUNCIL,STREET CLEANSING,COMENSURA LTD,32435,05/04/2018 00:00,1997392,384.88,0,AGENCY STAFF,OTHER RECRUITMENT AGENCIES AND SERVICE PROVIDERS,Invoice,BACS,None,04/04/2018 00:00,2018,1,1007541,K4551,STREET CLEANSING,A5191,AGENCY STAFF
GUILDFORD BOROUGH COUNCIL,ENVIRONMENTAL CONTROL,COMENSURA LTD,32435,05/04/2018 00:00,1997392,401.12,0,AGENCY STAFF,OTHER RECRUITMENT AGENCIES AND SERVICE PROVIDERS,Invoice,BACS,None,04/04/2018 00:00,2018,1,1007541,C1113,ENVIRONMENTAL CONTROL,A5191,AGENCY STAFF
GUILDFORD BOROUGH COUNCIL,DEVELOPMENT CONTROL,COMENSURA LTD,32435,01/05/2018 00:00,2000819,465.46,0,AGENCY STAFF,OTHER RECRUITMENT AGENCIES AND SERVICE PROVIDERS,Invoice,BACS,None,24/04/2018 00:00,2018,1,1008233,D5100,DEVELOPMENT CONTROL - FEE EARN,A5191,AGENCY STAFF
GUILDFORD BOROUGH COUNCIL,REFUSE AND RECYCLING,COMENSURA LTD,32435,01/05/2018 00:00,2000819,436.05,0,AGENCY STAFF,OTHER RECRUITMENT AGENCIES AND SERVICE PROVIDERS,Invoice,BACS,None,24/04/2018 00:00,2018,1,1008233,K3551,REFUSE COLLECTION,A5191,AGENCY STAFF
GUILDFORD BOROUGH COUNCIL,MUSEUM,COMENSURA LTD,32435,05/04/2018 00:00,1997392,429,0,AGENCY STAFF,OTHER RECRUITMENT AGENCIES AND SERVICE PROVIDERS,Invoice,BACS,None,04/04/2018 00:00,2018,1,1007541,A5511,MUSEUM,A5191,AGENCY STAFF
GUILDFORD BOROUGH COUNCIL,STREET CLEANSING,COMENSURA LTD,32435,01/05/2018 00:00,2000804,547.6,0,AGENCY STAFF,OTHER RECRUITMENT AGENCIES AND SERVICE PROVIDERS,Invoice,BACS,None,17/04/2018 00:00,2018,1,1007962,K4551,STREET CLEANSING,A5191,AGENCY STAFF
GUILDFORD BOROUGH COUNCIL,STREET CLEANSING,COMENSURA LTD,32435,01/05/2018 00:00,2000804,399.3,0,AGENCY STAFF,OTHER RECRUITMENT AGENCIES AND SERVICE PROVIDERS,Invoice,BACS,None,17/04/2018 00:00,2018,1,1007962,B8512,ENVIRONMENTAL AND DOG CONTROL,A5191,AGENCY STAFF
GUILDFORD BOROUGH COUNCIL,REFUSE AND RECYCLING,COMENSURA LTD,32435,01/05/2018 00:00,2000804,678.6,0,AGENCY STAFF,OTHER RECRUITMENT AGENCIES AND SERVICE PROVIDERS,Invoice,BACS,None,17/04/2018 00:00,2018,1,1007962,B7711,RECYCLING ADMINISTRATION,A5191,AGENCY STAFF
GUILDFORD BOROUGH COUNCIL,MUSEUM,COMENSURA LTD,32435,13/04/2018 00:00,1998703,442.15,0,AGENCY STAFF,OTHER RECRUITMENT AGENCIES AND SERVICE PROVIDERS,Invoice,BACS,None,11/04/2018 00:00,2018,1,1007818,A5511,MUSEUM,A5191,AGENCY STAFF
GUILDFORD BOROUGH COUNCIL,REFUSE AND RECYCLING,COMENSURA LTD,32435,01/05/2018 00:00,2000804,120.82,0,AGENCY STAFF,OTHER RECRUITMENT AGENCIES AND SERVICE PROVIDERS,Invoice,BACS,None,17/04/2018 00:00,2018,1,1007962,K3551,REFUSE COLLECTION,A5191,AGENCY STAFF
GUILDFORD BOROUGH COUNCIL,MOT BAY,COMENSURA LTD,32435,05/04/2018 00:00,1997392,468.48,0,AGENCY STAFF,OTHER RECRUITMENT AGENCIES AND SERVICE PROVIDERS,Invoice,BACS,None,04/04/2018 00:00,2018,1,1007541,V8598,MOT STATION,A5191,AGENCY STAFF
GUILDFORD BOROUGH COUNCIL,REFUSE AND RECYCLING,COMENSURA LTD,32435,01/05/2018 00:00,2000819,486.88,0,AGENCY STAFF,OTHER RECRUITMENT AGENCIES AND SERVICE PROVIDERS,Invoice,BACS,None,24/04/2018 00:00,2018,1,1008233,B7744,GREEN WASTE,A5191,AGENCY STAFF
GUILDFORD BOROUGH COUNCIL,MAJOR PROJECTS,COMENSURA LTD,32435,01/05/2018 00:00,2000819,3350.7,0,AGENCY STAFF,OTHER RECRUITMENT AGENCIES AND SERVICE PROVIDERS,Invoice,BACS,None,24/04/2018 00:00,2018,1,1008233,F5530,MAJOR PROJECTS,A5191,AGENCY STAFF
GUILDFORD BOROUGH COUNCIL,FOOD AND SAFETY SERVICES,COMENSURA LTD,32435,13/04/2018 00:00,1998703,416.06,0,AGENCY STAFF,OTHER RECRUITMENT AGENCIES AND SERVICE PROVIDERS,Invoice,BACS,None,11/04/2018 00:00,2018,1,1007818,C1111,FOOD AND SAFETY SERVICES,A5191,AGENCY STAFF
GUILDFORD BOROUGH COUNCIL,REFUSE AND RECYCLING,COMENSURA LTD,32435,01/05/2018 00:00,2000819,312.83,0,AGENCY STAFF,OTHER RECRUITMENT AGENCIES AND SERVICE PROVIDERS,Invoice,BACS,None,24/04/2018 00:00,2018,1,1008233,K3551,REFUSE COLLECTION,A5191,AGENCY STAFF
GUILDFORD BOROUGH COUNCIL,REFUSE AND RECYCLING,COMENSURA LTD,32435,01/05/2018 00:00,2000804,608.67,0,AGENCY STAFF,OTHER RECRUITMENT AGENCIES AND SERVICE PROVIDERS,Invoice,BACS,None,17/04/2018 00:00,2018,1,1007962,B7766,KERBSIDE RECYCLING,A5191,AGENCY STAFF
GUILDFORD BOROUGH COUNCIL,REFUSE AND RECYCLING,COMENSURA LTD,32435,13/04/2018 00:00,1998703,-1.68,0,AGENCY STAFF,OTHER RECRUITMENT AGENCIES AND SERVICE PROVIDERS,Invoice,BACS,None,11/04/2018 00:00,2018,1,1007818,B7744,GREEN WASTE,A5191,AGENCY STAFF
GUILDFORD BOROUGH COUNCIL,ENVIRONMENTAL CONTROL,COMENSURA LTD,32435,01/05/2018 00:00,2000819,572.6,0,AGENCY STAFF,OTHER RECRUITMENT AGENCIES AND SERVICE PROVIDERS,Invoice,BACS,None,24/04/2018 00:00,2018,1,1008233,C1113,ENVIRONMENTAL CONTROL,A5191,AGENCY STAFF
GUILDFORD BOROUGH COUNCIL,REFUSE AND RECYCLING,COMENSURA LTD,32435,13/04/2018 00:00,1998703,402.15,0,AGENCY STAFF,OTHER RECRUITMENT AGENCIES AND SERVICE PROVIDERS,Invoice,BACS,None,11/04/2018 00:00,2018,1,1007818,K3551,REFUSE COLLECTION,A5191,AGENCY STAFF
GUILDFORD BOROUGH COUNCIL,REFUSE AND RECYCLING,COMENSURA LTD,32435,01/05/2018 00:00,2000804,488.51,0,AGENCY STAFF,OTHER RECRUITMENT AGENCIES AND SERVICE PROVIDERS,Invoice,BACS,None,17/04/2018 00:00,2018,1,1007962,B7766,KERBSIDE RECYCLING,A5191,AGENCY STAFF
GUILDFORD BOROUGH COUNCIL,REFUSE AND RECYCLING,COMENSURA LTD,32435,01/05/2018 00:00,2000819,-1.34,0,AGENCY STAFF,OTHER RECRUITMENT AGENCIES AND SERVICE PROVIDERS,Invoice,BACS,None,24/04/2018 00:00,2018,1,1008233,K3551,REFUSE COLLECTION,A5191,AGENCY STAFF
GUILDFORD BOROUGH COUNCIL,ON STREET PARKING,COMENSURA LTD,32435,13/04/2018 00:00,1998703,480.76,0,AGENCY STAFF,OTHER RECRUITMENT AGENCIES AND SERVICE PROVIDERS,Invoice,BACS,None,11/04/2018 00:00,2018,1,1007818,B2215,WAVERLEY ON-STREET,A5191,AGENCY STAFF
GUILDFORD BOROUGH COUNCIL,REFUSE AND RECYCLING,COMENSURA LTD,32435,13/04/2018 00:00,1998703,679.76,0,AGENCY STAFF,OTHER RECRUITMENT AGENCIES AND SERVICE PROVIDERS,Invoice,BACS,None,11/04/2018 00:00,2018,1,1007818,K3551,REFUSE COLLECTION,A5191,AGENCY STAFF
GUILDFORD BOROUGH COUNCIL,MOT BAY,COMENSURA LTD,32435,13/04/2018 00:00,1998703,711.76,0,AGENCY STAFF,OTHER RECRUITMENT AGENCIES AND SERVICE PROVIDERS,Invoice,BACS,None,11/04/2018 00:00,2018,1,1007818,V8598,MOT STATION,A5191,AGENCY STAFF
GUILDFORD BOROUGH COUNCIL,REFUSE AND RECYCLING,COMENSURA LTD,32435,01/05/2018 00:00,2000804,532.3,0,AGENCY STAFF,OTHER RECRUITMENT AGENCIES AND SERVICE PROVIDERS,Invoice,BACS,None,17/04/2018 00:00,2018,1,1007962,B7766,KERBSIDE RECYCLING,A5191,AGENCY STAFF
GUILDFORD BOROUGH COUNCIL,MAJOR PROJECTS,COMENSURA LTD,32435,05/04/2018 00:00,1997392,2655.6,0,AGENCY STAFF,OTHER RECRUITMENT AGENCIES AND SERVICE PROVIDERS,Invoice,BACS,None,04/04/2018 00:00,2018,1,1007541,F5530,MAJOR PROJECTS,A5191,AGENCY STAFF
GUILDFORD BOROUGH COUNCIL,DEVELOPMENT CONTROL,COMENSURA LTD,32435,13/04/2018 00:00,1998703,397.85,0,AGENCY STAFF,OTHER RECRUITMENT AGENCIES AND SERVICE PROVIDERS,Invoice,BACS,None,11/04/2018 00:00,2018,1,1007818,D5100,DEVELOPMENT CONTROL - FEE EARN,A5191,AGENCY STAFF
GUILDFORD BOROUGH COUNCIL,REFUSE AND RECYCLING,COMENSURA LTD,32435,05/04/2018 00:00,1997392,142.96,0,AGENCY STAFF,OTHER RECRUITMENT AGENCIES AND SERVICE PROVIDERS,Invoice,BACS,None,04/04/2018 00:00,2018,1,1007541,B7766,KERBSIDE RECYCLING,A5191,AGENCY STAFF
GUILDFORD BOROUGH COUNCIL,STREET CLEANSING,COMENSURA LTD,32435,13/04/2018 00:00,1998703,309.06,0,AGENCY STAFF,OTHER RECRUITMENT AGENCIES AND SERVICE PROVIDERS,Invoice,BACS,None,11/04/2018 00:00,2018,1,1007818,K4551,STREET CLEANSING,A5191,AGENCY STAFF
GUILDFORD BOROUGH COUNCIL,REFUSE AND RECYCLING,COMENSURA LTD,32435,05/04/2018 00:00,1997392,-0.95,0,AGENCY STAFF,OTHER RECRUITMENT AGENCIES AND SERVICE PROVIDERS,Invoice,BACS,None,04/04/2018 00:00,2018,1,1007541,B7766,KERBSIDE RECYCLING,A5191,AGENCY STAFF
GUILDFORD BOROUGH COUNCIL,GF NET REVENUE ACCOUNT,COMPTON PARISH COUNCIL,1433,05/04/2018 00:00,1997026,11230,0,OOE - PARISH PRECEPTS PAID,LOCAL GOVERNMENT [UK ONLY],Invoice,BACS,None,03/04/2018 00:00,2018,1,PARISH PRECEPT,V01005,GF NET REVENUE ACCOUNT,2482,OOE - PARISH PRECEPTS PAID
GUILDFORD BOROUGH COUNCIL,PARISH & LOCAL LIAISON,COMPTON PARISH COUNCIL,1433,05/04/2018 00:00,1997026,920.5,0,LCTSS PARISH GRANT,LOCAL GOVERNMENT [UK ONLY],Invoice,BACS,None,03/04/2018 00:00,2018,1,PARISH PRECEPT,F1115,PARISH LIAISON,D7431,LCTSS PARISH GRANT
GUILDFORD BOROUGH COUNCIL,REFUSE AND RECYCLING,COMENSURA LTD,32435,05/04/2018 00:00,1997392,218.24,0,AGENCY STAFF,OTHER RECRUITMENT AGENCIES AND SERVICE PROVIDERS,Invoice,BACS,None,04/04/2018 00:00,2018,1,1007541,B7711,RECYCLING ADMINISTRATION,A5191,AGENCY STAFF
GUILDFORD BOROUGH COUNCIL,BUILDING MAINTENANCE,COMENSURA LTD,32435,01/05/2018 00:00,2000819,293.23,0,AGENCY STAFF,OTHER RECRUITMENT AGENCIES AND SERVICE PROVIDERS,Invoice,BACS,None,24/04/2018 00:00,2018,1,1008233,K1515,BUILDING MAINTENANCE,A5191,AGENCY STAFF
GUILDFORD BOROUGH COUNCIL,REFUSE AND RECYCLING,COMENSURA LTD,32435,01/05/2018 00:00,2000804,153.41,0,AGENCY STAFF,OTHER RECRUITMENT AGENCIES AND SERVICE PROVIDERS,Invoice,BACS,None,17/04/2018 00:00,2018,1,1007962,B7766,KERBSIDE RECYCLING,A5191,AGENCY STAFF
GUILDFORD BOROUGH COUNCIL,DEVELOPMENT CONTROL,COMENSURA LTD,32435,13/04/2018 00:00,1998703,368.91,0,AGENCY STAFF,OTHER RECRUITMENT AGENCIES AND SERVICE PROVIDERS,Invoice,BACS,None,11/04/2018 00:00,2018,1,1007818,D5100,DEVELOPMENT CONTROL - FEE EARN,A5191,AGENCY STAFF
GUILDFORD BOROUGH COUNCIL,STREET CLEANSING,COMENSURA LTD,32435,01/05/2018 00:00,2000819,-1.48,0,AGENCY STAFF,OTHER RECRUITMENT AGENCIES AND SERVICE PROVIDERS,Invoice,BACS,None,24/04/2018 00:00,2018,1,1008233,K4551,STREET CLEANSING,A5191,AGENCY STAFF
GUILDFORD BOROUGH COUNCIL,REFUSE AND RECYCLING,COMENSURA LTD,32435,01/05/2018 00:00,2000819,70.14,0,AGENCY STAFF,OTHER RECRUITMENT AGENCIES AND SERVICE PROVIDERS,Invoice,BACS,None,24/04/2018 00:00,2018,1,1008233,B7744,GREEN WASTE,A5191,AGENCY STAFF
GUILDFORD BOROUGH COUNCIL,STREET CLEANSING,COMENSURA LTD,32435,05/04/2018 00:00,1997392,285.92,0,AGENCY STAFF,OTHER RECRUITMENT AGENCIES AND SERVICE PROVIDERS,Invoice,BACS,None,04/04/2018 00:00,2018,1,1007541,K4551,STREET CLEANSING,A5191,AGENCY STAFF
GUILDFORD BOROUGH COUNCIL,REFUSE AND RECYCLING,COMENSURA LTD,32435,12/04/2018 00:00,1998294,655.66,0,AGENCY STAFF,OTHER RECRUITMENT AGENCIES AND SERVICE PROVIDERS,Invoice,BACS,None,11/04/2018 00:00,2018,1,581388,B7711,RECYCLING ADMINISTRATION,A5191,AGENCY STAFF
GUILDFORD BOROUGH COUNCIL,REFUSE AND RECYCLING,COMENSURA LTD,32435,13/04/2018 00:00,1998703,637.88,0,AGENCY STAFF,OTHER RECRUITMENT AGENCIES AND SERVICE PROVIDERS,Invoice,BACS,None,11/04/2018 00:00,2018,1,1007818,B7711,RECYCLING ADMINISTRATION,A5191,AGENCY STAFF
GUILDFORD BOROUGH COUNCIL,REFUSE AND RECYCLING,COMENSURA LTD,32435,13/04/2018 00:00,1998703,234.43,0,AGENCY STAFF,OTHER RECRUITMENT AGENCIES AND SERVICE PROVIDERS,Invoice,BACS,None,11/04/2018 00:00,2018,1,1007818,B7744,GREEN WASTE,A5191,AGENCY STAFF
GUILDFORD BOROUGH COUNCIL,LEGAL SERVICES,COMENSURA LTD,32435,13/04/2018 00:00,1998703,1329.65,0,AGENCY STAFF,OTHER RECRUITMENT AGENCIES AND SERVICE PROVIDERS,Invoice,BACS,None,11/04/2018 00:00,2018,1,1007818,G4525,LEGAL SERVICES,A5191,AGENCY STAFF
GUILDFORD BOROUGH COUNCIL,DEVELOPMENT CONTROL,COMENSURA LTD,32435,05/04/2018 00:00,1997392,314.84,0,AGENCY STAFF,OTHER RECRUITMENT AGENCIES AND SERVICE PROVIDERS,Invoice,BACS,None,04/04/2018 00:00,2018,1,1007541,D5100,DEVELOPMENT CONTROL - FEE EARN,A5191,AGENCY STAFF
GUILDFORD BOROUGH COUNCIL,REFUSE AND RECYCLING,COMENSURA LTD,32435,05/04/2018 00:00,1997392,379.16,0,AGENCY STAFF,OTHER RECRUITMENT AGENCIES AND SERVICE PROVIDERS,Invoice,BACS,None,04/04/2018 00:00,2018,1,1007541,B7766,KERBSIDE RECYCLING,A5191,AGENCY STAFF
GUILDFORD BOROUGH COUNCIL,STREET CLEANSING,COMENSURA LTD,32435,13/04/2018 00:00,1998703,424.7,0,AGENCY STAFF,OTHER RECRUITMENT AGENCIES AND SERVICE PROVIDERS,Invoice,BACS,None,11/04/2018 00:00,2018,1,1007818,K4551,STREET CLEANSING,A5191,AGENCY STAFF
GUILDFORD BOROUGH COUNCIL,STREET CLEANSING,COMENSURA LTD,32435,13/04/2018 00:00,1998703,293.79,0,AGENCY STAFF,OTHER RECRUITMENT AGENCIES AND SERVICE PROVIDERS,Invoice,BACS,None,11/04/2018 00:00,2018,1,1007818,K4551,STREET CLEANSING,A5191,AGENCY STAFF
GUILDFORD BOROUGH COUNCIL,INCOME COLLECTION,COMENSURA LTD,32435,05/04/2018 00:00,1997392,483.28,0,AGENCY STAFF,OTHER RECRUITMENT AGENCIES AND SERVICE PROVIDERS,Invoice,BACS,None,04/04/2018 00:00,2018,1,1007541,M1121,INCOME COLLECTION (BHS),A5191,AGENCY STAFF
GUILDFORD BOROUGH COUNCIL,REFUSE AND RECYCLING,COMENSURA LTD,32435,01/05/2018 00:00,2000804,600.49,0,AGENCY STAFF,OTHER RECRUITMENT AGENCIES AND SERVICE PROVIDERS,Invoice,BACS,None,17/04/2018 00:00,2018,1,1007962,B7766,KERBSIDE RECYCLING,A5191,AGENCY STAFF
GUILDFORD BOROUGH COUNCIL,FOOD AND SAFETY SERVICES,COMENSURA LTD,32435,05/04/2018 00:00,1997392,-1.65,0,AGENCY STAFF,OTHER RECRUITMENT AGENCIES AND SERVICE PROVIDERS,Invoice,BACS,None,04/04/2018 00:00,2018,1,1007541,C1111,FOOD AND SAFETY SERVICES,A5191,AGENCY STAFF
GUILDFORD BOROUGH COUNCIL,REFUSE AND RECYCLING,COMENSURA LTD,32435,01/05/2018 00:00,2000804,79.35,0,AGENCY STAFF,OTHER RECRUITMENT AGENCIES AND SERVICE PROVIDERS,Invoice,BACS,None,17/04/2018 00:00,2018,1,1007962,B7744,GREEN WASTE,A5191,AGENCY STAFF
GUILDFORD BOROUGH COUNCIL,REFUSE AND RECYCLING,COMENSURA LTD,32435,13/04/2018 00:00,1998703,639.63,0,AGENCY STAFF,OTHER RECRUITMENT AGENCIES AND SERVICE PROVIDERS,Invoice,BACS,None,11/04/2018 00:00,2018,1,1007818,K3551,REFUSE COLLECTION,A5191,AGENCY STAFF
GUILDFORD BOROUGH COUNCIL,INCOME COLLECTION,COMENSURA LTD,32435,01/05/2018 00:00,2000819,618.25,0,AGENCY STAFF,OTHER RECRUITMENT AGENCIES AND SERVICE PROVIDERS,Invoice,BACS,None,24/04/2018 00:00,2018,1,1008233,M1121,INCOME COLLECTION (BHS),A5191,AGENCY STAFF
GUILDFORD BOROUGH COUNCIL,BUILDING MAINTENANCE,COMENSURA LTD,32435,01/05/2018 00:00,2000819,370.74,0,AGENCY STAFF,OTHER RECRUITMENT AGENCIES AND SERVICE PROVIDERS,Invoice,BACS,None,24/04/2018 00:00,2018,1,1008233,K1515,BUILDING MAINTENANCE,A5191,AGENCY STAFF
GUILDFORD BOROUGH COUNCIL,STREET CLEANSING,COMENSURA LTD,32435,05/04/2018 00:00,1997392,426.6,0,AGENCY STAFF,OTHER RECRUITMENT AGENCIES AND SERVICE PROVIDERS,Invoice,BACS,None,04/04/2018 00:00,2018,1,1007541,K4551,STREET CLEANSING,A5191,AGENCY STAFF
GUILDFORD BOROUGH COUNCIL,DEVELOPMENT CONTROL,COMENSURA LTD,32435,05/04/2018 00:00,1997392,176.41,0,AGENCY STAFF,OTHER RECRUITMENT AGENCIES AND SERVICE PROVIDERS,Invoice,BACS,None,04/04/2018 00:00,2018,1,1007541,D5100,DEVELOPMENT CONTROL - FEE EARN,A5191,AGENCY STAFF
GUILDFORD BOROUGH COUNCIL,REFUSE AND RECYCLING,COMENSURA LTD,32435,13/04/2018 00:00,1998703,600.75,0,AGENCY STAFF,OTHER RECRUITMENT AGENCIES AND SERVICE PROVIDERS,Invoice,BACS,None,11/04/2018 00:00,2018,1,1007818,K3551,REFUSE COLLECTION,A5191,AGENCY STAFF
GUILDFORD BOROUGH COUNCIL,REFUSE AND RECYCLING,COMENSURA LTD,32435,01/05/2018 00:00,2000804,337.96,0,AGENCY STAFF,OTHER RECRUITMENT AGENCIES AND SERVICE PROVIDERS,Invoice,BACS,None,17/04/2018 00:00,2018,1,1007962,B7766,KERBSIDE RECYCLING,A5191,AGENCY STAFF
GUILDFORD BOROUGH COUNCIL,STREET CLEANSING,COMENSURA LTD,32435,05/04/2018 00:00,1997392,262.14,0,AGENCY STAFF,OTHER RECRUITMENT AGENCIES AND SERVICE PROVIDERS,Invoice,BACS,None,04/04/2018 00:00,2018,1,1007541,K4551,STREET CLEANSING,A5191,AGENCY STAFF
GUILDFORD BOROUGH COUNCIL,REFUSE AND RECYCLING,COMENSURA LTD,32435,05/04/2018 00:00,1997392,200.28,0,AGENCY STAFF,OTHER RECRUITMENT AGENCIES AND SERVICE PROVIDERS,Invoice,BACS,None,04/04/2018 00:00,2018,1,1007541,B7744,GREEN WASTE,A5191,AGENCY STAFF
GUILDFORD BOROUGH COUNCIL,REFUSE AND RECYCLING,COMENSURA LTD,32435,01/05/2018 00:00,2000819,308.96,0,AGENCY STAFF,OTHER RECRUITMENT AGENCIES AND SERVICE PROVIDERS,Invoice,BACS,None,24/04/2018 00:00,2018,1,1008233,K3551,REFUSE COLLECTION,A5191,AGENCY STAFF
GUILDFORD BOROUGH COUNCIL,FOOD AND SAFETY SERVICES,COMENSURA LTD,32435,13/04/2018 00:00,1998703,-2.08,0,AGENCY STAFF,OTHER RECRUITMENT AGENCIES AND SERVICE PROVIDERS,Invoice,BACS,None,11/04/2018 00:00,2018,1,1007818,C1111,FOOD AND SAFETY SERVICES,A5191,AGENCY STAFF
GUILDFORD BOROUGH COUNCIL,STREET CLEANSING,COMENSURA LTD,32435,01/05/2018 00:00,2000819,493.58,0,AGENCY STAFF,OTHER RECRUITMENT AGENCIES AND SERVICE PROVIDERS,Invoice,BACS,None,24/04/2018 00:00,2018,1,1008233,K4551,STREET CLEANSING,A5191,AGENCY STAFF
GUILDFORD BOROUGH COUNCIL,DEVELOPMENT CONTROL,COMENSURA LTD,32435,05/04/2018 00:00,1997392,359.04,0,AGENCY STAFF,OTHER RECRUITMENT AGENCIES AND SERVICE PROVIDERS,Invoice,BACS,None,04/04/2018 00:00,2018,1,1007541,D5200,DEVELOPMENT CONTROL NON FEE,A5191,AGENCY STAFF
GUILDFORD BOROUGH COUNCIL,REFUSE AND RECYCLING,COMENSURA LTD,32435,05/04/2018 00:00,1997392,552.9,0,AGENCY STAFF,OTHER RECRUITMENT AGENCIES AND SERVICE PROVIDERS,Invoice,BACS,None,04/04/2018 00:00,2018,1,1007541,B7711,RECYCLING ADMINISTRATION,A5191,AGENCY STAFF
GUILDFORD BOROUGH COUNCIL,REFUSE AND RECYCLING,COMENSURA LTD,32435,01/05/2018 00:00,2000804,191.6,0,AGENCY STAFF,OTHER RECRUITMENT AGENCIES AND SERVICE PROVIDERS,Invoice,BACS,None,17/04/2018 00:00,2018,1,1007962,B7766,KERBSIDE RECYCLING,A5191,AGENCY STAFF
GUILDFORD BOROUGH COUNCIL,REFUSE AND RECYCLING,COMENSURA LTD,32435,01/05/2018 00:00,2000804,-1,0,AGENCY STAFF,OTHER RECRUITMENT AGENCIES AND SERVICE PROVIDERS,Invoice,BACS,None,17/04/2018 00:00,2018,1,1007962,B7766,KERBSIDE RECYCLING,A5191,AGENCY STAFF
GUILDFORD BOROUGH COUNCIL,REFUSE AND RECYCLING,COMENSURA LTD,32435,13/04/2018 00:00,1998703,400.35,0,AGENCY STAFF,OTHER RECRUITMENT AGENCIES AND SERVICE PROVIDERS,Invoice,BACS,None,11/04/2018 00:00,2018,1,1007818,B7744,GREEN WASTE,A5191,AGENCY STAFF
GUILDFORD BOROUGH COUNCIL,REFUSE AND RECYCLING,COMENSURA LTD,32435,13/04/2018 00:00,1998703,404.22,0,AGENCY STAFF,OTHER RECRUITMENT AGENCIES AND SERVICE PROVIDERS,Invoice,BACS,None,11/04/2018 00:00,2018,1,1007818,B7744,GREEN WASTE,A5191,AGENCY STAFF
GUILDFORD BOROUGH COUNCIL,ENVIRONMENTAL CONTROL,COMENSURA LTD,32435,13/04/2018 00:00,1998703,390.08,0,AGENCY STAFF,OTHER RECRUITMENT AGENCIES AND SERVICE PROVIDERS,Invoice,BACS,None,11/04/2018 00:00,2018,1,1007818,C1113,ENVIRONMENTAL CONTROL,A5191,AGENCY STAFF
GUILDFORD BOROUGH COUNCIL,STREET CLEANSING,COMENSURA LTD,32435,13/04/2018 00:00,1998703,-1.18,0,AGENCY STAFF,OTHER RECRUITMENT AGENCIES AND SERVICE PROVIDERS,Invoice,BACS,None,11/04/2018 00:00,2018,1,1007818,K4551,STREET CLEANSING,A5191,AGENCY STAFF
GUILDFORD BOROUGH COUNCIL,REFUSE AND RECYCLING,COMENSURA LTD,32435,13/04/2018 00:00,1998703,-1.68,0,AGENCY STAFF,OTHER RECRUITMENT AGENCIES AND SERVICE PROVIDERS,Invoice,BACS,None,11/04/2018 00:00,2018,1,1007818,K3551,REFUSE COLLECTION,A5191,AGENCY STAFF
GUILDFORD BOROUGH COUNCIL,REFUSE AND RECYCLING,COMENSURA LTD,32435,01/05/2018 00:00,2000819,391.46,0,AGENCY STAFF,OTHER RECRUITMENT AGENCIES AND SERVICE PROVIDERS,Invoice,BACS,None,24/04/2018 00:00,2018,1,1008233,K3551,REFUSE COLLECTION,A5191,AGENCY STAFF
GUILDFORD BOROUGH COUNCIL,REFUSE AND RECYCLING,COMENSURA LTD,32435,01/05/2018 00:00,2000804,-1.38,0,AGENCY STAFF,OTHER RECRUITMENT AGENCIES AND SERVICE PROVIDERS,Invoice,BACS,None,17/04/2018 00:00,2018,1,1007962,B7766,KERBSIDE RECYCLING,A5191,AGENCY STAFF
GUILDFORD BOROUGH COUNCIL,REFUSE AND RECYCLING,COMENSURA LTD,32435,01/05/2018 00:00,2000804,75.15,0,AGENCY STAFF,OTHER RECRUITMENT AGENCIES AND SERVICE PROVIDERS,Invoice,BACS,None,17/04/2018 00:00,2018,1,1007962,B7766,KERBSIDE RECYCLING,A5191,AGENCY STAFF
GUILDFORD BOROUGH COUNCIL,REFUSE AND RECYCLING,COMENSURA LTD,32435,01/05/2018 00:00,2000819,512.93,0,AGENCY STAFF,OTHER RECRUITMENT AGENCIES AND SERVICE PROVIDERS,Invoice,BACS,None,24/04/2018 00:00,2018,1,1008233,K3551,REFUSE COLLECTION,A5191,AGENCY STAFF
GUILDFORD BOROUGH COUNCIL,REFUSE AND RECYCLING,COMENSURA LTD,32435,05/04/2018 00:00,1997392,96.22,0,AGENCY STAFF,OTHER RECRUITMENT AGENCIES AND SERVICE PROVIDERS,Invoice,BACS,None,04/04/2018 00:00,2018,1,1007541,B7744,GREEN WASTE,A5191,AGENCY STAFF
GUILDFORD BOROUGH COUNCIL,STREET CLEANSING,COMENSURA LTD,32435,01/05/2018 00:00,2000804,493.58,0,AGENCY STAFF,OTHER RECRUITMENT AGENCIES AND SERVICE PROVIDERS,Invoice,BACS,None,17/04/2018 00:00,2018,1,1007962,K4551,STREET CLEANSING,A5191,AGENCY STAFF
GUILDFORD BOROUGH COUNCIL,REFUSE AND RECYCLING,COMENSURA LTD,32435,12/04/2018 00:00,1998294,509.96,0,AGENCY STAFF,OTHER RECRUITMENT AGENCIES AND SERVICE PROVIDERS,Invoice,BACS,None,11/04/2018 00:00,2018,1,581388,B7711,RECYCLING ADMINISTRATION,A5191,AGENCY STAFF
GUILDFORD BOROUGH COUNCIL,REFUSE AND RECYCLING,COMENSURA LTD,32435,05/04/2018 00:00,1997392,183.61,0,AGENCY STAFF,OTHER RECRUITMENT AGENCIES AND SERVICE PROVIDERS,Invoice,BACS,None,04/04/2018 00:00,2018,1,1007541,B7744,GREEN WASTE,A5191,AGENCY STAFF
GUILDFORD BOROUGH COUNCIL,REFUSE AND RECYCLING,COMENSURA LTD,32435,05/04/2018 00:00,1997392,211.66,0,AGENCY STAFF,OTHER RECRUITMENT AGENCIES AND SERVICE PROVIDERS,Invoice,BACS,None,04/04/2018 00:00,2018,1,1007541,B7766,KERBSIDE RECYCLING,A5191,AGENCY STAFF
GUILDFORD BOROUGH COUNCIL,STREET CLEANSING,COMENSURA LTD,32435,01/05/2018 00:00,2000804,535.76,0,AGENCY STAFF,OTHER RECRUITMENT AGENCIES AND SERVICE PROVIDERS,Invoice,BACS,None,17/04/2018 00:00,2018,1,1007962,K4551,STREET CLEANSING,A5191,AGENCY STAFF
GUILDFORD BOROUGH COUNCIL,LEGAL SERVICES,COMENSURA LTD,32435,13/04/2018 00:00,1998703,407.78,0,AGENCY STAFF,OTHER RECRUITMENT AGENCIES AND SERVICE PROVIDERS,Invoice,BACS,None,11/04/2018 00:00,2018,1,1007818,G4525,LEGAL SERVICES,A5191,AGENCY STAFF
GUILDFORD BOROUGH COUNCIL,REFUSE AND RECYCLING,COMENSURA LTD,32435,05/04/2018 00:00,1997392,192.44,0,AGENCY STAFF,OTHER RECRUITMENT AGENCIES AND SERVICE PROVIDERS,Invoice,BACS,None,04/04/2018 00:00,2018,1,1007541,B7766,KERBSIDE RECYCLING,A5191,AGENCY STAFF
GUILDFORD BOROUGH COUNCIL,REFUSE AND RECYCLING,COMENSURA LTD,32435,13/04/2018 00:00,1998703,190.9,0,AGENCY STAFF,OTHER RECRUITMENT AGENCIES AND SERVICE PROVIDERS,Invoice,BACS,None,11/04/2018 00:00,2018,1,1007818,K3551,REFUSE COLLECTION,A5191,AGENCY STAFF
GUILDFORD BOROUGH COUNCIL,REFUSE AND RECYCLING,COMENSURA LTD,32435,12/04/2018 00:00,1998294,-1.02,0,AGENCY STAFF,OTHER RECRUITMENT AGENCIES AND SERVICE PROVIDERS,Invoice,BACS,None,11/04/2018 00:00,2018,1,581388,B7711,RECYCLING ADMINISTRATION,A5191,AGENCY STAFF
GUILDFORD BOROUGH COUNCIL,DEVELOPMENT CONTROL,COMENSURA LTD,32435,01/05/2018 00:00,2000804,377.39,0,AGENCY STAFF,OTHER RECRUITMENT AGENCIES AND SERVICE PROVIDERS,Invoice,BACS,None,17/04/2018 00:00,2018,1,1007962,D5100,DEVELOPMENT CONTROL - FEE EARN,A5191,AGENCY STAFF
GUILDFORD BOROUGH COUNCIL,REFUSE AND RECYCLING,COMENSURA LTD,32435,01/05/2018 00:00,2000804,659.04,0,AGENCY STAFF,OTHER RECRUITMENT AGENCIES AND SERVICE PROVIDERS,Invoice,BACS,None,17/04/2018 00:00,2018,1,1007962,B7766,KERBSIDE RECYCLING,A5191,AGENCY STAFF
GUILDFORD BOROUGH COUNCIL,REFUSE AND RECYCLING,COMENSURA LTD,32435,13/04/2018 00:00,1998703,198.6,0,AGENCY STAFF,OTHER RECRUITMENT AGENCIES AND SERVICE PROVIDERS,Invoice,BACS,None,11/04/2018 00:00,2018,1,1007818,B7744,GREEN WASTE,A5191,AGENCY STAFF
GUILDFORD BOROUGH COUNCIL,FOOD AND SAFETY SERVICES,COMENSURA LTD,32435,05/04/2018 00:00,1997392,456,0,AGENCY STAFF,OTHER RECRUITMENT AGENCIES AND SERVICE PROVIDERS,Invoice,BACS,None,04/04/2018 00:00,2018,1,1007541,C1111,FOOD AND SAFETY SERVICES,A5191,AGENCY STAFF
GUILDFORD BOROUGH COUNCIL,REFUSE AND RECYCLING,COMENSURA LTD,32435,01/05/2018 00:00,2000819,-1.26,0,AGENCY STAFF,OTHER RECRUITMENT AGENCIES AND SERVICE PROVIDERS,Invoice,BACS,None,24/04/2018 00:00,2018,1,1008233,K3551,REFUSE COLLECTION,A5191,AGENCY STAFF
GUILDFORD BOROUGH COUNCIL,REFUSE AND RECYCLING,COMENSURA LTD,32435,05/04/2018 00:00,1997392,576.19,0,AGENCY STAFF,OTHER RECRUITMENT AGENCIES AND SERVICE PROVIDERS,Invoice,BACS,None,04/04/2018 00:00,2018,1,1007541,B7766,KERBSIDE RECYCLING,A5191,AGENCY STAFF
GUILDFORD BOROUGH COUNCIL,REFUSE AND RECYCLING,COMENSURA LTD,32435,01/05/2018 00:00,2000819,546.84,0,AGENCY STAFF,OTHER RECRUITMENT AGENCIES AND SERVICE PROVIDERS,Invoice,BACS,None,24/04/2018 00:00,2018,1,1008233,B7744,GREEN WASTE,A5191,AGENCY STAFF
GUILDFORD BOROUGH COUNCIL,REFUSE AND RECYCLING,COMENSURA LTD,32435,01/05/2018 00:00,2000804,205.04,0,AGENCY STAFF,OTHER RECRUITMENT AGENCIES AND SERVICE PROVIDERS,Invoice,BACS,None,17/04/2018 00:00,2018,1,1007962,B7744,GREEN WASTE,A5191,AGENCY STAFF
GUILDFORD BOROUGH COUNCIL,REFUSE AND RECYCLING,COMENSURA LTD,32435,01/05/2018 00:00,2000804,531.89,0,AGENCY STAFF,OTHER RECRUITMENT AGENCIES AND SERVICE PROVIDERS,Invoice,BACS,None,17/04/2018 00:00,2018,1,1007962,B7766,KERBSIDE RECYCLING,A5191,AGENCY STAFF
GUILDFORD BOROUGH COUNCIL,REFUSE AND RECYCLING,COMENSURA LTD,32435,01/05/2018 00:00,2000819,100.05,0,AGENCY STAFF,OTHER RECRUITMENT AGENCIES AND SERVICE PROVIDERS,Invoice,BACS,None,24/04/2018 00:00,2018,1,1008233,B7744,GREEN WASTE,A5191,AGENCY STAFF
GUILDFORD BOROUGH COUNCIL,MAJOR PROJECTS,COMENSURA LTD,32435,01/05/2018 00:00,2000819,2345.49,0,AGENCY STAFF,OTHER RECRUITMENT AGENCIES AND SERVICE PROVIDERS,Invoice,BACS,None,24/04/2018 00:00,2018,1,1008233,F5530,MAJOR PROJECTS,A5191,AGENCY STAFF
GUILDFORD BOROUGH COUNCIL,INCOME COLLECTION,COMENSURA LTD,32435,01/05/2018 00:00,2000804,618.25,0,AGENCY STAFF,OTHER RECRUITMENT AGENCIES AND SERVICE PROVIDERS,Invoice,BACS,None,17/04/2018 00:00,2018,1,1007962,M1121,INCOME COLLECTION (BHS),A5191,AGENCY STAFF
GUILDFORD BOROUGH COUNCIL,STREET CLEANSING,COMENSURA LTD,32435,13/04/2018 00:00,1998703,391.28,0,AGENCY STAFF,OTHER RECRUITMENT AGENCIES AND SERVICE PROVIDERS,Invoice,BACS,None,11/04/2018 00:00,2018,1,1007818,K4551,STREET CLEANSING,A5191,AGENCY STAFF
GUILDFORD BOROUGH COUNCIL,REFUSE AND RECYCLING,COMENSURA LTD,32435,01/05/2018 00:00,2000804,685.58,0,AGENCY STAFF,OTHER RECRUITMENT AGENCIES AND SERVICE PROVIDERS,Invoice,BACS,None,17/04/2018 00:00,2018,1,1007962,B7766,KERBSIDE RECYCLING,A5191,AGENCY STAFF
GUILDFORD BOROUGH COUNCIL,REFUSE AND RECYCLING,COMENSURA LTD,32435,01/05/2018 00:00,2000804,409.01,0,AGENCY STAFF,OTHER RECRUITMENT AGENCIES AND SERVICE PROVIDERS,Invoice,BACS,None,17/04/2018 00:00,2018,1,1007962,B7766,KERBSIDE RECYCLING,A5191,AGENCY STAFF
GUILDFORD BOROUGH COUNCIL,DEVELOPMENT CONTROL,COMENSURA LTD,32435,01/05/2018 00:00,2000819,476.91,0,AGENCY STAFF,OTHER RECRUITMENT AGENCIES AND SERVICE PROVIDERS,Invoice,BACS,None,24/04/2018 00:00,2018,1,1008233,D5100,DEVELOPMENT CONTROL - FEE EARN,A5191,AGENCY STAFF
GUILDFORD BOROUGH COUNCIL,REFUSE AND RECYCLING,COMENSURA LTD,32435,01/05/2018 00:00,2000804,-1.72,0,AGENCY STAFF,OTHER RECRUITMENT AGENCIES AND SERVICE PROVIDERS,Invoice,BACS,None,17/04/2018 00:00,2018,1,1007962,B7744,GREEN WASTE,A5191,AGENCY STAFF
GUILDFORD BOROUGH COUNCIL,REFUSE AND RECYCLING,COMENSURA LTD,32435,01/05/2018 00:00,2000804,519.29,0,AGENCY STAFF,OTHER RECRUITMENT AGENCIES AND SERVICE PROVIDERS,Invoice,BACS,None,17/04/2018 00:00,2018,1,1007962,B7766,KERBSIDE RECYCLING,A5191,AGENCY STAFF
GUILDFORD BOROUGH COUNCIL,PUBLIC RELATIONS,WHISTL UK LIMITED,68868,13/04/2018 00:00,1998694,0.25,0,POSTAGE FROM FRANKING,POSTAL AND COURIER SERVICE PROVIDERS,Invoice,BACS,None,05/04/2018 00:00,2018,1,PS18001693,F5551,PUBLIC RELATIONS & MARKETING,D5467,POSTAGE FROM FRANKING
GUILDFORD BOROUGH COUNCIL,DEVELOPMENT CONTROL,WHISTL UK LIMITED,68868,13/04/2018 00:00,1998694,49.39,0,POSTAGE FROM FRANKING,POSTAL AND COURIER SERVICE PROVIDERS,Invoice,BACS,None,05/04/2018 00:00,2018,1,PS18001693,D5100,DEVELOPMENT CONTROL - FEE EARN,D5467,POSTAGE FROM FRANKING
GUILDFORD BOROUGH COUNCIL,INTERNAL AUDIT,WHISTL UK LIMITED,68868,13/04/2018 00:00,1998694,0.42,0,POSTAGE FROM FRANKING,POSTAL AND COURIER SERVICE PROVIDERS,Invoice,BACS,None,05/04/2018 00:00,2018,1,PS18001693,G3525,INTERNAL AUDIT,D5467,POSTAGE FROM FRANKING
GUILDFORD BOROUGH COUNCIL,BUSINESS IMPROVEMENT,WHISTL UK LIMITED,68868,13/04/2018 00:00,1998694,0.42,0,POSTAGE FROM FRANKING,POSTAL AND COURIER SERVICE PROVIDERS,Invoice,BACS,None,05/04/2018 00:00,2018,1,PS18001693,G3530,BUSINESS IMPROVEMENT,D5467,POSTAGE FROM FRANKING
GUILDFORD BOROUGH COUNCIL,PRIVATE SECTOR HOUSING,WHISTL UK LIMITED,68868,01/05/2018 00:00,2000806,20.31,0,POSTAGE FROM FRANKING,POSTAL AND COURIER SERVICE PROVIDERS,Invoice,BACS,None,18/04/2018 00:00,2018,1,PS18001951,C5122,PRIVATE SECTOR HOUSING STANDAR,D5467,POSTAGE FROM FRANKING
GUILDFORD BOROUGH COUNCIL,POLICY,WHISTL UK LIMITED,68868,01/05/2018 00:00,2000806,10.22,0,POSTAGE FROM FRANKING,POSTAL AND COURIER SERVICE PROVIDERS,Invoice,BACS,None,18/04/2018 00:00,2018,1,PS18001951,D5300,POLICY,D5467,POSTAGE FROM FRANKING
GUILDFORD BOROUGH COUNCIL,OPERATIONAL SERVS OVERHEAD AC,WHISTL UK LIMITED,68868,01/05/2018 00:00,2000805,88.22,0,POSTAGE FROM FRANKING,POSTAL AND COURIER SERVICE PROVIDERS,Invoice,BACS,None,12/04/2018 00:00,2018,1,PS18001826,K1519,OPERATIONAL SERVS OVERHEAD AC,D5467,POSTAGE FROM FRANKING
GUILDFORD BOROUGH COUNCIL,GARAGE MANAGEMENT,WHISTL UK LIMITED,68868,13/04/2018 00:00,1998694,7.92,0,POSTAGE FROM FRANKING,POSTAL AND COURIER SERVICE PROVIDERS,Invoice,BACS,None,05/04/2018 00:00,2018,1,PS18001693,M1172,GARAGE MANAGEMENT (BHS),D5467,POSTAGE FROM FRANKING
GUILDFORD BOROUGH COUNCIL,ELECTORAL REGISTRATION,WHISTL UK LIMITED,68868,01/05/2018 00:00,2000805,159.09,0,POSTAGE FROM FRANKING,POSTAL AND COURIER SERVICE PROVIDERS,Invoice,BACS,None,12/04/2018 00:00,2018,1,PS18001826,F2511,ELECTORAL REGISTRATION,D5467,POSTAGE FROM FRANKING
GUILDFORD BOROUGH COUNCIL,VOID PROPERTY MANAGEMENT,WHISTL UK LIMITED,68868,01/05/2018 00:00,2000806,6.69,0,POSTAGE FROM FRANKING,POSTAL AND COURIER SERVICE PROVIDERS,Invoice,BACS,None,18/04/2018 00:00,2018,1,PS18001951,M1141,VOID PROPERTY MGMT (SHS),D5467,POSTAGE FROM FRANKING
GUILDFORD BOROUGH COUNCIL,ACCOUNTANCY,WHISTL UK LIMITED,68868,01/05/2018 00:00,2000806,36.38,0,POSTAGE FROM FRANKING,POSTAL AND COURIER SERVICE PROVIDERS,Invoice,BACS,None,18/04/2018 00:00,2018,1,PS18001951,G3565,ACCOUNTANCY SERVICES,D5467,POSTAGE FROM FRANKING
GUILDFORD BOROUGH COUNCIL,ENGINEERING AND TRANS SERVICES,WHISTL UK LIMITED,68868,13/04/2018 00:00,1998694,3.74,0,POSTAGE FROM FRANKING,POSTAL AND COURIER SERVICE PROVIDERS,Invoice,BACS,None,05/04/2018 00:00,2018,1,PS18001693,G5538,ENGINEERING AND TRANS SERVICES,D5467,POSTAGE FROM FRANKING
GUILDFORD BOROUGH COUNCIL,TENANT SELECTION,WHISTL UK LIMITED,68868,01/05/2018 00:00,2000806,20,0,POSTAGE FROM FRANKING,POSTAL AND COURIER SERVICE PROVIDERS,Invoice,BACS,None,18/04/2018 00:00,2018,1,PS18001951,M1131,"ADVICE,REGS,TENANT SELECT(SHS)",D5467,POSTAGE FROM FRANKING
GUILDFORD BOROUGH COUNCIL,LEISURE COMMUNITY CENTRES,WHISTL UK LIMITED,68868,13/04/2018 00:00,1998694,0.91,0,POSTAGE FROM FRANKING,POSTAL AND COURIER SERVICE PROVIDERS,Invoice,BACS,None,05/04/2018 00:00,2018,1,PS18001693,A8111,YOUTH & COMM CENTRES- ADMIN.,D5467,POSTAGE FROM FRANKING
GUILDFORD BOROUGH COUNCIL,HOMELESSNESS,WHISTL UK LIMITED,68868,13/04/2018 00:00,1998694,2.08,0,POSTAGE FROM FRANKING,POSTAL AND COURIER SERVICE PROVIDERS,Invoice,BACS,None,05/04/2018 00:00,2018,1,PS18001693,C3311,HOMELESSNESS ADMINISTRATION,D5467,POSTAGE FROM FRANKING
GUILDFORD BOROUGH COUNCIL,TRANSPORTATION,WHISTL UK LIMITED,68868,01/05/2018 00:00,2000805,2.86,0,POSTAGE FROM FRANKING,POSTAL AND COURIER SERVICE PROVIDERS,Invoice,BACS,None,12/04/2018 00:00,2018,1,PS18001826,B5122,TRANSPORTATION INITIATIVES,D5467,POSTAGE FROM FRANKING
GUILDFORD BOROUGH COUNCIL,ELECTORAL REGISTRATION,WHISTL UK LIMITED,68868,13/04/2018 00:00,1998694,16.22,0,POSTAGE FROM FRANKING,POSTAL AND COURIER SERVICE PROVIDERS,Invoice,BACS,None,05/04/2018 00:00,2018,1,PS18001693,F2511,ELECTORAL REGISTRATION,D5467,POSTAGE FROM FRANKING
GUILDFORD BOROUGH COUNCIL,MUSEUM,WHISTL UK LIMITED,68868,01/05/2018 00:00,2000805,11.47,0,POSTAGE FROM FRANKING,POSTAL AND COURIER SERVICE PROVIDERS,Invoice,BACS,None,12/04/2018 00:00,2018,1,PS18001826,A5511,MUSEUM,D5467,POSTAGE FROM FRANKING
GUILDFORD BOROUGH COUNCIL,OPERATIONS TECHNICAL SERVICES,WHISTL UK LIMITED,68868,01/05/2018 00:00,2000806,1.38,0,POSTAGE FROM FRANKING,POSTAL AND COURIER SERVICE PROVIDERS,Invoice,BACS,None,18/04/2018 00:00,2018,1,PS18001951,G3547,ICT DEVELOPMENT,D5467,POSTAGE FROM FRANKING
GUILDFORD BOROUGH COUNCIL,HOMELESSNESS,WHISTL UK LIMITED,68868,01/05/2018 00:00,2000805,6.27,0,POSTAGE FROM FRANKING,POSTAL AND COURIER SERVICE PROVIDERS,Invoice,BACS,None,12/04/2018 00:00,2018,1,PS18001826,C3311,HOMELESSNESS ADMINISTRATION,D5467,POSTAGE FROM FRANKING
GUILDFORD BOROUGH COUNCIL,PAYMENTS AND PURCHASING,WHISTL UK LIMITED,68868,01/05/2018 00:00,2000805,2.98,0,POSTAGE FROM FRANKING,POSTAL AND COURIER SERVICE PROVIDERS,Invoice,BACS,None,12/04/2018 00:00,2018,1,PS18001826,G3598,PURCHASING,D5467,POSTAGE FROM FRANKING
GUILDFORD BOROUGH COUNCIL,BUSINESS & TOURISM,WHISTL UK LIMITED,68868,13/04/2018 00:00,1998694,2.95,0,POSTAGE FROM FRANKING,POSTAL AND COURIER SERVICE PROVIDERS,Invoice,BACS,None,05/04/2018 00:00,2018,1,PS18001693,F5545,TOURISM,D5467,POSTAGE FROM FRANKING
GUILDFORD BOROUGH COUNCIL,BUSINESS RATES,WHISTL UK LIMITED,68868,13/04/2018 00:00,1998694,3.11,0,POSTAGE FROM FRANKING,POSTAL AND COURIER SERVICE PROVIDERS,Invoice,BACS,None,05/04/2018 00:00,2018,1,PS18001693,F6151,BUSINESS RATES COLLECTION EXPS,D5467,POSTAGE FROM FRANKING
GUILDFORD BOROUGH COUNCIL,TOWN CENTRE MANAGEMENT,WHISTL UK LIMITED,68868,01/05/2018 00:00,2000805,2.2,0,POSTAGE FROM FRANKING,POSTAL AND COURIER SERVICE PROVIDERS,Invoice,BACS,None,12/04/2018 00:00,2018,1,PS18001826,F5550,FARMERS MARKET,D5467,POSTAGE FROM FRANKING
GUILDFORD BOROUGH COUNCIL,HOUSING BENEFITS,WHISTL UK LIMITED,68868,01/05/2018 00:00,2000806,492.34,0,POSTAGE FROM FRANKING,POSTAL AND COURIER SERVICE PROVIDERS,Invoice,BACS,None,18/04/2018 00:00,2018,1,PS18001951,C4511,HOUSING BENEFITS ADMIN.,D5467,POSTAGE FROM FRANKING
GUILDFORD BOROUGH COUNCIL,TOWN CENTRE MANAGEMENT,WHISTL UK LIMITED,68868,13/04/2018 00:00,1998694,0.73,0,POSTAGE FROM FRANKING,POSTAL AND COURIER SERVICE PROVIDERS,Invoice,BACS,None,05/04/2018 00:00,2018,1,PS18001693,F5550,FARMERS MARKET,D5467,POSTAGE FROM FRANKING
GUILDFORD BOROUGH COUNCIL,GARAGE MANAGEMENT,WHISTL UK LIMITED,68868,01/05/2018 00:00,2000805,7.18,0,POSTAGE FROM FRANKING,POSTAL AND COURIER SERVICE PROVIDERS,Invoice,BACS,None,12/04/2018 00:00,2018,1,PS18001826,M1172,GARAGE MANAGEMENT (BHS),D5467,POSTAGE FROM FRANKING
GUILDFORD BOROUGH COUNCIL,FOOD AND SAFETY SERVICES,WHISTL UK LIMITED,68868,01/05/2018 00:00,2000805,6.56,0,POSTAGE FROM FRANKING,POSTAL AND COURIER SERVICE PROVIDERS,Invoice,BACS,None,12/04/2018 00:00,2018,1,PS18001826,C1111,FOOD AND SAFETY SERVICES,D5467,POSTAGE FROM FRANKING
GUILDFORD BOROUGH COUNCIL,TOURIST INFORMATION CENTRE,WHISTL UK LIMITED,68868,01/05/2018 00:00,2000805,8.86,0,POSTAGE FROM FRANKING,POSTAL AND COURIER SERVICE PROVIDERS,Invoice,BACS,None,12/04/2018 00:00,2018,1,PS18001826,F5541,TOURIST INFORMATION CENTRE,D5467,POSTAGE FROM FRANKING
GUILDFORD BOROUGH COUNCIL,ENVIRONMENTAL CONTROL,WHISTL UK LIMITED,68868,13/04/2018 00:00,1998694,2.18,0,POSTAGE FROM FRANKING,POSTAL AND COURIER SERVICE PROVIDERS,Invoice,BACS,None,05/04/2018 00:00,2018,1,PS18001693,C1113,ENVIRONMENTAL CONTROL,D5467,POSTAGE FROM FRANKING
GUILDFORD BOROUGH COUNCIL,LEISURE PLAY DEVELOPMENT,WHISTL UK LIMITED,68868,01/05/2018 00:00,2000806,3.94,0,POSTAGE FROM FRANKING,POSTAL AND COURIER SERVICE PROVIDERS,Invoice,BACS,None,18/04/2018 00:00,2018,1,PS18001951,A7211,PLAY DEVELOPMENT,D5467,POSTAGE FROM FRANKING
GUILDFORD BOROUGH COUNCIL,POLICY,WHISTL UK LIMITED,68868,01/05/2018 00:00,2000806,20.43,0,POSTAGE FROM FRANKING,POSTAL AND COURIER SERVICE PROVIDERS,Invoice,BACS,None,18/04/2018 00:00,2018,1,PS18001951,D5555,DESIGN AND CONSERVATION,D5467,POSTAGE FROM FRANKING
GUILDFORD BOROUGH COUNCIL,TOWN CENTRE MANAGEMENT,WHISTL UK LIMITED,68868,01/05/2018 00:00,2000806,1.84,0,POSTAGE FROM FRANKING,POSTAL AND COURIER SERVICE PROVIDERS,Invoice,BACS,None,18/04/2018 00:00,2018,1,PS18001951,F5550,FARMERS MARKET,D5467,POSTAGE FROM FRANKING
GUILDFORD BOROUGH COUNCIL,HOUSING BENEFITS,WHISTL UK LIMITED,68868,01/05/2018 00:00,2000805,433.62,0,POSTAGE FROM FRANKING,POSTAL AND COURIER SERVICE PROVIDERS,Invoice,BACS,None,12/04/2018 00:00,2018,1,PS18001826,C4511,HOUSING BENEFITS ADMIN.,D5467,POSTAGE FROM FRANKING
GUILDFORD BOROUGH COUNCIL,TENANTS' SERVICES,WHISTL UK LIMITED,68868,01/05/2018 00:00,2000805,38.78,0,POSTAGE FROM FRANKING,POSTAL AND COURIER SERVICE PROVIDERS,Invoice,BACS,None,12/04/2018 00:00,2018,1,PS18001826,M1151,TENANTS SERVICES (BHS),D5467,POSTAGE FROM FRANKING
GUILDFORD BOROUGH COUNCIL,ELECTORAL REGISTRATION,WHISTL UK LIMITED,68868,01/05/2018 00:00,2000806,81.06,0,POSTAGE FROM FRANKING,POSTAL AND COURIER SERVICE PROVIDERS,Invoice,BACS,None,18/04/2018 00:00,2018,1,PS18001951,F2511,ELECTORAL REGISTRATION,D5467,POSTAGE FROM FRANKING
GUILDFORD BOROUGH COUNCIL,VOID PROPERTY MANAGEMENT,WHISTL UK LIMITED,68868,13/04/2018 00:00,1998694,2.66,0,POSTAGE FROM FRANKING,POSTAL AND COURIER SERVICE PROVIDERS,Invoice,BACS,None,05/04/2018 00:00,2018,1,PS18001693,M1141,VOID PROPERTY MGMT (SHS),D5467,POSTAGE FROM FRANKING
GUILDFORD BOROUGH COUNCIL,OFFICE SERVICES TEAM,WHISTL UK LIMITED,68868,01/05/2018 00:00,2000806,1.77,0,POSTAGE FROM FRANKING,POSTAL AND COURIER SERVICE PROVIDERS,Invoice,BACS,None,18/04/2018 00:00,2018,1,PS18001951,G4585,OFFICE SERVICES,D5467,POSTAGE FROM FRANKING
GUILDFORD BOROUGH COUNCIL,GARAGE MANAGEMENT,WHISTL UK LIMITED,68868,01/05/2018 00:00,2000806,102.25,0,POSTAGE FROM FRANKING,POSTAL AND COURIER SERVICE PROVIDERS,Invoice,BACS,None,18/04/2018 00:00,2018,1,PS18001951,M1172,GARAGE MANAGEMENT (BHS),D5467,POSTAGE FROM FRANKING
GUILDFORD BOROUGH COUNCIL,TENANTS' SERVICES,WHISTL UK LIMITED,68868,13/04/2018 00:00,1998694,42.75,0,POSTAGE FROM FRANKING,POSTAL AND COURIER SERVICE PROVIDERS,Invoice,BACS,None,05/04/2018 00:00,2018,1,PS18001693,M1151,TENANTS SERVICES (BHS),D5467,POSTAGE FROM FRANKING
GUILDFORD BOROUGH COUNCIL,LEISURE PLAY DEVELOPMENT,WHISTL UK LIMITED,68868,13/04/2018 00:00,1998694,1.56,0,POSTAGE FROM FRANKING,POSTAL AND COURIER SERVICE PROVIDERS,Invoice,BACS,None,05/04/2018 00:00,2018,1,PS18001693,A7211,PLAY DEVELOPMENT,D5467,POSTAGE FROM FRANKING
GUILDFORD BOROUGH COUNCIL,RESPONSIVE & PLANNED MAINTENAN,WHISTL UK LIMITED,68868,01/05/2018 00:00,2000805,35.91,0,POSTAGE FROM FRANKING,POSTAL AND COURIER SERVICE PROVIDERS,Invoice,BACS,None,12/04/2018 00:00,2018,1,PS18001826,M5111,REPAIRS-ADMIN (BHS),D5467,POSTAGE FROM FRANKING
GUILDFORD BOROUGH COUNCIL,BUSINESS RATES,WHISTL UK LIMITED,68868,01/05/2018 00:00,2000805,9.35,0,POSTAGE FROM FRANKING,POSTAL AND COURIER SERVICE PROVIDERS,Invoice,BACS,None,12/04/2018 00:00,2018,1,PS18001826,F6151,BUSINESS RATES COLLECTION EXPS,D5467,POSTAGE FROM FRANKING
GUILDFORD BOROUGH COUNCIL,TOURIST INFORMATION CENTRE,WHISTL UK LIMITED,68868,13/04/2018 00:00,1998694,2.95,0,POSTAGE FROM FRANKING,POSTAL AND COURIER SERVICE PROVIDERS,Invoice,BACS,None,05/04/2018 00:00,2018,1,PS18001693,F5541,TOURIST INFORMATION CENTRE,D5467,POSTAGE FROM FRANKING
GUILDFORD BOROUGH COUNCIL,GUILDFORD HOUSE,WHISTL UK LIMITED,68868,01/05/2018 00:00,2000806,4.98,0,POSTAGE FROM FRANKING,POSTAL AND COURIER SERVICE PROVIDERS,Invoice,BACS,None,18/04/2018 00:00,2018,1,PS18001951,A4511,GUILDFORD HOUSE ADMINISTRATION,D5467,POSTAGE FROM FRANKING
GUILDFORD BOROUGH COUNCIL,AFFORDABLE HOUSING DEVELOPMENT,WHISTL UK LIMITED,68868,13/04/2018 00:00,1998694,0.69,0,POSTAGE FROM FRANKING,POSTAL AND COURIER SERVICE PROVIDERS,Invoice,BACS,None,05/04/2018 00:00,2018,1,PS18001693,C4111,AFFORDABLE HOUSING DEVELOPMENT,D5467,POSTAGE FROM FRANKING
GUILDFORD BOROUGH COUNCIL,BUILDING CONTROL SUMMARY,WHISTL UK LIMITED,68868,01/05/2018 00:00,2000806,16.35,0,POSTAGE FROM FRANKING,POSTAL AND COURIER SERVICE PROVIDERS,Invoice,BACS,None,18/04/2018 00:00,2018,1,PS18001951,D5800,BUILDING CONTROL - NON FEE,D5467,POSTAGE FROM FRANKING
GUILDFORD BOROUGH COUNCIL,BUSINESS & TOURISM,WHISTL UK LIMITED,68868,01/05/2018 00:00,2000805,8.86,0,POSTAGE FROM FRANKING,POSTAL AND COURIER SERVICE PROVIDERS,Invoice,BACS,None,12/04/2018 00:00,2018,1,PS18001826,F5545,TOURISM,D5467,POSTAGE FROM FRANKING
GUILDFORD BOROUGH COUNCIL,OPERATIONS TECHNICAL SERVICES,WHISTL UK LIMITED,68868,01/05/2018 00:00,2000805,1.65,0,POSTAGE FROM FRANKING,POSTAL AND COURIER SERVICE PROVIDERS,Invoice,BACS,None,12/04/2018 00:00,2018,1,PS18001826,G3546,ICT SERVICE DESK,D5467,POSTAGE FROM FRANKING
GUILDFORD BOROUGH COUNCIL,TRANSPORTATION,WHISTL UK LIMITED,68868,13/04/2018 00:00,1998694,1.79,0,POSTAGE FROM FRANKING,POSTAL AND COURIER SERVICE PROVIDERS,Invoice,BACS,None,05/04/2018 00:00,2018,1,PS18001693,B5122,TRANSPORTATION INITIATIVES,D5467,POSTAGE FROM FRANKING
GUILDFORD BOROUGH COUNCIL,DEBTORS,WHISTL UK LIMITED,68868,13/04/2018 00:00,1998694,50.89,0,POSTAGE FROM FRANKING,POSTAL AND COURIER SERVICE PROVIDERS,Invoice,BACS,None,05/04/2018 00:00,2018,1,PS18001693,G3555,DEBTORS,D5467,POSTAGE FROM FRANKING
GUILDFORD BOROUGH COUNCIL,BUSINESS IMPROVEMENT,WHISTL UK LIMITED,68868,01/05/2018 00:00,2000806,1.06,0,POSTAGE FROM FRANKING,POSTAL AND COURIER SERVICE PROVIDERS,Invoice,BACS,None,18/04/2018 00:00,2018,1,PS18001951,G3530,BUSINESS IMPROVEMENT,D5467,POSTAGE FROM FRANKING
GUILDFORD BOROUGH COUNCIL,LICENSING SERVICES,WHISTL UK LIMITED,68868,01/05/2018 00:00,2000806,5.49,0,POSTAGE FROM FRANKING,POSTAL AND COURIER SERVICE PROVIDERS,Invoice,BACS,None,18/04/2018 00:00,2018,1,PS18001951,H2100,LICENSING SERVICES,D5467,POSTAGE FROM FRANKING
GUILDFORD BOROUGH COUNCIL,LAND CHARGES,WHISTL UK LIMITED,68868,13/04/2018 00:00,1998694,1.98,0,POSTAGE FROM FRANKING,POSTAL AND COURIER SERVICE PROVIDERS,Invoice,BACS,None,05/04/2018 00:00,2018,1,PS18001693,F4111,LOCAL LAND CHARGES,D5467,POSTAGE FROM FRANKING
GUILDFORD BOROUGH COUNCIL,LICENSING SERVICES,WHISTL UK LIMITED,68868,01/05/2018 00:00,2000805,6.56,0,POSTAGE FROM FRANKING,POSTAL AND COURIER SERVICE PROVIDERS,Invoice,BACS,None,12/04/2018 00:00,2018,1,PS18001826,H2100,LICENSING SERVICES,D5467,POSTAGE FROM FRANKING
GUILDFORD BOROUGH COUNCIL,HOUSING SURVEYING SERVICES,WHISTL UK LIMITED,68868,13/04/2018 00:00,1998694,11.08,0,POSTAGE FROM FRANKING,POSTAL AND COURIER SERVICE PROVIDERS,Invoice,BACS,None,05/04/2018 00:00,2018,1,PS18001693,G6525,HOUSING SURVEYING SERVICES,D5467,POSTAGE FROM FRANKING
GUILDFORD BOROUGH COUNCIL,LICENSING SERVICES,WHISTL UK LIMITED,68868,13/04/2018 00:00,1998694,2.18,0,POSTAGE FROM FRANKING,POSTAL AND COURIER SERVICE PROVIDERS,Invoice,BACS,None,05/04/2018 00:00,2018,1,PS18001693,H2100,LICENSING SERVICES,D5467,POSTAGE FROM FRANKING
GUILDFORD BOROUGH COUNCIL,WEBSITE,WHISTL UK LIMITED,68868,01/05/2018 00:00,2000806,1.06,0,POSTAGE FROM FRANKING,POSTAL AND COURIER SERVICE PROVIDERS,Invoice,BACS,None,18/04/2018 00:00,2018,1,PS18001951,F1141,INTERNET SITE ACCESS,D5467,POSTAGE FROM FRANKING
GUILDFORD BOROUGH COUNCIL,SUPPORTED HOUSING MANAGEMENT,WHISTL UK LIMITED,68868,01/05/2018 00:00,2000806,1.38,0,POSTAGE FROM FRANKING,POSTAL AND COURIER SERVICE PROVIDERS,Invoice,BACS,None,18/04/2018 00:00,2018,1,PS18001951,M3690,SUPPORTED HSG-GENERAL (SHS),D5467,POSTAGE FROM FRANKING
GUILDFORD BOROUGH COUNCIL,RESPONSIVE & PLANNED MAINTENAN,WHISTL UK LIMITED,68868,13/04/2018 00:00,1998694,39.59,0,POSTAGE FROM FRANKING,POSTAL AND COURIER SERVICE PROVIDERS,Invoice,BACS,None,05/04/2018 00:00,2018,1,PS18001693,M5111,REPAIRS-ADMIN (BHS),D5467,POSTAGE FROM FRANKING
GUILDFORD BOROUGH COUNCIL,COUNCIL TAX,WHISTL UK LIMITED,68868,01/05/2018 00:00,2000806,363.49,0,POSTAGE FROM FRANKING,POSTAL AND COURIER SERVICE PROVIDERS,Invoice,BACS,None,18/04/2018 00:00,2018,1,PS18001951,F6141,COUNCIL TAX COLLECTN EXPENSES,D5467,POSTAGE FROM FRANKING
GUILDFORD BOROUGH COUNCIL,ACCOUNTANCY,WHISTL UK LIMITED,68868,13/04/2018 00:00,1998694,5.65,0,POSTAGE FROM FRANKING,POSTAL AND COURIER SERVICE PROVIDERS,Invoice,BACS,None,05/04/2018 00:00,2018,1,PS18001693,G3565,ACCOUNTANCY SERVICES,D5467,POSTAGE FROM FRANKING
GUILDFORD BOROUGH COUNCIL,CLIMATE CHANGE,WHISTL UK LIMITED,68868,13/04/2018 00:00,1998694,0.11,0,POSTAGE FROM FRANKING,POSTAL AND COURIER SERVICE PROVIDERS,Invoice,BACS,None,05/04/2018 00:00,2018,1,PS18001693,B3911,CLIMATE CHANGE STRATEGY,D5467,POSTAGE FROM FRANKING
GUILDFORD BOROUGH COUNCIL,BUILDING CONTROL SUMMARY,WHISTL UK LIMITED,68868,13/04/2018 00:00,1998694,24.7,0,POSTAGE FROM FRANKING,POSTAL AND COURIER SERVICE PROVIDERS,Invoice,BACS,None,05/04/2018 00:00,2018,1,PS18001693,D5700,BUILDING CONTROL - FEE,D5467,POSTAGE FROM FRANKING
GUILDFORD BOROUGH COUNCIL,LEISURE SPORT DEVELOPMENT,WHISTL UK LIMITED,68868,13/04/2018 00:00,1998694,1.56,0,POSTAGE FROM FRANKING,POSTAL AND COURIER SERVICE PROVIDERS,Invoice,BACS,None,05/04/2018 00:00,2018,1,PS18001693,A7311,SPORTS DEVELOPMENT OFFICER,D5467,POSTAGE FROM FRANKING
GUILDFORD BOROUGH COUNCIL,WEBSITE,WHISTL UK LIMITED,68868,01/05/2018 00:00,2000805,1.27,0,POSTAGE FROM FRANKING,POSTAL AND COURIER SERVICE PROVIDERS,Invoice,BACS,None,12/04/2018 00:00,2018,1,PS18001826,F1141,INTERNET SITE ACCESS,D5467,POSTAGE FROM FRANKING
GUILDFORD BOROUGH COUNCIL,LEISURE GRANTS,WHISTL UK LIMITED,68868,01/05/2018 00:00,2000805,3.4,0,POSTAGE FROM FRANKING,POSTAL AND COURIER SERVICE PROVIDERS,Invoice,BACS,None,12/04/2018 00:00,2018,1,PS18001826,A4111,GRANTS ADMINISTRATION,D5467,POSTAGE FROM FRANKING
GUILDFORD BOROUGH COUNCIL,FOOD AND SAFETY SERVICES,WHISTL UK LIMITED,68868,13/04/2018 00:00,1998694,2.18,0,POSTAGE FROM FRANKING,POSTAL AND COURIER SERVICE PROVIDERS,Invoice,BACS,None,05/04/2018 00:00,2018,1,PS18001693,C1111,FOOD AND SAFETY SERVICES,D5467,POSTAGE FROM FRANKING
GUILDFORD BOROUGH COUNCIL,OPERATIONAL SERVS OVERHEAD AC,WHISTL UK LIMITED,68868,13/04/2018 00:00,1998694,55.14,0,POSTAGE FROM FRANKING,POSTAL AND COURIER SERVICE PROVIDERS,Invoice,BACS,None,05/04/2018 00:00,2018,1,PS18001693,K1519,OPERATIONAL SERVS OVERHEAD AC,D5467,POSTAGE FROM FRANKING
GUILDFORD BOROUGH COUNCIL,SUPPORTED HOUSING MANAGEMENT,WHISTL UK LIMITED,68868,13/04/2018 00:00,1998694,0.55,0,POSTAGE FROM FRANKING,POSTAL AND COURIER SERVICE PROVIDERS,Invoice,BACS,None,05/04/2018 00:00,2018,1,PS18001693,M3690,SUPPORTED HSG-GENERAL (SHS),D5467,POSTAGE FROM FRANKING
GUILDFORD BOROUGH COUNCIL,OFFICE SERVICES TEAM,WHISTL UK LIMITED,68868,01/05/2018 00:00,2000805,2.08,0,POSTAGE FROM FRANKING,POSTAL AND COURIER SERVICE PROVIDERS,Invoice,BACS,None,12/04/2018 00:00,2018,1,PS18001826,G4585,OFFICE SERVICES,D5467,POSTAGE FROM FRANKING
GUILDFORD BOROUGH COUNCIL,PARKS & COUNTRYSIDE,WHISTL UK LIMITED,68868,01/05/2018 00:00,2000806,13.46,0,POSTAGE FROM FRANKING,POSTAL AND COURIER SERVICE PROVIDERS,Invoice,BACS,None,18/04/2018 00:00,2018,1,PS18001951,A1900,PARKS MANAGEMENT AND ADMIN,D5467,POSTAGE FROM FRANKING
GUILDFORD BOROUGH COUNCIL,VOID PROPERTY MANAGEMENT,WHISTL UK LIMITED,68868,01/05/2018 00:00,2000805,7.99,0,POSTAGE FROM FRANKING,POSTAL AND COURIER SERVICE PROVIDERS,Invoice,BACS,None,12/04/2018 00:00,2018,1,PS18001826,M1141,VOID PROPERTY MGMT (SHS),D5467,POSTAGE FROM FRANKING
GUILDFORD BOROUGH COUNCIL,INFORMATION SYSTEMS TEAM,WHISTL UK LIMITED,68868,13/04/2018 00:00,1998694,0.55,0,POSTAGE FROM FRANKING,POSTAL AND COURIER SERVICE PROVIDERS,Invoice,BACS,None,05/04/2018 00:00,2018,1,PS18001693,G3541,INFORMATION SYSTEMS SUPPORT,D5467,POSTAGE FROM FRANKING
GUILDFORD BOROUGH COUNCIL,TENANT PARTICIPATION,WHISTL UK LIMITED,68868,01/05/2018 00:00,2000806,163.59,0,POSTAGE FROM FRANKING,POSTAL AND COURIER SERVICE PROVIDERS,Invoice,BACS,None,18/04/2018 00:00,2018,1,PS18001951,M1152,TENANT PARTICIPATION (BHS),D5467,POSTAGE FROM FRANKING
GUILDFORD BOROUGH COUNCIL,LEISURE COMMUNITY CENTRES,WHISTL UK LIMITED,68868,01/05/2018 00:00,2000806,2.28,0,POSTAGE FROM FRANKING,POSTAL AND COURIER SERVICE PROVIDERS,Invoice,BACS,None,18/04/2018 00:00,2018,1,PS18001951,A8111,YOUTH & COMM CENTRES- ADMIN.,D5467,POSTAGE FROM FRANKING
GUILDFORD BOROUGH COUNCIL,BUILDING CONTROL SUMMARY,WHISTL UK LIMITED,68868,01/05/2018 00:00,2000805,20.27,0,POSTAGE FROM FRANKING,POSTAL AND COURIER SERVICE PROVIDERS,Invoice,BACS,None,12/04/2018 00:00,2018,1,PS18001826,D5700,BUILDING CONTROL - FEE,D5467,POSTAGE FROM FRANKING
GUILDFORD BOROUGH COUNCIL,ENGINEERING AND TRANS SERVICES,WHISTL UK LIMITED,68868,01/05/2018 00:00,2000805,5.99,0,POSTAGE FROM FRANKING,POSTAL AND COURIER SERVICE PROVIDERS,Invoice,BACS,None,12/04/2018 00:00,2018,1,PS18001826,G5538,ENGINEERING AND TRANS SERVICES,D5467,POSTAGE FROM FRANKING
GUILDFORD BOROUGH COUNCIL,BUSINESS IMPROVEMENT,WHISTL UK LIMITED,68868,01/05/2018 00:00,2000805,1.27,0,POSTAGE FROM FRANKING,POSTAL AND COURIER SERVICE PROVIDERS,Invoice,BACS,None,12/04/2018 00:00,2018,1,PS18001826,G3530,BUSINESS IMPROVEMENT,D5467,POSTAGE FROM FRANKING
GUILDFORD BOROUGH COUNCIL,BUILDING CONTROL SUMMARY,WHISTL UK LIMITED,68868,13/04/2018 00:00,1998694,7.9,0,POSTAGE FROM FRANKING,POSTAL AND COURIER SERVICE PROVIDERS,Invoice,BACS,None,05/04/2018 00:00,2018,1,PS18001693,D5800,BUILDING CONTROL - NON FEE,D5467,POSTAGE FROM FRANKING
GUILDFORD BOROUGH COUNCIL,CLIMATE CHANGE,WHISTL UK LIMITED,68868,13/04/2018 00:00,1998694,0.68,0,POSTAGE FROM FRANKING,POSTAL AND COURIER SERVICE PROVIDERS,Invoice,BACS,None,05/04/2018 00:00,2018,1,PS18001693,G4586,ENERGY SERVICES,D5467,POSTAGE FROM FRANKING
GUILDFORD BOROUGH COUNCIL,HOMELESSNESS,WHISTL UK LIMITED,68868,01/05/2018 00:00,2000806,5.25,0,POSTAGE FROM FRANKING,POSTAL AND COURIER SERVICE PROVIDERS,Invoice,BACS,None,18/04/2018 00:00,2018,1,PS18001951,C3311,HOMELESSNESS ADMINISTRATION,D5467,POSTAGE FROM FRANKING
GUILDFORD BOROUGH COUNCIL,OPERATIONS TECHNICAL SERVICES,WHISTL UK LIMITED,68868,01/05/2018 00:00,2000806,1.38,0,POSTAGE FROM FRANKING,POSTAL AND COURIER SERVICE PROVIDERS,Invoice,BACS,None,18/04/2018 00:00,2018,1,PS18001951,G3546,ICT SERVICE DESK,D5467,POSTAGE FROM FRANKING
GUILDFORD BOROUGH COUNCIL,GUILDHALL,WHISTL UK LIMITED,68868,13/04/2018 00:00,1998694,1.54,0,POSTAGE FROM FRANKING,POSTAL AND COURIER SERVICE PROVIDERS,Invoice,BACS,None,05/04/2018 00:00,2018,1,PS18001693,F3311,GUILDHALL,D5467,POSTAGE FROM FRANKING
GUILDFORD BOROUGH COUNCIL,LEISURE COMMUNITY CENTRES,WHISTL UK LIMITED,68868,01/05/2018 00:00,2000805,2.72,0,POSTAGE FROM FRANKING,POSTAL AND COURIER SERVICE PROVIDERS,Invoice,BACS,None,12/04/2018 00:00,2018,1,PS18001826,A8111,YOUTH & COMM CENTRES- ADMIN.,D5467,POSTAGE FROM FRANKING
GUILDFORD BOROUGH COUNCIL,ACCOUNTANCY,WHISTL UK LIMITED,68868,01/05/2018 00:00,2000805,11.61,0,POSTAGE FROM FRANKING,POSTAL AND COURIER SERVICE PROVIDERS,Invoice,BACS,None,12/04/2018 00:00,2018,1,PS18001826,G3565,ACCOUNTANCY SERVICES,D5467,POSTAGE FROM FRANKING
GUILDFORD BOROUGH COUNCIL,INCOME COLLECTION,WHISTL UK LIMITED,68868,01/05/2018 00:00,2000805,40.22,0,POSTAGE FROM FRANKING,POSTAL AND COURIER SERVICE PROVIDERS,Invoice,BACS,None,12/04/2018 00:00,2018,1,PS18001826,M1121,INCOME COLLECTION (BHS),D5467,POSTAGE FROM FRANKING
GUILDFORD BOROUGH COUNCIL,AFFORDABLE HOUSING DEVELOPMENT,WHISTL UK LIMITED,68868,01/05/2018 00:00,2000805,2.09,0,POSTAGE FROM FRANKING,POSTAL AND COURIER SERVICE PROVIDERS,Invoice,BACS,None,12/04/2018 00:00,2018,1,PS18001826,C4111,AFFORDABLE HOUSING DEVELOPMENT,D5467,POSTAGE FROM FRANKING
GUILDFORD BOROUGH COUNCIL,PARISH & LOCAL LIAISON,WORPLESDON PARISH COUNCIL,8675,05/04/2018 00:00,1997047,4712,0,LCTSS PARISH GRANT,LOCAL GOVERNMENT [UK ONLY],Invoice,BACS,None,03/04/2018 00:00,2018,1,PARISH PRECEPT,F1115,PARISH LIAISON,D7431,LCTSS PARISH GRANT
GUILDFORD BOROUGH COUNCIL,TAXI LICENSING,WHISTL UK LIMITED,68868,01/05/2018 00:00,2000805,6.56,0,POSTAGE FROM FRANKING,POSTAL AND COURIER SERVICE PROVIDERS,Invoice,BACS,None,12/04/2018 00:00,2018,1,PS18001826,H1108,HC & PC VEHICLES,D5467,POSTAGE FROM FRANKING
GUILDFORD BOROUGH COUNCIL,POLICY,WHISTL UK LIMITED,68868,01/05/2018 00:00,2000805,4.05,0,POSTAGE FROM FRANKING,POSTAL AND COURIER SERVICE PROVIDERS,Invoice,BACS,None,12/04/2018 00:00,2018,1,PS18001826,D5300,POLICY,D5467,POSTAGE FROM FRANKING
GUILDFORD BOROUGH COUNCIL,COUNCIL TAX,WHISTL UK LIMITED,68868,01/05/2018 00:00,2000805,173.65,0,POSTAGE FROM FRANKING,POSTAL AND COURIER SERVICE PROVIDERS,Invoice,BACS,None,12/04/2018 00:00,2018,1,PS18001826,F6141,COUNCIL TAX COLLECTN EXPENSES,D5467,POSTAGE FROM FRANKING
GUILDFORD BOROUGH COUNCIL,DEVELOPMENT CONTROL,WHISTL UK LIMITED,68868,01/05/2018 00:00,2000805,40.53,0,POSTAGE FROM FRANKING,POSTAL AND COURIER SERVICE PROVIDERS,Invoice,BACS,None,12/04/2018 00:00,2018,1,PS18001826,D5100,DEVELOPMENT CONTROL - FEE EARN,D5467,POSTAGE FROM FRANKING
GUILDFORD BOROUGH COUNCIL,HR SERVICES,WHISTL UK LIMITED,68868,13/04/2018 00:00,1998694,0.96,0,POSTAGE FROM FRANKING,POSTAL AND COURIER SERVICE PROVIDERS,Invoice,BACS,None,05/04/2018 00:00,2018,1,PS18001693,G2555,HR SERVICES,D5467,POSTAGE FROM FRANKING
GUILDFORD BOROUGH COUNCIL,PARKS & COUNTRYSIDE,WHISTL UK LIMITED,68868,13/04/2018 00:00,1998694,19.38,0,POSTAGE FROM FRANKING,POSTAL AND COURIER SERVICE PROVIDERS,Invoice,BACS,None,05/04/2018 00:00,2018,1,PS18001693,A1900,PARKS MANAGEMENT AND ADMIN,D5467,POSTAGE FROM FRANKING
GUILDFORD BOROUGH COUNCIL,POLICY,WHISTL UK LIMITED,68868,01/05/2018 00:00,2000805,8.11,0,POSTAGE FROM FRANKING,POSTAL AND COURIER SERVICE PROVIDERS,Invoice,BACS,None,12/04/2018 00:00,2018,1,PS18001826,D5555,DESIGN AND CONSERVATION,D5467,POSTAGE FROM FRANKING
GUILDFORD BOROUGH COUNCIL,TOURIST INFORMATION CENTRE,WHISTL UK LIMITED,68868,01/05/2018 00:00,2000806,7.42,0,POSTAGE FROM FRANKING,POSTAL AND COURIER SERVICE PROVIDERS,Invoice,BACS,None,18/04/2018 00:00,2018,1,PS18001951,F5541,TOURIST INFORMATION CENTRE,D5467,POSTAGE FROM FRANKING
GUILDFORD BOROUGH COUNCIL,LEISURE GRANTS,WHISTL UK LIMITED,68868,01/05/2018 00:00,2000806,2.84,0,POSTAGE FROM FRANKING,POSTAL AND COURIER SERVICE PROVIDERS,Invoice,BACS,None,18/04/2018 00:00,2018,1,PS18001951,A4111,GRANTS ADMINISTRATION,D5467,POSTAGE FROM FRANKING
GUILDFORD BOROUGH COUNCIL,PUBLIC RELATIONS,WHISTL UK LIMITED,68868,01/05/2018 00:00,2000805,0.76,0,POSTAGE FROM FRANKING,POSTAL AND COURIER SERVICE PROVIDERS,Invoice,BACS,None,12/04/2018 00:00,2018,1,PS18001826,F5551,PUBLIC RELATIONS & MARKETING,D5467,POSTAGE FROM FRANKING
GUILDFORD BOROUGH COUNCIL,CORP SERVICES,WORLDPAY LIMTED,90983,10/04/2018 00:00,1997663,19.95,0,DEBIT AND CREDIT CARD CHARGES,OTHER FINANCIAL SERVICE PROVIDERS,Invoice,BACS,None,03/04/2018 00:00,2018,1,WM10237418,F1111,CORPORATE SERVICES,D4399,DEBIT AND CREDIT CARD CHARGES
GUILDFORD BOROUGH COUNCIL,MANAGEMENT POLICY STRATEGY,WHISTL UK LIMITED,68868,01/05/2018 00:00,2000806,0.64,0,POSTAGE FROM FRANKING,POSTAL AND COURIER SERVICE PROVIDERS,Invoice,BACS,None,18/04/2018 00:00,2018,1,PS18001951,G3545,"ICT MANAGEMENT, POLICY & STRAT",D5467,POSTAGE FROM FRANKING
GUILDFORD BOROUGH COUNCIL,CREMATORIUM,WHISTL UK LIMITED,68868,01/05/2018 00:00,2000806,6.74,0,POSTAGE FROM FRANKING,POSTAL AND COURIER SERVICE PROVIDERS,Invoice,BACS,None,18/04/2018 00:00,2018,1,PS18001951,A1500,GUILDFORD CREMATORIUM,D5467,POSTAGE FROM FRANKING
GUILDFORD BOROUGH COUNCIL,ENVIRONMENTAL CONTROL,WHISTL UK LIMITED,68868,01/05/2018 00:00,2000806,5.49,0,POSTAGE FROM FRANKING,POSTAL AND COURIER SERVICE PROVIDERS,Invoice,BACS,None,18/04/2018 00:00,2018,1,PS18001951,C1113,ENVIRONMENTAL CONTROL,D5467,POSTAGE FROM FRANKING
GUILDFORD BOROUGH COUNCIL,LEISURE GRANTS,YVONNE ARNAUD THEATRE MANAGEMENT CTTEE,8701,10/04/2018 00:00,1998066,77555,0,YVONNE ARNAUD THEATRE GRANT,THEATRES,Invoice,BACS,None,10/04/2018 00:00,2018,1,GRANT,A4122,LEISURE GRANTS,D7491,YVONNE ARNAUD THEATRE GRANT
GUILDFORD BOROUGH COUNCIL,ELECTORAL REGISTRATION,WHISTL UK LIMITED,68868,01/05/2018 00:00,2000805,96.14,0,POSTAGE FROM FRANKING,POSTAL AND COURIER SERVICE PROVIDERS,Invoice,BACS,None,12/04/2018 00:00,2018,1,PS18001826,F2512,INDIVID ELECTORAL REGISTRATION,D5467,POSTAGE FROM FRANKING
GUILDFORD BOROUGH COUNCIL,OFFICE SERVICES TEAM,WHISTL UK LIMITED,68868,13/04/2018 00:00,1998694,0.67,0,POSTAGE FROM FRANKING,POSTAL AND COURIER SERVICE PROVIDERS,Invoice,BACS,None,05/04/2018 00:00,2018,1,PS18001693,G4585,OFFICE SERVICES,D5467,POSTAGE FROM FRANKING
GUILDFORD BOROUGH COUNCIL,INSURANCE REVENUE A/C,REDACTED,0,12/04/2018 00:00,1998297,1632,0,INSURANCE; CLAIMS PAID,OTHER INSURANCE SERVICE PROVIDERS,Invoice,BACS,None,06/04/2018 00:00,2018,1,REDACTED,F8531,INSURANCE REVENUE ACCOUNT,D9450,INSURANCE; CLAIMS PAID
GUILDFORD BOROUGH COUNCIL,LEISURE PLAY DEVELOPMENT,WHISTL UK LIMITED,68868,01/05/2018 00:00,2000805,4.7,0,POSTAGE FROM FRANKING,POSTAL AND COURIER SERVICE PROVIDERS,Invoice,BACS,None,12/04/2018 00:00,2018,1,PS18001826,A7211,PLAY DEVELOPMENT,D5467,POSTAGE FROM FRANKING
GUILDFORD BOROUGH COUNCIL,BUILDING CONTROL SUMMARY,WHISTL UK LIMITED,68868,01/05/2018 00:00,2000806,51.09,0,POSTAGE FROM FRANKING,POSTAL AND COURIER SERVICE PROVIDERS,Invoice,BACS,None,18/04/2018 00:00,2018,1,PS18001951,D5700,BUILDING CONTROL - FEE,D5467,POSTAGE FROM FRANKING
GUILDFORD BOROUGH COUNCIL,CORP SERVICES,WILKS HEAD & EVE LLP,36336,01/05/2018 00:00,2000820,375,0,CONSULTANTS (PROJECTS),SURVEYORS AND INSPECTORS,Invoice,BACS,None,19/04/2018 00:00,2018,1,47625,F1111,CORPORATE SERVICES,D4511,CONSULTANTS (PROJECTS)
GUILDFORD BOROUGH COUNCIL,SURREY FAMILY SUPPORT PROG,WILDERNESS PRE-SCHOOL,89871,17/04/2018 00:00,1998674,659,0,MISCELLANEOUS EXPENSES,OTHER EDUCATION SERVICE PROVIDERS,Invoice,Cheque,None,11/04/2018 00:00,2018,1,AHMEDALHUSSEIN,C3321,REFUGEE SUPPORT,D9483,MISCELLANEOUS EXPENSES
GUILDFORD BOROUGH COUNCIL,PAYMENTS AND PURCHASING,WHISTL UK LIMITED,68868,13/04/2018 00:00,1998694,0.99,0,POSTAGE FROM FRANKING,POSTAL AND COURIER SERVICE PROVIDERS,Invoice,BACS,None,05/04/2018 00:00,2018,1,PS18001693,G3598,PURCHASING,D5467,POSTAGE FROM FRANKING
GUILDFORD BOROUGH COUNCIL,INTERNAL AUDIT,WHISTL UK LIMITED,68868,01/05/2018 00:00,2000806,1.06,0,POSTAGE FROM FRANKING,POSTAL AND COURIER SERVICE PROVIDERS,Invoice,BACS,None,18/04/2018 00:00,2018,1,PS18001951,G3525,INTERNAL AUDIT,D5467,POSTAGE FROM FRANKING
GUILDFORD BOROUGH COUNCIL,TENANT SELECTION,WHISTL UK LIMITED,68868,01/05/2018 00:00,2000805,23.89,0,POSTAGE FROM FRANKING,POSTAL AND COURIER SERVICE PROVIDERS,Invoice,BACS,None,12/04/2018 00:00,2018,1,PS18001826,M1131,"ADVICE,REGS,TENANT SELECT(SHS)",D5467,POSTAGE FROM FRANKING
GUILDFORD BOROUGH COUNCIL,LEISURE SPORT DEVELOPMENT,WHISTL UK LIMITED,68868,01/05/2018 00:00,2000805,4.7,0,POSTAGE FROM FRANKING,POSTAL AND COURIER SERVICE PROVIDERS,Invoice,BACS,None,12/04/2018 00:00,2018,1,PS18001826,A7311,SPORTS DEVELOPMENT OFFICER,D5467,POSTAGE FROM FRANKING
GUILDFORD BOROUGH COUNCIL,TAXI LICENSING,ZOO SIGNS & DESIGN LIMITED,87416,19/04/2018 00:00,1999366,273,0,PLATES AND DOOR SIGNS,"SIGN WRITING, BANNER AND FLAG SUPPLIERS",Invoice,BACS,None,17/04/2018 00:00,2018,1,I8146,H1108,HC & PC VEHICLES,D1447,PLATES AND DOOR SIGNS
GUILDFORD BOROUGH COUNCIL,GF NET REVENUE ACCOUNT,WORPLESDON PARISH COUNCIL,8675,05/04/2018 00:00,1997047,98356,0,OOE - PARISH PRECEPTS PAID,LOCAL GOVERNMENT [UK ONLY],Invoice,BACS,None,03/04/2018 00:00,2018,1,PARISH PRECEPT,V01005,GF NET REVENUE ACCOUNT,2482,OOE - PARISH PRECEPTS PAID
GUILDFORD BOROUGH COUNCIL,ICT BUSINESS SERVICES TEAM,WHISTL UK LIMITED,68868,13/04/2018 00:00,1998694,0.25,0,POSTAGE FROM FRANKING,POSTAL AND COURIER SERVICE PROVIDERS,Invoice,BACS,None,05/04/2018 00:00,2018,1,PS18001693,G3543,BUSINESS SERVICES SUPPORT,D5467,POSTAGE FROM FRANKING
GUILDFORD BOROUGH COUNCIL,OFFICE SERVICES TEAM,XEROX (UK) LIMITED,79663,17/04/2018 00:00,1997889,7031.49,0,COPY MACHINES - MFD,OTHER OFFICE EQUIPMENT SUPPLIERS,Invoice,BACS,None,01/04/2018 00:00,2018,1,900171412,G4545,REPROGRAPHICS UNIT,D3415,COPY MACHINES - MFD
GUILDFORD BOROUGH COUNCIL,OFF STREET PARKING,WHISTL UK LIMITED,68868,13/04/2018 00:00,1998694,82.5,0,POSTAGE FROM FRANKING,POSTAL AND COURIER SERVICE PROVIDERS,Invoice,BACS,None,05/04/2018 00:00,2018,1,PS18001693,B2115,PARKING OFFICE ACCOMM COSTS,D5467,POSTAGE FROM FRANKING
GUILDFORD BOROUGH COUNCIL,LAND CHARGES,WHISTL UK LIMITED,68868,01/05/2018 00:00,2000805,1.62,0,POSTAGE FROM FRANKING,POSTAL AND COURIER SERVICE PROVIDERS,Invoice,BACS,None,12/04/2018 00:00,2018,1,PS18001826,F4111,LOCAL LAND CHARGES,D5467,POSTAGE FROM FRANKING
GUILDFORD BOROUGH COUNCIL,BUSINESS & TOURISM,WHISTL UK LIMITED,68868,01/05/2018 00:00,2000806,1.84,0,POSTAGE FROM FRANKING,POSTAL AND COURIER SERVICE PROVIDERS,Invoice,BACS,None,18/04/2018 00:00,2018,1,PS18001951,F5547,BUSINESS,D5467,POSTAGE FROM FRANKING
GUILDFORD BOROUGH COUNCIL,DEVELOPMENT CONTROL,WHISTL UK LIMITED,68868,01/05/2018 00:00,2000806,102.17,0,POSTAGE FROM FRANKING,POSTAL AND COURIER SERVICE PROVIDERS,Invoice,BACS,None,18/04/2018 00:00,2018,1,PS18001951,D5100,DEVELOPMENT CONTROL - FEE EARN,D5467,POSTAGE FROM FRANKING
GUILDFORD BOROUGH COUNCIL,TOURIST INFORMATION CENTRE,REDACTED,0,24/04/2018 00:00,1999847,-19.2,0,BOX OFFICE COMMISSION,,Invoice,BACS,None,18/04/2018 00:00,2018,1,REDACTED,F5541,TOURIST INFORMATION CENTRE,K5919,BOX OFFICE COMMISSION
GUILDFORD BOROUGH COUNCIL,OFFICE SERVICES TEAM,XEROX (UK) LIMITED,79663,17/04/2018 00:00,1997889,712.71,0,CENTRAL COPIERS - LEASE COSTS,OTHER OFFICE EQUIPMENT SUPPLIERS,Invoice,BACS,None,01/04/2018 00:00,2018,1,900171412,G4545,REPROGRAPHICS UNIT,D3414,CENTRAL COPIERS - LEASE COSTS
GUILDFORD BOROUGH COUNCIL,OPERATIONAL SERVS OVERHEAD AC,WHISTL UK LIMITED,68868,01/05/2018 00:00,2000806,38.3,0,POSTAGE FROM FRANKING,POSTAL AND COURIER SERVICE PROVIDERS,Invoice,BACS,None,18/04/2018 00:00,2018,1,PS18001951,K1519,OPERATIONAL SERVS OVERHEAD AC,D5467,POSTAGE FROM FRANKING
GUILDFORD BOROUGH COUNCIL,TOURIST INFORMATION CENTRE,REDACTED,0,24/04/2018 00:00,1999847,192,0,TICKET SALES FOR PROMOTERS,,Invoice,BACS,None,18/04/2018 00:00,2018,1,REDACTED,F5541,TOURIST INFORMATION CENTRE,K5994,TICKET SALES FOR PROMOTERS
GUILDFORD BOROUGH COUNCIL,INCOME COLLECTION,WHISTL UK LIMITED,68868,13/04/2018 00:00,1998694,44.34,0,POSTAGE FROM FRANKING,POSTAL AND COURIER SERVICE PROVIDERS,Invoice,BACS,None,05/04/2018 00:00,2018,1,PS18001693,M1121,INCOME COLLECTION (BHS),D5467,POSTAGE FROM FRANKING
GUILDFORD BOROUGH COUNCIL,RIVER CONTROL,WEY MARINE SERVICES LTD,77952,05/04/2018 00:00,1997122,4093.62,0,OPERATING SLUICES,OTHER BOAT EQUIPMENT AND SERVICE PROVIDERS,Invoice,BACS,None,01/04/2018 00:00,2018,1,WMS101,B8111,RIVER CONTROL,D4467,OPERATING SLUICES
GUILDFORD BOROUGH COUNCIL,FOOD AND SAFETY SERVICES,WHISTL UK LIMITED,68868,01/05/2018 00:00,2000806,5.49,0,POSTAGE FROM FRANKING,POSTAL AND COURIER SERVICE PROVIDERS,Invoice,BACS,None,18/04/2018 00:00,2018,1,PS18001951,C1111,FOOD AND SAFETY SERVICES,D5467,POSTAGE FROM FRANKING
GUILDFORD BOROUGH COUNCIL,HOUSING SURVEYING SERVICES,WHISTL UK LIMITED,68868,01/05/2018 00:00,2000806,143.14,0,POSTAGE FROM FRANKING,POSTAL AND COURIER SERVICE PROVIDERS,Invoice,BACS,None,18/04/2018 00:00,2018,1,PS18001951,G6525,HOUSING SURVEYING SERVICES,D5467,POSTAGE FROM FRANKING
GUILDFORD BOROUGH COUNCIL,HOUSING BENEFITS,WHISTL UK LIMITED,68868,13/04/2018 00:00,1998694,426.53,0,POSTAGE FROM FRANKING,POSTAL AND COURIER SERVICE PROVIDERS,Invoice,BACS,None,05/04/2018 00:00,2018,1,PS18001693,C4511,HOUSING BENEFITS ADMIN.,D5467,POSTAGE FROM FRANKING
GUILDFORD BOROUGH COUNCIL,ENGINEERING AND TRANS SERVICES,WHISTL UK LIMITED,68868,01/05/2018 00:00,2000806,2.6,0,POSTAGE FROM FRANKING,POSTAL AND COURIER SERVICE PROVIDERS,Invoice,BACS,None,18/04/2018 00:00,2018,1,PS18001951,G5538,ENGINEERING AND TRANS SERVICES,D5467,POSTAGE FROM FRANKING
GUILDFORD BOROUGH COUNCIL,RESPONSIVE & PLANNED MAINTENAN,WHISTL UK LIMITED,68868,01/05/2018 00:00,2000806,511.23,0,POSTAGE FROM FRANKING,POSTAL AND COURIER SERVICE PROVIDERS,Invoice,BACS,None,18/04/2018 00:00,2018,1,PS18001951,M5111,REPAIRS-ADMIN (BHS),D5467,POSTAGE FROM FRANKING
GUILDFORD BOROUGH COUNCIL,LEISURE ART DEVELOPMENT,WHISTL UK LIMITED,68868,01/05/2018 00:00,2000806,3.94,0,POSTAGE FROM FRANKING,POSTAL AND COURIER SERVICE PROVIDERS,Invoice,BACS,None,18/04/2018 00:00,2018,1,PS18001951,A3511,ARTS DEVELOPMENT,D5467,POSTAGE FROM FRANKING
GUILDFORD BOROUGH COUNCIL,PAYMENTS AND PURCHASING,WHISTL UK LIMITED,68868,01/05/2018 00:00,2000806,13.92,0,POSTAGE FROM FRANKING,POSTAL AND COURIER SERVICE PROVIDERS,Invoice,BACS,None,18/04/2018 00:00,2018,1,PS18001951,G3596,CREDITORS,D5467,POSTAGE FROM FRANKING
GUILDFORD BOROUGH COUNCIL,BUSINESS RATES,WHISTL UK LIMITED,68868,01/05/2018 00:00,2000806,7.83,0,POSTAGE FROM FRANKING,POSTAL AND COURIER SERVICE PROVIDERS,Invoice,BACS,None,18/04/2018 00:00,2018,1,PS18001951,F6151,BUSINESS RATES COLLECTION EXPS,D5467,POSTAGE FROM FRANKING
GUILDFORD BOROUGH COUNCIL,SUPPORTED HOUSING MANAGEMENT,WHISTL UK LIMITED,68868,01/05/2018 00:00,2000805,1.65,0,POSTAGE FROM FRANKING,POSTAL AND COURIER SERVICE PROVIDERS,Invoice,BACS,None,12/04/2018 00:00,2018,1,PS18001826,M3690,SUPPORTED HSG-GENERAL (SHS),D5467,POSTAGE FROM FRANKING
GUILDFORD BOROUGH COUNCIL,ELECTORAL REGISTRATION,WHISTL UK LIMITED,68868,13/04/2018 00:00,1998694,24.13,0,POSTAGE FROM FRANKING,POSTAL AND COURIER SERVICE PROVIDERS,Invoice,BACS,None,05/04/2018 00:00,2018,1,PS18001693,F2512,INDIVID ELECTORAL REGISTRATION,D5467,POSTAGE FROM FRANKING
GUILDFORD BOROUGH COUNCIL,TENANT PARTICIPATION,WHISTL UK LIMITED,68868,01/05/2018 00:00,2000805,11.49,0,POSTAGE FROM FRANKING,POSTAL AND COURIER SERVICE PROVIDERS,Invoice,BACS,None,12/04/2018 00:00,2018,1,PS18001826,M1152,TENANT PARTICIPATION (BHS),D5467,POSTAGE FROM FRANKING
GUILDFORD BOROUGH COUNCIL,CREMATORIUM,WHISTL UK LIMITED,68868,13/04/2018 00:00,1998694,9.71,0,POSTAGE FROM FRANKING,POSTAL AND COURIER SERVICE PROVIDERS,Invoice,BACS,None,05/04/2018 00:00,2018,1,PS18001693,A1500,GUILDFORD CREMATORIUM,D5467,POSTAGE FROM FRANKING
GUILDFORD BOROUGH COUNCIL,POLICY,WHISTL UK LIMITED,68868,13/04/2018 00:00,1998694,9.88,0,POSTAGE FROM FRANKING,POSTAL AND COURIER SERVICE PROVIDERS,Invoice,BACS,None,05/04/2018 00:00,2018,1,PS18001693,D5555,DESIGN AND CONSERVATION,D5467,POSTAGE FROM FRANKING
GUILDFORD BOROUGH COUNCIL,GUILDFORD HOUSE,WHISTL UK LIMITED,68868,13/04/2018 00:00,1998694,7.17,0,POSTAGE FROM FRANKING,POSTAL AND COURIER SERVICE PROVIDERS,Invoice,BACS,None,05/04/2018 00:00,2018,1,PS18001693,A4511,GUILDFORD HOUSE ADMINISTRATION,D5467,POSTAGE FROM FRANKING
GUILDFORD BOROUGH COUNCIL,HR SERVICES,WHISTL UK LIMITED,68868,01/05/2018 00:00,2000806,2.42,0,POSTAGE FROM FRANKING,POSTAL AND COURIER SERVICE PROVIDERS,Invoice,BACS,None,18/04/2018 00:00,2018,1,PS18001951,G2555,HR SERVICES,D5467,POSTAGE FROM FRANKING
GUILDFORD BOROUGH COUNCIL,LAND CHARGES,WHISTL UK LIMITED,68868,01/05/2018 00:00,2000806,4.09,0,POSTAGE FROM FRANKING,POSTAL AND COURIER SERVICE PROVIDERS,Invoice,BACS,None,18/04/2018 00:00,2018,1,PS18001951,F4111,LOCAL LAND CHARGES,D5467,POSTAGE FROM FRANKING
GUILDFORD BOROUGH COUNCIL,GUILDFORD HOUSE,WHISTL UK LIMITED,68868,01/05/2018 00:00,2000805,11.47,0,POSTAGE FROM FRANKING,POSTAL AND COURIER SERVICE PROVIDERS,Invoice,BACS,None,12/04/2018 00:00,2018,1,PS18001826,A4511,GUILDFORD HOUSE ADMINISTRATION,D5467,POSTAGE FROM FRANKING
GUILDFORD BOROUGH COUNCIL,PRIVATE SECTOR HOUSING,WHISTL UK LIMITED,68868,01/05/2018 00:00,2000805,24.25,0,POSTAGE FROM FRANKING,POSTAL AND COURIER SERVICE PROVIDERS,Invoice,BACS,None,12/04/2018 00:00,2018,1,PS18001826,C5122,PRIVATE SECTOR HOUSING STANDAR,D5467,POSTAGE FROM FRANKING
GUILDFORD BOROUGH COUNCIL,MUSEUM,WHISTL UK LIMITED,68868,13/04/2018 00:00,1998694,7.17,0,POSTAGE FROM FRANKING,POSTAL AND COURIER SERVICE PROVIDERS,Invoice,BACS,None,05/04/2018 00:00,2018,1,PS18001693,A5511,MUSEUM,D5467,POSTAGE FROM FRANKING
GUILDFORD BOROUGH COUNCIL,TAXI LICENSING,WHISTL UK LIMITED,68868,13/04/2018 00:00,1998694,2.18,0,POSTAGE FROM FRANKING,POSTAL AND COURIER SERVICE PROVIDERS,Invoice,BACS,None,05/04/2018 00:00,2018,1,PS18001693,H1108,HC & PC VEHICLES,D5467,POSTAGE FROM FRANKING
GUILDFORD BOROUGH COUNCIL,DEBTORS,WHISTL UK LIMITED,68868,01/05/2018 00:00,2000806,327.43,0,POSTAGE FROM FRANKING,POSTAL AND COURIER SERVICE PROVIDERS,Invoice,BACS,None,18/04/2018 00:00,2018,1,PS18001951,G3555,DEBTORS,D5467,POSTAGE FROM FRANKING
GUILDFORD BOROUGH COUNCIL,TENANTS' SERVICES,WEST SURREY MEDIATION SERVICE,8737,19/04/2018 00:00,1997123,1000,0,LEGAL EXPENSES,OTHER LEGAL SERVICE PROVIDERS,Invoice,BACS,None,01/04/2018 00:00,2018,1,10418,M1151,TENANTS SERVICES (BHS),D4457,LEGAL EXPENSES
GUILDFORD BOROUGH COUNCIL,GUILDHALL,WHISTL UK LIMITED,68868,01/05/2018 00:00,2000806,1.07,0,POSTAGE FROM FRANKING,POSTAL AND COURIER SERVICE PROVIDERS,Invoice,BACS,None,18/04/2018 00:00,2018,1,PS18001951,F3311,GUILDHALL,D5467,POSTAGE FROM FRANKING
GUILDFORD BOROUGH COUNCIL,CLIMATE CHANGE,WHISTL UK LIMITED,68868,01/05/2018 00:00,2000806,0.27,0,POSTAGE FROM FRANKING,POSTAL AND COURIER SERVICE PROVIDERS,Invoice,BACS,None,18/04/2018 00:00,2018,1,PS18001951,B3911,CLIMATE CHANGE STRATEGY,D5467,POSTAGE FROM FRANKING
GUILDFORD BOROUGH COUNCIL,LEISURE GRANTS,WHISTL UK LIMITED,68868,13/04/2018 00:00,1998694,1.13,0,POSTAGE FROM FRANKING,POSTAL AND COURIER SERVICE PROVIDERS,Invoice,BACS,None,05/04/2018 00:00,2018,1,PS18001693,A4111,GRANTS ADMINISTRATION,D5467,POSTAGE FROM FRANKING
GUILDFORD BOROUGH COUNCIL,CREMATORIUM,WHISTL UK LIMITED,68868,01/05/2018 00:00,2000805,15.53,0,POSTAGE FROM FRANKING,POSTAL AND COURIER SERVICE PROVIDERS,Invoice,BACS,None,12/04/2018 00:00,2018,1,PS18001826,A1500,GUILDFORD CREMATORIUM,D5467,POSTAGE FROM FRANKING
GUILDFORD BOROUGH COUNCIL,MUSEUM,WHISTL UK LIMITED,68868,01/05/2018 00:00,2000806,4.98,0,POSTAGE FROM FRANKING,POSTAL AND COURIER SERVICE PROVIDERS,Invoice,BACS,None,18/04/2018 00:00,2018,1,PS18001951,A5511,MUSEUM,D5467,POSTAGE FROM FRANKING
GUILDFORD BOROUGH COUNCIL,PARISH & LOCAL LIAISON,WEST HORSLEY PARISH COUNCIL,8572,05/04/2018 00:00,1997029,522.5,0,LCTSS PARISH GRANT,LOCAL GOVERNMENT [UK ONLY],Invoice,BACS,None,03/04/2018 00:00,2018,1,PARISH PRECEPT,F1115,PARISH LIAISON,D7431,LCTSS PARISH GRANT
GUILDFORD BOROUGH COUNCIL,GF NET REVENUE ACCOUNT,WEST HORSLEY PARISH COUNCIL,8572,05/04/2018 00:00,1997029,41070,0,OOE - PARISH PRECEPTS PAID,LOCAL GOVERNMENT [UK ONLY],Invoice,BACS,None,03/04/2018 00:00,2018,1,PARISH PRECEPT,V01005,GF NET REVENUE ACCOUNT,2482,OOE - PARISH PRECEPTS PAID
GUILDFORD BOROUGH COUNCIL,PARISH & LOCAL LIAISON,WEST CLANDON PARISH COUNCIL,8568,05/04/2018 00:00,1997025,388,0,LCTSS PARISH GRANT,LOCAL GOVERNMENT [UK ONLY],Invoice,BACS,None,03/04/2018 00:00,2018,1,PARISH PRECEPT,F1115,PARISH LIAISON,D7431,LCTSS PARISH GRANT
GUILDFORD BOROUGH COUNCIL,PRIVATE SECTOR HOUSING,WHISTL UK LIMITED,68868,13/04/2018 00:00,1998694,8.06,0,POSTAGE FROM FRANKING,POSTAL AND COURIER SERVICE PROVIDERS,Invoice,BACS,None,05/04/2018 00:00,2018,1,PS18001693,C5122,PRIVATE SECTOR HOUSING STANDAR,D5467,POSTAGE FROM FRANKING
GUILDFORD BOROUGH COUNCIL,OFF STREET PARKING,WHISTL UK LIMITED,68868,01/05/2018 00:00,2000805,131.98,0,POSTAGE FROM FRANKING,POSTAL AND COURIER SERVICE PROVIDERS,Invoice,BACS,None,12/04/2018 00:00,2018,1,PS18001826,B2115,PARKING OFFICE ACCOMM COSTS,D5467,POSTAGE FROM FRANKING
GUILDFORD BOROUGH COUNCIL,ENVIRONMENTAL CONTROL,WEST SURREY MEDIATION SERVICE,8737,19/04/2018 00:00,1997123,1000,0,CONSULTANTS (ADVICE),OTHER LEGAL SERVICE PROVIDERS,Invoice,BACS,None,01/04/2018 00:00,2018,1,10418,C1113,ENVIRONMENTAL CONTROL,D4520,CONSULTANTS (ADVICE)
GUILDFORD BOROUGH COUNCIL,ENVIRONMENTAL CONTROL,WHISTL UK LIMITED,68868,01/05/2018 00:00,2000805,6.56,0,POSTAGE FROM FRANKING,POSTAL AND COURIER SERVICE PROVIDERS,Invoice,BACS,None,12/04/2018 00:00,2018,1,PS18001826,C1113,ENVIRONMENTAL CONTROL,D5467,POSTAGE FROM FRANKING
GUILDFORD BOROUGH COUNCIL,INTERNAL AUDIT,WHISTL UK LIMITED,68868,01/05/2018 00:00,2000805,1.27,0,POSTAGE FROM FRANKING,POSTAL AND COURIER SERVICE PROVIDERS,Invoice,BACS,None,12/04/2018 00:00,2018,1,PS18001826,G3525,INTERNAL AUDIT,D5467,POSTAGE FROM FRANKING
GUILDFORD BOROUGH COUNCIL,AFFORDABLE HOUSING DEVELOPMENT,WHISTL UK LIMITED,68868,01/05/2018 00:00,2000806,1.75,0,POSTAGE FROM FRANKING,POSTAL AND COURIER SERVICE PROVIDERS,Invoice,BACS,None,18/04/2018 00:00,2018,1,PS18001951,C4111,AFFORDABLE HOUSING DEVELOPMENT,D5467,POSTAGE FROM FRANKING
GUILDFORD BOROUGH COUNCIL,HR SERVICES,WHISTL UK LIMITED,68868,01/05/2018 00:00,2000805,2.89,0,POSTAGE FROM FRANKING,POSTAL AND COURIER SERVICE PROVIDERS,Invoice,BACS,None,12/04/2018 00:00,2018,1,PS18001826,G2555,HR SERVICES,D5467,POSTAGE FROM FRANKING
GUILDFORD BOROUGH COUNCIL,PAYMENTS AND PURCHASING,WHISTL UK LIMITED,68868,13/04/2018 00:00,1998694,5.53,0,POSTAGE FROM FRANKING,POSTAL AND COURIER SERVICE PROVIDERS,Invoice,BACS,None,05/04/2018 00:00,2018,1,PS18001693,G3596,CREDITORS,D5467,POSTAGE FROM FRANKING
GUILDFORD BOROUGH COUNCIL,OPERATIONS TECHNICAL SERVICES,WHISTL UK LIMITED,68868,01/05/2018 00:00,2000805,1.65,0,POSTAGE FROM FRANKING,POSTAL AND COURIER SERVICE PROVIDERS,Invoice,BACS,None,12/04/2018 00:00,2018,1,PS18001826,G3547,ICT DEVELOPMENT,D5467,POSTAGE FROM FRANKING
GUILDFORD BOROUGH COUNCIL,GF NET REVENUE ACCOUNT,WEST CLANDON PARISH COUNCIL,8568,05/04/2018 00:00,1997025,11236.5,0,OOE - PARISH PRECEPTS PAID,LOCAL GOVERNMENT [UK ONLY],Invoice,BACS,None,03/04/2018 00:00,2018,1,PARISH PRECEPT,V01005,GF NET REVENUE ACCOUNT,2482,OOE - PARISH PRECEPTS PAID
GUILDFORD BOROUGH COUNCIL,PAYMENTS AND PURCHASING,WHISTL UK LIMITED,68868,01/05/2018 00:00,2000806,2.49,0,POSTAGE FROM FRANKING,POSTAL AND COURIER SERVICE PROVIDERS,Invoice,BACS,None,18/04/2018 00:00,2018,1,PS18001951,G3598,PURCHASING,D5467,POSTAGE FROM FRANKING
GUILDFORD BOROUGH COUNCIL,CLIMATE CHANGE,WHISTL UK LIMITED,68868,01/05/2018 00:00,2000805,0.33,0,POSTAGE FROM FRANKING,POSTAL AND COURIER SERVICE PROVIDERS,Invoice,BACS,None,12/04/2018 00:00,2018,1,PS18001826,B3911,CLIMATE CHANGE STRATEGY,D5467,POSTAGE FROM FRANKING
GUILDFORD BOROUGH COUNCIL,TENANT PARTICIPATION,WHISTL UK LIMITED,68868,13/04/2018 00:00,1998694,12.67,0,POSTAGE FROM FRANKING,POSTAL AND COURIER SERVICE PROVIDERS,Invoice,BACS,None,05/04/2018 00:00,2018,1,PS18001693,M1152,TENANT PARTICIPATION (BHS),D5467,POSTAGE FROM FRANKING
GUILDFORD BOROUGH COUNCIL,COUNCIL TAX,WHISTL UK LIMITED,68868,13/04/2018 00:00,1998694,242.79,0,POSTAGE FROM FRANKING,POSTAL AND COURIER SERVICE PROVIDERS,Invoice,BACS,None,05/04/2018 00:00,2018,1,PS18001693,F6141,COUNCIL TAX COLLECTN EXPENSES,D5467,POSTAGE FROM FRANKING
GUILDFORD BOROUGH COUNCIL,CLIMATE CHANGE,WHISTL UK LIMITED,68868,01/05/2018 00:00,2000806,1.7,0,POSTAGE FROM FRANKING,POSTAL AND COURIER SERVICE PROVIDERS,Invoice,BACS,None,18/04/2018 00:00,2018,1,PS18001951,G4586,ENERGY SERVICES,D5467,POSTAGE FROM FRANKING
GUILDFORD BOROUGH COUNCIL,BUILDING CONTROL SUMMARY,WHISTL UK LIMITED,68868,01/05/2018 00:00,2000805,6.48,0,POSTAGE FROM FRANKING,POSTAL AND COURIER SERVICE PROVIDERS,Invoice,BACS,None,12/04/2018 00:00,2018,1,PS18001826,D5800,BUILDING CONTROL - NON FEE,D5467,POSTAGE FROM FRANKING
GUILDFORD BOROUGH COUNCIL,OFF STREET PARKING,WHISTL UK LIMITED,68868,01/05/2018 00:00,2000806,57.3,0,POSTAGE FROM FRANKING,POSTAL AND COURIER SERVICE PROVIDERS,Invoice,BACS,None,18/04/2018 00:00,2018,1,PS18001951,B2115,PARKING OFFICE ACCOMM COSTS,D5467,POSTAGE FROM FRANKING
GUILDFORD BOROUGH COUNCIL,DEBTORS,WHISTL UK LIMITED,68868,01/05/2018 00:00,2000805,104.51,0,POSTAGE FROM FRANKING,POSTAL AND COURIER SERVICE PROVIDERS,Invoice,BACS,None,12/04/2018 00:00,2018,1,PS18001826,G3555,DEBTORS,D5467,POSTAGE FROM FRANKING
GUILDFORD BOROUGH COUNCIL,BUSINESS & TOURISM,WHISTL UK LIMITED,68868,01/05/2018 00:00,2000806,7.42,0,POSTAGE FROM FRANKING,POSTAL AND COURIER SERVICE PROVIDERS,Invoice,BACS,None,18/04/2018 00:00,2018,1,PS18001951,F5545,TOURISM,D5467,POSTAGE FROM FRANKING
GUILDFORD BOROUGH COUNCIL,HOUSING SURVEYING SERVICES,WHISTL UK LIMITED,68868,01/05/2018 00:00,2000805,10.05,0,POSTAGE FROM FRANKING,POSTAL AND COURIER SERVICE PROVIDERS,Invoice,BACS,None,12/04/2018 00:00,2018,1,PS18001826,G6525,HOUSING SURVEYING SERVICES,D5467,POSTAGE FROM FRANKING
GUILDFORD BOROUGH COUNCIL,TENANT SELECTION,WHISTL UK LIMITED,68868,13/04/2018 00:00,1998694,7.94,0,POSTAGE FROM FRANKING,POSTAL AND COURIER SERVICE PROVIDERS,Invoice,BACS,None,05/04/2018 00:00,2018,1,PS18001693,M1131,"ADVICE,REGS,TENANT SELECT(SHS)",D5467,POSTAGE FROM FRANKING
GUILDFORD BOROUGH COUNCIL,LEISURE SPORT DEVELOPMENT,WHISTL UK LIMITED,68868,01/05/2018 00:00,2000806,3.94,0,POSTAGE FROM FRANKING,POSTAL AND COURIER SERVICE PROVIDERS,Invoice,BACS,None,18/04/2018 00:00,2018,1,PS18001951,A7311,SPORTS DEVELOPMENT OFFICER,D5467,POSTAGE FROM FRANKING
GUILDFORD BOROUGH COUNCIL,BUSINESS & TOURISM,WHISTL UK LIMITED,68868,13/04/2018 00:00,1998694,0.73,0,POSTAGE FROM FRANKING,POSTAL AND COURIER SERVICE PROVIDERS,Invoice,BACS,None,05/04/2018 00:00,2018,1,PS18001693,F5547,BUSINESS,D5467,POSTAGE FROM FRANKING
GUILDFORD BOROUGH COUNCIL,MANAGEMENT POLICY STRATEGY,WHISTL UK LIMITED,68868,01/05/2018 00:00,2000805,0.76,0,POSTAGE FROM FRANKING,POSTAL AND COURIER SERVICE PROVIDERS,Invoice,BACS,None,12/04/2018 00:00,2018,1,PS18001826,G3545,"ICT MANAGEMENT, POLICY & STRAT",D5467,POSTAGE FROM FRANKING
GUILDFORD BOROUGH COUNCIL,INCOME COLLECTION,WHISTL UK LIMITED,68868,01/05/2018 00:00,2000806,572.58,0,POSTAGE FROM FRANKING,POSTAL AND COURIER SERVICE PROVIDERS,Invoice,BACS,None,18/04/2018 00:00,2018,1,PS18001951,M1121,INCOME COLLECTION (BHS),D5467,POSTAGE FROM FRANKING
GUILDFORD BOROUGH COUNCIL,LEISURE ART DEVELOPMENT,WHISTL UK LIMITED,68868,01/05/2018 00:00,2000805,4.7,0,POSTAGE FROM FRANKING,POSTAL AND COURIER SERVICE PROVIDERS,Invoice,BACS,None,12/04/2018 00:00,2018,1,PS18001826,A3511,ARTS DEVELOPMENT,D5467,POSTAGE FROM FRANKING
GUILDFORD BOROUGH COUNCIL,OFFICE SERVICES TEAM,WHISTL UK LIMITED,68868,13/04/2018 00:00,1998694,0.68,0,POSTAGE FROM FRANKING,POSTAL AND COURIER SERVICE PROVIDERS,Invoice,BACS,None,05/04/2018 00:00,2018,1,PS18001693,G4545,REPROGRAPHICS UNIT,D5467,POSTAGE FROM FRANKING
GUILDFORD BOROUGH COUNCIL,PARKS & COUNTRYSIDE,WHISTL UK LIMITED,68868,01/05/2018 00:00,2000805,31,0,POSTAGE FROM FRANKING,POSTAL AND COURIER SERVICE PROVIDERS,Invoice,BACS,None,12/04/2018 00:00,2018,1,PS18001826,A1900,PARKS MANAGEMENT AND ADMIN,D5467,POSTAGE FROM FRANKING
GUILDFORD BOROUGH COUNCIL,CLIMATE CHANGE,WHISTL UK LIMITED,68868,01/05/2018 00:00,2000805,2.03,0,POSTAGE FROM FRANKING,POSTAL AND COURIER SERVICE PROVIDERS,Invoice,BACS,None,12/04/2018 00:00,2018,1,PS18001826,G4586,ENERGY SERVICES,D5467,POSTAGE FROM FRANKING
GUILDFORD BOROUGH COUNCIL,PUBLIC RELATIONS,WHISTL UK LIMITED,68868,01/05/2018 00:00,2000806,0.64,0,POSTAGE FROM FRANKING,POSTAL AND COURIER SERVICE PROVIDERS,Invoice,BACS,None,18/04/2018 00:00,2018,1,PS18001951,F5551,PUBLIC RELATIONS & MARKETING,D5467,POSTAGE FROM FRANKING
GUILDFORD BOROUGH COUNCIL,GUILDHALL,WHISTL UK LIMITED,68868,01/05/2018 00:00,2000805,2.47,0,POSTAGE FROM FRANKING,POSTAL AND COURIER SERVICE PROVIDERS,Invoice,BACS,None,12/04/2018 00:00,2018,1,PS18001826,F3311,GUILDHALL,D5467,POSTAGE FROM FRANKING
GUILDFORD BOROUGH COUNCIL,ELECTORAL REGISTRATION,WHISTL UK LIMITED,68868,01/05/2018 00:00,2000806,90.87,0,POSTAGE FROM FRANKING,POSTAL AND COURIER SERVICE PROVIDERS,Invoice,BACS,None,18/04/2018 00:00,2018,1,PS18001951,F2512,INDIVID ELECTORAL REGISTRATION,D5467,POSTAGE FROM FRANKING
GUILDFORD BOROUGH COUNCIL,PAYMENTS AND PURCHASING,WHISTL UK LIMITED,68868,01/05/2018 00:00,2000805,16.62,0,POSTAGE FROM FRANKING,POSTAL AND COURIER SERVICE PROVIDERS,Invoice,BACS,None,12/04/2018 00:00,2018,1,PS18001826,G3596,CREDITORS,D5467,POSTAGE FROM FRANKING
GUILDFORD BOROUGH COUNCIL,OFFICE SERVICES TEAM,WHISTL UK LIMITED,68868,01/05/2018 00:00,2000806,1.7,0,POSTAGE FROM FRANKING,POSTAL AND COURIER SERVICE PROVIDERS,Invoice,BACS,None,18/04/2018 00:00,2018,1,PS18001951,G4545,REPROGRAPHICS UNIT,D5467,POSTAGE FROM FRANKING
GUILDFORD BOROUGH COUNCIL,BUSINESS & TOURISM,WHISTL UK LIMITED,68868,01/05/2018 00:00,2000805,2.2,0,POSTAGE FROM FRANKING,POSTAL AND COURIER SERVICE PROVIDERS,Invoice,BACS,None,12/04/2018 00:00,2018,1,PS18001826,F5547,BUSINESS,D5467,POSTAGE FROM FRANKING
GUILDFORD BOROUGH COUNCIL,TRANSPORTATION,WHISTL UK LIMITED,68868,01/05/2018 00:00,2000806,1.24,0,POSTAGE FROM FRANKING,POSTAL AND COURIER SERVICE PROVIDERS,Invoice,BACS,None,18/04/2018 00:00,2018,1,PS18001951,B5122,TRANSPORTATION INITIATIVES,D5467,POSTAGE FROM FRANKING
GUILDFORD BOROUGH COUNCIL,TENANTS' SERVICES,WHISTL UK LIMITED,68868,01/05/2018 00:00,2000806,552.13,0,POSTAGE FROM FRANKING,POSTAL AND COURIER SERVICE PROVIDERS,Invoice,BACS,None,18/04/2018 00:00,2018,1,PS18001951,M1151,TENANTS SERVICES (BHS),D5467,POSTAGE FROM FRANKING
GUILDFORD BOROUGH COUNCIL,LEISURE ART DEVELOPMENT,WHISTL UK LIMITED,68868,13/04/2018 00:00,1998694,1.56,0,POSTAGE FROM FRANKING,POSTAL AND COURIER SERVICE PROVIDERS,Invoice,BACS,None,05/04/2018 00:00,2018,1,PS18001693,A3511,ARTS DEVELOPMENT,D5467,POSTAGE FROM FRANKING
GUILDFORD BOROUGH COUNCIL,OFFICE SERVICES TEAM,WHISTL UK LIMITED,68868,01/05/2018 00:00,2000805,2.03,0,POSTAGE FROM FRANKING,POSTAL AND COURIER SERVICE PROVIDERS,Invoice,BACS,None,12/04/2018 00:00,2018,1,PS18001826,G4545,REPROGRAPHICS UNIT,D5467,POSTAGE FROM FRANKING
GUILDFORD BOROUGH COUNCIL,WEBSITE,WHISTL UK LIMITED,68868,13/04/2018 00:00,1998694,0.42,0,POSTAGE FROM FRANKING,POSTAL AND COURIER SERVICE PROVIDERS,Invoice,BACS,None,05/04/2018 00:00,2018,1,PS18001693,F1141,INTERNET SITE ACCESS,D5467,POSTAGE FROM FRANKING
GUILDFORD BOROUGH COUNCIL,POLICY,WHISTL UK LIMITED,68868,13/04/2018 00:00,1998694,4.94,0,POSTAGE FROM FRANKING,POSTAL AND COURIER SERVICE PROVIDERS,Invoice,BACS,None,05/04/2018 00:00,2018,1,PS18001693,D5300,POLICY,D5467,POSTAGE FROM FRANKING
GUILDFORD BOROUGH COUNCIL,TAXI LICENSING,WHISTL UK LIMITED,68868,01/05/2018 00:00,2000806,5.49,0,POSTAGE FROM FRANKING,POSTAL AND COURIER SERVICE PROVIDERS,Invoice,BACS,None,18/04/2018 00:00,2018,1,PS18001951,H1108,HC & PC VEHICLES,D5467,POSTAGE FROM FRANKING
GUILDFORD BOROUGH COUNCIL,ICT CUSTOMER TECHNICAL SUPPORT,WHISTL UK LIMITED,68868,13/04/2018 00:00,1998694,0.55,0,POSTAGE FROM FRANKING,POSTAL AND COURIER SERVICE PROVIDERS,Invoice,BACS,None,05/04/2018 00:00,2018,1,PS18001693,G3542,CUSTOMER AND TECHNICAL SUPPORT,D5467,POSTAGE FROM FRANKING
GUILDFORD BOROUGH COUNCIL,PARISH & LOCAL LIAISON,TONGHAM PARISH COUNCIL,8242,05/04/2018 00:00,1997045,2200.5,0,LCTSS PARISH GRANT,LOCAL GOVERNMENT [UK ONLY],Invoice,BACS,None,03/04/2018 00:00,2018,1,PARISH PRECEPT,F1115,PARISH LIAISON,D7431,LCTSS PARISH GRANT
GUILDFORD BOROUGH COUNCIL,NEW BUILD,THE OYSTER PARTNERSHIP LTD,81422,24/04/2018 00:00,1997834,106.67,0,AGENCY STAFF,OTHER RECRUITMENT AGENCIES AND SERVICE PROVIDERS,Invoice,BACS,None,04/04/2018 00:00,2018,1,1030356,N30018,THE HOMESTEAD,1222,AGENCY STAFF
GUILDFORD BOROUGH COUNCIL,CREMATORIUM,THE COLUMBARIA COMPANY,8026,19/04/2018 00:00,1999064,70,0,VASE BLOCKS,STONEMASONS,Invoice,BACS,None,16/04/2018 00:00,2018,1,INV0059934,A1500,GUILDFORD CREMATORIUM,D1556,VASE BLOCKS
GUILDFORD BOROUGH COUNCIL,CREMATORIUM,THE COLUMBARIA COMPANY,8026,19/04/2018 00:00,1997891,133.5,0,MEMORIAL VAULTS,STONEMASONS,Invoice,BACS,None,06/04/2018 00:00,2018,1,INV0059781,A1500,GUILDFORD CREMATORIUM,D1547,MEMORIAL VAULTS
GUILDFORD BOROUGH COUNCIL,CREMATORIUM,THE COLUMBARIA COMPANY,8026,19/04/2018 00:00,1999064,93,0,MEMORIAL VAULTS,STONEMASONS,Invoice,BACS,None,16/04/2018 00:00,2018,1,INV0059934,A1500,GUILDFORD CREMATORIUM,D1547,MEMORIAL VAULTS
GUILDFORD BOROUGH COUNCIL,VEHICLE MAINTENANCE,THINKONE LTD,93562,26/04/2018 00:00,1998960,484.21,0,EXTERNAL VEHICLE REPAIR,THIRD PARTY SUPPLIER,Invoice,BACS,None,10/04/2018 00:00,2018,1,78542920,K5551,VEHICLE MAINTENANCE,D1593,EXTERNAL VEHICLE REPAIR
GUILDFORD BOROUGH COUNCIL,NEW BUILD,THE OYSTER PARTNERSHIP LTD,81422,24/04/2018 00:00,1999727,320,0,AGENCY STAFF,OTHER RECRUITMENT AGENCIES AND SERVICE PROVIDERS,Invoice,BACS,None,18/04/2018 00:00,2018,1,1031017,N30017,GARAGE SITE - GT GOODWIN DRIVE,1222,AGENCY STAFF
GUILDFORD BOROUGH COUNCIL,NEW BUILD,THE OYSTER PARTNERSHIP LTD,81422,24/04/2018 00:00,1997834,80,0,AGENCY STAFF,OTHER RECRUITMENT AGENCIES AND SERVICE PROVIDERS,Invoice,BACS,None,04/04/2018 00:00,2018,1,1030356,N30015,GARAGE SITE - POND MEADOW,1222,AGENCY STAFF
GUILDFORD BOROUGH COUNCIL,BUSINESS & TOURISM,TAKE ONE MEDIA LTD,10567,10/04/2018 00:00,1997898,4000,0,VISITORS GUIDE,FULL SERVICE MARKETING AGENCIES,Invoice,BACS,None,09/04/2018 00:00,2018,1,LF/I023043,F5545,TOURISM,D9499,VISITORS GUIDE
GUILDFORD BOROUGH COUNCIL,NEW BUILD,THE OYSTER PARTNERSHIP LTD,81422,24/04/2018 00:00,1999727,160,0,AGENCY STAFF,OTHER RECRUITMENT AGENCIES AND SERVICE PROVIDERS,Invoice,BACS,None,18/04/2018 00:00,2018,1,1031017,N30015,GARAGE SITE - POND MEADOW,1222,AGENCY STAFF
GUILDFORD BOROUGH COUNCIL,NEW BUILD,THE OYSTER PARTNERSHIP LTD,81422,24/04/2018 00:00,1997834,133.33,0,AGENCY STAFF,OTHER RECRUITMENT AGENCIES AND SERVICE PROVIDERS,Invoice,BACS,None,04/04/2018 00:00,2018,1,1030356,N30014,WILLOW  WAY,1222,AGENCY STAFF
GUILDFORD BOROUGH COUNCIL,BUSINESS & TOURISM,TAKE ONE MEDIA LTD,10567,10/04/2018 00:00,1997897,1330,0,VISITORS GUIDE,FULL SERVICE MARKETING AGENCIES,Invoice,BACS,None,09/04/2018 00:00,2018,1,LF/I023044,F5545,TOURISM,D9499,VISITORS GUIDE
GUILDFORD BOROUGH COUNCIL,VEHICLE MAINTENANCE,SVL (SUSSEX) LTD T/A SUSSEX VANLINE,93619,26/04/2018 00:00,1999295,300,0,NEW / REPLACE EQUIP. & TOOLS;,,Invoice,BACS,None,03/04/2018 00:00,2018,1,31251,K5551,VEHICLE MAINTENANCE,D1428,NEW / REPLACE EQUIP. & TOOLS;
GUILDFORD BOROUGH COUNCIL,PROPERTY,THE OYSTER PARTNERSHIP LTD,81422,17/04/2018 00:00,1998986,2300,0,SALARIES - GENERAL CAPITAL SAL,OTHER RECRUITMENT AGENCIES AND SERVICE PROVIDERS,Invoice,BACS,None,11/04/2018 00:00,2018,1,1030679,P74040,SARP - GBC OWN COSTS & SHARE,1656,SALARIES - GENERAL CAPITAL SAL
GUILDFORD BOROUGH COUNCIL,TOURIST INFORMATION CENTRE,REDACTED,0,17/04/2018 00:00,1998725,84,0,TICKET SALES FOR PROMOTERS,THIRD PARTY SUPPLIER,Invoice,BACS,None,11/04/2018 00:00,2018,1,REDACTED,F5541,TOURIST INFORMATION CENTRE,K5994,TICKET SALES FOR PROMOTERS
GUILDFORD BOROUGH COUNCIL,NEW BUILD,THE OYSTER PARTNERSHIP LTD,81422,24/04/2018 00:00,1999727,160,0,AGENCY STAFF,OTHER RECRUITMENT AGENCIES AND SERVICE PROVIDERS,Invoice,BACS,None,18/04/2018 00:00,2018,1,1031017,N30016,GARAGE SITE - ROWAN CLOSE,1222,AGENCY STAFF
GUILDFORD BOROUGH COUNCIL,GUILDFORD HOUSE,REDACTED,0,12/04/2018 00:00,1998446,25.5,0,CRAFTWORK - SALE OR RETURN,,Invoice,BACS,None,04/04/2018 00:00,2018,1,REDACTED,A4511,GUILDFORD HOUSE ADMINISTRATION,K3931,CRAFTWORK - SALE OR RETURN
GUILDFORD BOROUGH COUNCIL,BUILDING MAINTENANCE,SURREY COUNTY WINDOWS LTD,68672,17/04/2018 00:00,1998905,1749.02,0,PAYMENT TO CONTRACTORS,WINDOW AND DOOR INSTALLERS,Invoice,BACS,None,13/04/2018 00:00,2018,1,ORD X0068007,K1515,BUILDING MAINTENANCE,D4468,PAYMENT TO CONTRACTORS
GUILDFORD BOROUGH COUNCIL,NEW BUILD,THE OYSTER PARTNERSHIP LTD,81422,24/04/2018 00:00,1999727,213.33,0,AGENCY STAFF,OTHER RECRUITMENT AGENCIES AND SERVICE PROVIDERS,Invoice,BACS,None,18/04/2018 00:00,2018,1,1031017,N30018,THE HOMESTEAD,1222,AGENCY STAFF
GUILDFORD BOROUGH COUNCIL,GUILDFORD HOUSE,REDACTED,0,12/04/2018 00:00,1998446,-8.93,0,COMMISSION ON CRAFTWORK SALES,,Invoice,BACS,None,04/04/2018 00:00,2018,1,REDACTED,A4511,GUILDFORD HOUSE ADMINISTRATION,K5918,COMMISSION ON CRAFTWORK SALES
GUILDFORD BOROUGH COUNCIL,OTHER ST DEBTORS,REDACTED,0,01/05/2018 00:00,2000931,1650,0,CASH PAID,PROPERTY LETTING AND ESTATE AGENTS,Invoice,BACS,None,30/04/2018 00:00,2018,1,REDACTED,J01064,HOUSING H4U SCHEME,2175,CASH PAID
GUILDFORD BOROUGH COUNCIL,PARKS & COUNTRYSIDE,T J HUNT CONTRACTING LTD,9601,19/04/2018 00:00,1999055,11117,0,OPERATIONAL INVESTMENT,CIVIL ENGINEERS,Invoice,BACS,None,16/04/2018 00:00,2018,1,27774,A1900,PARKS MANAGEMENT AND ADMIN,D9428,OPERATIONAL INVESTMENT
GUILDFORD BOROUGH COUNCIL,NEW BUILD,THE OYSTER PARTNERSHIP LTD,81422,24/04/2018 00:00,1997834,80,0,AGENCY STAFF,OTHER RECRUITMENT AGENCIES AND SERVICE PROVIDERS,Invoice,BACS,None,04/04/2018 00:00,2018,1,1030356,N30016,GARAGE SITE - ROWAN CLOSE,1222,AGENCY STAFF
GUILDFORD BOROUGH COUNCIL,GF NET REVENUE ACCOUNT,TONGHAM PARISH COUNCIL,8242,05/04/2018 00:00,1997045,14537,0,OOE - PARISH PRECEPTS PAID,LOCAL GOVERNMENT [UK ONLY],Invoice,BACS,None,03/04/2018 00:00,2018,1,PARISH PRECEPT,V01005,GF NET REVENUE ACCOUNT,2482,OOE - PARISH PRECEPTS PAID
GUILDFORD BOROUGH COUNCIL,BUSINESS & TOURISM,THE TOURISM SOCIETY,59843,10/04/2018 00:00,1997924,120,0,GENERAL TOURISM MARKETING,OTHER TRAVEL AND TOURISM SERVICE PROVIDERS,Invoice,BACS,None,01/04/2018 00:00,2018,1,18180,F5545,TOURISM,D9403,GENERAL TOURISM MARKETING
GUILDFORD BOROUGH COUNCIL,TOURIST INFORMATION CENTRE,REDACTED,0,17/04/2018 00:00,1998726,80,0,TICKET SALES FOR PROMOTERS,,Invoice,BACS,None,11/04/2018 00:00,2018,1,REDACTED,F5541,TOURIST INFORMATION CENTRE,K5994,TICKET SALES FOR PROMOTERS
GUILDFORD BOROUGH COUNCIL,NEW BUILD,THE OYSTER PARTNERSHIP LTD,81422,24/04/2018 00:00,1997834,160,0,AGENCY STAFF,OTHER RECRUITMENT AGENCIES AND SERVICE PROVIDERS,Invoice,BACS,None,04/04/2018 00:00,2018,1,1030356,N30017,GARAGE SITE - GT GOODWIN DRIVE,1222,AGENCY STAFF
GUILDFORD BOROUGH COUNCIL,PROPERTY,THE OYSTER PARTNERSHIP LTD,81422,24/04/2018 00:00,1999734,2875,0,SALARIES - GENERAL CAPITAL SAL,OTHER RECRUITMENT AGENCIES AND SERVICE PROVIDERS,Invoice,BACS,None,18/04/2018 00:00,2018,1,1031016,P74040,SARP - GBC OWN COSTS & SHARE,1656,SALARIES - GENERAL CAPITAL SAL
GUILDFORD BOROUGH COUNCIL,CREMATORIUM,THOMSON ECOLOGY LTD,49614,26/04/2018 00:00,1999857,561,0,CONSULTANTS FEES - PROJECTS,ENVIRONMENTAL CONSULTANTS,Invoice,BACS,None,19/04/2018 00:00,2018,1,INV011427,P05009,REFURBISH/REBUILD CREMATORIUM,1221,CONSULTANTS FEES - PROJECTS
GUILDFORD BOROUGH COUNCIL,OTHER ST CREDITORS,SURREY MAYORS ASSOCIATION,15590,24/04/2018 00:00,1999842,150,0,CURRENT YEARS EXPENDITURE,TRADE ASSOCIATIONS AND REGULATORY BODIES,Invoice,BACS,None,19/04/2018 00:00,2018,1,LIFE M/SHIP,L02138,DEPUTY MAYORS ALLOWANCE,2239,CURRENT YEARS EXPENDITURE
GUILDFORD BOROUGH COUNCIL,ON STREET PARKING,SWIFT INDUSTRIAL SUPPLIES LTD,7838,10/04/2018 00:00,1997620,574.6,0,CLOTHING & UNIFORM,PERSONAL PROTECTIVE EQUIPMENT (PPE) SUPPLIERS,Invoice,BACS,None,04/04/2018 00:00,2018,1,IN106682,B2217,GUILDFORD ON-STREET,D2421,CLOTHING & UNIFORM
GUILDFORD BOROUGH COUNCIL,TOURIST INFORMATION CENTRE,REDACTED,0,17/04/2018 00:00,1998726,-8,0,BOX OFFICE COMMISSION,,Invoice,BACS,None,11/04/2018 00:00,2018,1,REDACTED,F5541,TOURIST INFORMATION CENTRE,K5919,BOX OFFICE COMMISSION
GUILDFORD BOROUGH COUNCIL,BUILDING MAINTENANCE,SURREY COUNTY WINDOWS LTD,68672,10/04/2018 00:00,1997934,3597.64,0,MATERIALS; SUB CONTRACTOR,WINDOW AND DOOR INSTALLERS,Invoice,BACS,None,03/04/2018 00:00,2018,1,ORD X0068007,K1515,BUILDING MAINTENANCE,D1542,MATERIALS; SUB CONTRACTOR
GUILDFORD BOROUGH COUNCIL,TENANTS' SERVICES,THE PUBLIC TRUSTEE,17872,24/04/2018 00:00,1999840,40,0,LEGAL EXPENSES,OTHER LEGAL SERVICE PROVIDERS,Invoice,BACS,None,19/04/2018 00:00,2018,1,79 CYPRESS ROAD,M1151,TENANTS SERVICES (BHS),D4457,LEGAL EXPENSES
GUILDFORD BOROUGH COUNCIL,NEW BUILD,THE OYSTER PARTNERSHIP LTD,81422,24/04/2018 00:00,1999727,266.67,0,AGENCY STAFF,OTHER RECRUITMENT AGENCIES AND SERVICE PROVIDERS,Invoice,BACS,None,18/04/2018 00:00,2018,1,1031017,N30014,WILLOW  WAY,1222,AGENCY STAFF
GUILDFORD BOROUGH COUNCIL,TENANTS' SERVICES,THE PUBLIC TRUSTEE,8145,24/04/2018 00:00,1999835,40,0,LEGAL EXPENSES,TRADE ASSOCIATIONS AND REGULATORY BODIES,Invoice,BACS,None,19/04/2018 00:00,2018,1,69 THE CHASE,M1151,TENANTS SERVICES (BHS),D4457,LEGAL EXPENSES
GUILDFORD BOROUGH COUNCIL,PARKS & COUNTRYSIDE,THE TRAILER CENTRE,8181,17/04/2018 00:00,1997854,214.5,0,MOWERS & MACHINERY R&M,CAR AND VAN PARTS SUPPLIERS,Invoice,BACS,None,03/04/2018 00:00,2018,1,6046,A1209,PARKS AND OPEN SPACES GENERAL,C1341,MOWERS & MACHINERY R&M
GUILDFORD BOROUGH COUNCIL,TENANTS' SERVICES,THE PUBLIC TRUSTEE,17872,26/04/2018 00:00,2000250,40,0,LEGAL EXPENSES,OTHER LEGAL SERVICE PROVIDERS,Invoice,BACS,None,20/04/2018 00:00,2018,1,8 TARRAGON CT,M1151,TENANTS SERVICES (BHS),D4457,LEGAL EXPENSES
GUILDFORD BOROUGH COUNCIL,BUILDING MAINTENANCE,SURREY COUNTY WINDOWS LTD,68672,12/04/2018 00:00,1998393,3306.05,0,MATERIALS; SUB CONTRACTOR,WINDOW AND DOOR INSTALLERS,Invoice,BACS,None,06/04/2018 00:00,2018,1,ORD X0068007,K1515,BUILDING MAINTENANCE,D1542,MATERIALS; SUB CONTRACTOR
GUILDFORD BOROUGH COUNCIL,TENANTS' SERVICES,THE PUBLIC TRUSTEE,17872,01/05/2018 00:00,2000735,40,0,LEGAL EXPENSES,OTHER LEGAL SERVICE PROVIDERS,Invoice,BACS,None,26/04/2018 00:00,2018,1,16 CAXTONS,M1151,TENANTS SERVICES (BHS),D4457,LEGAL EXPENSES
GUILDFORD BOROUGH COUNCIL,PROPERTY,THE OYSTER PARTNERSHIP LTD,81422,10/04/2018 00:00,1997623,2300,0,SALARIES - GENERAL CAPITAL SAL,OTHER RECRUITMENT AGENCIES AND SERVICE PROVIDERS,Invoice,BACS,None,04/04/2018 00:00,2018,1,1030355,P74040,SARP - GBC OWN COSTS & SHARE,1656,SALARIES - GENERAL CAPITAL SAL
GUILDFORD BOROUGH COUNCIL,PARKS & COUNTRYSIDE,THE ROYAL BRITISH LEGION - SURREY,80098,24/04/2018 00:00,1999899,2000,0,NEW / REPLACE EQUIP. & TOOLS;,CHARITIES AND VOLUNTARY ORGANISATIONS,Invoice,BACS,None,20/04/2018 00:00,2018,1,SILENT SOLDIER,A1209,PARKS AND OPEN SPACES GENERAL,D1428,NEW / REPLACE EQUIP. & TOOLS;
GUILDFORD BOROUGH COUNCIL,PARKS & COUNTRYSIDE,THE STATIONERY OFFICE LTD,8170,17/04/2018 00:00,1997886,22.5,0,HEALTH & SAFETY EQUIPMENT,,Invoice,BACS,None,04/04/2018 00:00,2018,1,27984265,A1273,WOODBRIDGE RD PAVILION,D9773,HEALTH & SAFETY EQUIPMENT
GUILDFORD BOROUGH COUNCIL,TENANTS' SERVICES,THE PUBLIC TRUSTEE,8145,12/04/2018 00:00,1998295,40,0,LEGAL EXPENSES,TRADE ASSOCIATIONS AND REGULATORY BODIES,Invoice,BACS,None,10/04/2018 00:00,2018,1,58A CARFAX AVE,M1151,TENANTS SERVICES (BHS),D4457,LEGAL EXPENSES
GUILDFORD BOROUGH COUNCIL,TOURIST INFORMATION CENTRE,REDACTED,0,17/04/2018 00:00,1998725,-8.4,0,BOX OFFICE COMMISSION,THIRD PARTY SUPPLIER,Invoice,BACS,None,11/04/2018 00:00,2018,1,REDACTED,F5541,TOURIST INFORMATION CENTRE,K5919,BOX OFFICE COMMISSION
GUILDFORD BOROUGH COUNCIL,DEBTORS,TREMARK ASSOCIATES LIMITED,57526,17/04/2018 00:00,1997851,100,0,DEBT COLLECTION COURT EXPENSES,OTHER LEGAL SERVICE PROVIDERS,Invoice,BACS,None,04/04/2018 00:00,2018,1,81826,G3555,DEBTORS,D4422,DEBT COLLECTION COURT EXPENSES
GUILDFORD BOROUGH COUNCIL,REFUSE AND RECYCLING,REDACTED,0,01/05/2018 00:00,2000748,32,0,GARDEN WASTE GREEN BIN SALES,,Invoice,BACS,None,26/04/2018 00:00,2018,1,REDACTED,B7744,GREEN WASTE,K3936,GARDEN WASTE GREEN BIN SALES
GUILDFORD BOROUGH COUNCIL,DEBTORS,TREMARK ASSOCIATES LIMITED,57526,19/04/2018 00:00,1998347,90,0,DEBT COLLECTION COURT EXPENSES,OTHER LEGAL SERVICE PROVIDERS,Invoice,BACS,None,05/04/2018 00:00,2018,1,81868,G3555,DEBTORS,D4422,DEBT COLLECTION COURT EXPENSES
GUILDFORD BOROUGH COUNCIL,TOURIST INFORMATION CENTRE,REDACTED,0,01/05/2018 00:00,2000788,-11.9,0,BOX OFFICE COMMISSION,,Invoice,BACS,None,26/04/2018 00:00,2018,1,REDACTED,F5541,TOURIST INFORMATION CENTRE,K5919,BOX OFFICE COMMISSION
GUILDFORD BOROUGH COUNCIL,PARKS & COUNTRYSIDE,TRADE UK,65055,19/04/2018 00:00,1998979,4.95,0,NEW / REPLACE EQUIP. & TOOLS;,DO-IT-YOURSELF (DIY) STORES,Invoice,BACS,None,13/04/2018 00:00,2018,1,873964217,A1601,STOKE NURSERY OFFICES,D1428,NEW / REPLACE EQUIP. & TOOLS;
GUILDFORD BOROUGH COUNCIL,TOURIST INFORMATION CENTRE,REDACTED,0,01/05/2018 00:00,2000788,119,0,TICKET SALES FOR PROMOTERS,,Invoice,BACS,None,26/04/2018 00:00,2018,1,REDACTED,F5541,TOURIST INFORMATION CENTRE,K5994,TICKET SALES FOR PROMOTERS
GUILDFORD BOROUGH COUNCIL,CARELINE SERVICE,TUNSTALL HEALTHCARE (UK) LTD,10031,26/04/2018 00:00,2000124,200,0,NEW / REPLACE EQUIP. & TOOLS;,COMMUNITY ALARM SUPPLIERS,Invoice,BACS,None,23/04/2018 00:00,2018,1,3IN/10317081,C2511,CARELINE,D1428,NEW / REPLACE EQUIP. & TOOLS;
GUILDFORD BOROUGH COUNCIL,CARELINE SERVICE,TUNSTALL HEALTHCARE (UK) LTD,10031,24/04/2018 00:00,1999424,2868.7,0,EQUIPMENT MTNCE CONTRACTS,COMMUNITY ALARM SUPPLIERS,Invoice,BACS,None,16/04/2018 00:00,2018,1,INV/30036058,C2511,CARELINE,D1422,EQUIPMENT MTNCE CONTRACTS
GUILDFORD BOROUGH COUNCIL,GF NET REVENUE ACCOUNT,WANBOROUGH PARISH COUNCIL,8531,05/04/2018 00:00,1997046,1925,0,OOE - PARISH PRECEPTS PAID,LOCAL GOVERNMENT [UK ONLY],Invoice,BACS,None,03/04/2018 00:00,2018,1,PARISH PRECEPT,V01005,GF NET REVENUE ACCOUNT,2482,OOE - PARISH PRECEPTS PAID
GUILDFORD BOROUGH COUNCIL,PRIVATE SECTOR HOUSING,VIVID RESOURCING LIMITED,85680,24/04/2018 00:00,1999782,1050.39,0,AGENCY STAFF,OTHER RECRUITMENT AGENCIES AND SERVICE PROVIDERS,Invoice,BACS,None,18/04/2018 00:00,2018,1,27175,C5122,PRIVATE SECTOR HOUSING STANDAR,A5191,AGENCY STAFF
GUILDFORD BOROUGH COUNCIL,OFFICE SERVICES TEAM,TRADE UK,65055,17/04/2018 00:00,1999012,66.29,0,NEW / REPLACE EQUIP. & TOOLS;,DO-IT-YOURSELF (DIY) STORES,Invoice,BACS,None,13/04/2018 00:00,2018,1,873964225,G4585,OFFICE SERVICES,D1428,NEW / REPLACE EQUIP. & TOOLS;
GUILDFORD BOROUGH COUNCIL,DEVELOPMENT CONTROL,URBAN DESIGN LONDON LTD,87784,24/04/2018 00:00,1999793,1000,0,TRAINING,INTERIOR DESIGNERS,Invoice,BACS,None,18/04/2018 00:00,2018,1,UDL060,D5100,DEVELOPMENT CONTROL - FEE EARN,A7161,TRAINING
GUILDFORD BOROUGH COUNCIL,DEBTORS,TREMARK ASSOCIATES LIMITED,57526,19/04/2018 00:00,1998346,90,0,DEBT COLLECTION COURT EXPENSES,OTHER LEGAL SERVICE PROVIDERS,Invoice,BACS,None,05/04/2018 00:00,2018,1,81867,G3555,DEBTORS,D4422,DEBT COLLECTION COURT EXPENSES
GUILDFORD BOROUGH COUNCIL,DEBTORS,TREMARK ASSOCIATES LIMITED,57526,19/04/2018 00:00,1997852,100,0,DEBT COLLECTION COURT EXPENSES,OTHER LEGAL SERVICE PROVIDERS,Invoice,BACS,None,04/04/2018 00:00,2018,1,81837,G3555,DEBTORS,D4422,DEBT COLLECTION COURT EXPENSES
GUILDFORD BOROUGH COUNCIL,TOURIST INFORMATION CENTRE,REDACTED,0,17/04/2018 00:00,1998718,-4.75,0,BOX OFFICE COMMISSION,,Invoice,BACS,None,11/04/2018 00:00,2018,1,REDACTED,F5541,TOURIST INFORMATION CENTRE,K5919,BOX OFFICE COMMISSION
GUILDFORD BOROUGH COUNCIL,TOURIST INFORMATION CENTRE,REDACTED,0,17/04/2018 00:00,1998718,47.5,0,TICKET SALES FOR PROMOTERS,,Invoice,BACS,None,11/04/2018 00:00,2018,1,REDACTED,F5541,TOURIST INFORMATION CENTRE,K5994,TICKET SALES FOR PROMOTERS
GUILDFORD BOROUGH COUNCIL,BUSINESS & TOURISM,TRAVMEDIA (UK) LIMITED,65662,12/04/2018 00:00,1997894,1300,0,GENERAL TOURISM MARKETING,OTHER INFORMATION SERVICE PROVIDERS,Invoice,BACS,None,05/04/2018 00:00,2018,1,TRAV42278,F5545,TOURISM,D9403,GENERAL TOURISM MARKETING
GUILDFORD BOROUGH COUNCIL,PARKS & COUNTRYSIDE,TRADE UK,65055,19/04/2018 00:00,1998979,487.69,0,NEW / REPLACE EQUIP. & TOOLS;,DO-IT-YOURSELF (DIY) STORES,Invoice,BACS,None,13/04/2018 00:00,2018,1,873964217,A1250,STOKE PARK,D1428,NEW / REPLACE EQUIP. & TOOLS;
GUILDFORD BOROUGH COUNCIL,PARKS & COUNTRYSIDE,TRADE UK,65055,19/04/2018 00:00,1998979,238.83,0,NEW / REPLACE EQUIP. & TOOLS;,DO-IT-YOURSELF (DIY) STORES,Invoice,BACS,None,13/04/2018 00:00,2018,1,873964217,A1209,PARKS AND OPEN SPACES GENERAL,D1428,NEW / REPLACE EQUIP. & TOOLS;
GUILDFORD BOROUGH COUNCIL,PARKS & COUNTRYSIDE,TRADE UK,65055,26/04/2018 00:00,1999374,749.38,0,NEW / REPLACE EQUIP. & TOOLS;,DO-IT-YOURSELF (DIY) STORES,Invoice,BACS,None,16/04/2018 00:00,2018,1,874437741,A1209,PARKS AND OPEN SPACES GENERAL,D1428,NEW / REPLACE EQUIP. & TOOLS;
GUILDFORD BOROUGH COUNCIL,PRIVATE SECTOR HOUSING,VIVID RESOURCING LIMITED,85680,10/04/2018 00:00,1997856,943.14,0,AGENCY STAFF,OTHER RECRUITMENT AGENCIES AND SERVICE PROVIDERS,Invoice,BACS,None,05/04/2018 00:00,2018,1,26844,C5122,PRIVATE SECTOR HOUSING STANDAR,A5191,AGENCY STAFF
GUILDFORD BOROUGH COUNCIL,PARISH & LOCAL LIAISON,WANBOROUGH PARISH COUNCIL,8531,05/04/2018 00:00,1997046,29,0,LCTSS PARISH GRANT,LOCAL GOVERNMENT [UK ONLY],Invoice,BACS,None,03/04/2018 00:00,2018,1,PARISH PRECEPT,F1115,PARISH LIAISON,D7431,LCTSS PARISH GRANT
GUILDFORD BOROUGH COUNCIL,CREMATORIUM,TOWN & COUNTRY MEMORIALS  LTD,8265,19/04/2018 00:00,1999297,97.5,0,MEMORIAL PLAQUES - GRANITE,OTHER GOODS AND SERVICES PROVIDERS,Invoice,BACS,None,17/04/2018 00:00,2018,1,27383,A1500,GUILDFORD CREMATORIUM,D1559,MEMORIAL PLAQUES - GRANITE
GUILDFORD BOROUGH COUNCIL,GRANTS,WEALDEN SERVICES LTD,69228,17/04/2018 00:00,1998713,3647.64,0,GRANTS TO PRIVATE OWNERS,PROPERTY MAINTENANCE CONTRACTORS,Invoice,BACS,None,11/04/2018 00:00,2018,1,45761,N51008,MANDATORY DFG,1311,GRANTS TO PRIVATE OWNERS
GUILDFORD BOROUGH COUNCIL,OFFICE SERVICES TEAM,TOWER PRESS LTD,80512,17/04/2018 00:00,1998646,165,0,EXTERNAL PRINTING & DESIGN,,Invoice,BACS,None,05/04/2018 00:00,2018,1,14726,G4545,REPROGRAPHICS UNIT,D3454,EXTERNAL PRINTING & DESIGN
GUILDFORD BOROUGH COUNCIL,BUSINESS & TOURISM,TOURISM SOUTH EAST,7611,26/04/2018 00:00,1998780,2500,0,TOURISM SE MEMBERSHIP,OTHER TRAVEL AND TOURISM SERVICE PROVIDERS,Invoice,BACS,None,12/04/2018 00:00,2018,1,LA1803,F5545,TOURISM,D7477,TOURISM SE MEMBERSHIP
GUILDFORD BOROUGH COUNCIL,ELECTIONS,RESTORE DATASHRED LIMITED,75332,17/04/2018 00:00,1998310,10.88,0,REMOVAL OF CONFIDENTIAL WASTE,CONFIDENTIAL WASTE DISPOSAL PROVIDERS,Invoice,BACS,None,05/04/2018 00:00,2018,1,682029,F2151,ELECTIONS,D4490,REMOVAL OF CONFIDENTIAL WASTE
GUILDFORD BOROUGH COUNCIL,OFFICE SERVICES TEAM,RESTORE DATASHRED LIMITED,75332,17/04/2018 00:00,1998309,-350,0,REMOVAL OF CONFIDENTIAL WASTE,CONFIDENTIAL WASTE DISPOSAL PROVIDERS,Credit Note,,None,05/04/2018 00:00,2018,1,682028,G4585,OFFICE SERVICES,D4490,REMOVAL OF CONFIDENTIAL WASTE
GUILDFORD BOROUGH COUNCIL,OFFICE SERVICES TEAM,RESTORE DATASHRED LIMITED,75332,17/04/2018 00:00,1998314,-505,0,REMOVAL OF CONFIDENTIAL WASTE,CONFIDENTIAL WASTE DISPOSAL PROVIDERS,Credit Note,,None,05/04/2018 00:00,2018,1,682031,G4585,OFFICE SERVICES,D4490,REMOVAL OF CONFIDENTIAL WASTE
GUILDFORD BOROUGH COUNCIL,PARKS & COUNTRYSIDE,RAPID OFFICE SYSTEMS LIMITED,7066,17/04/2018 00:00,1998414,601,0,FURNITURE; GENERAL,INTERIOR DESIGNERS,Invoice,BACS,None,11/04/2018 00:00,2018,1,99170,A1601,STOKE NURSERY OFFICES,D1444,FURNITURE; GENERAL
GUILDFORD BOROUGH COUNCIL,PAYMENTS AND PURCHASING,RESTORE DATASHRED LIMITED,75332,17/04/2018 00:00,1998312,1.14,0,REMOVAL OF CONFIDENTIAL WASTE,CONFIDENTIAL WASTE DISPOSAL PROVIDERS,Invoice,BACS,None,05/04/2018 00:00,2018,1,682024,G3597,EPAYMENTS (INCOME),D4490,REMOVAL OF CONFIDENTIAL WASTE
GUILDFORD BOROUGH COUNCIL,PAYMENTS AND PURCHASING,RESTORE DATASHRED LIMITED,75332,17/04/2018 00:00,1998312,0.94,0,REMOVAL OF CONFIDENTIAL WASTE,CONFIDENTIAL WASTE DISPOSAL PROVIDERS,Invoice,BACS,None,05/04/2018 00:00,2018,1,682024,G3596,CREDITORS,D4490,REMOVAL OF CONFIDENTIAL WASTE
GUILDFORD BOROUGH COUNCIL,HOUSING BENEFITS,RESTORE DATASHRED LIMITED,75332,17/04/2018 00:00,1998312,32.78,0,REMOVAL OF CONFIDENTIAL WASTE,CONFIDENTIAL WASTE DISPOSAL PROVIDERS,Invoice,BACS,None,05/04/2018 00:00,2018,1,682024,C4511,HOUSING BENEFITS ADMIN.,D4490,REMOVAL OF CONFIDENTIAL WASTE
GUILDFORD BOROUGH COUNCIL,DEVELOPMENT CONTROL,RESTORE DATASHRED LIMITED,75332,17/04/2018 00:00,1998313,3.25,0,REMOVAL OF CONFIDENTIAL WASTE,CONFIDENTIAL WASTE DISPOSAL PROVIDERS,Invoice,BACS,None,05/04/2018 00:00,2018,1,682032,D5100,DEVELOPMENT CONTROL - FEE EARN,D4490,REMOVAL OF CONFIDENTIAL WASTE
GUILDFORD BOROUGH COUNCIL,OFFICE SERVICES TEAM,QUADIENT UK LTD,18672,17/04/2018 00:00,1998666,203.4,0,PRESS ROOM MATERIALS (NON),,Invoice,BACS,None,09/04/2018 00:00,2018,1,92444949,G4545,REPROGRAPHICS UNIT,D3484,PRESS ROOM MATERIALS (NON)
GUILDFORD BOROUGH COUNCIL,SHELTERED HOUSING,R A ROBERTSON & SONS,6797,24/04/2018 00:00,1998974,540.83,0,FIXTURES & FITTINGS - H&H DEPT,WHITE GOODS SUPPLIERS,Invoice,BACS,None,12/04/2018 00:00,2018,1,27381,M1515,SHELTERED ACCOMODATION,B5227,FIXTURES & FITTINGS - H&H DEPT
GUILDFORD BOROUGH COUNCIL,PAYROLL AND INSURANCE,RESTORE DATASHRED LIMITED,75332,17/04/2018 00:00,1998310,3.4,0,REMOVAL OF CONFIDENTIAL WASTE,CONFIDENTIAL WASTE DISPOSAL PROVIDERS,Invoice,BACS,None,05/04/2018 00:00,2018,1,682029,G3595,SALARIES,D4490,REMOVAL OF CONFIDENTIAL WASTE
GUILDFORD BOROUGH COUNCIL,OFFICE SERVICES TEAM,PREMIER PAPER GROUP LIMITED,6719,17/04/2018 00:00,1998366,1229.68,0,PAPER & BOARD (RECH),PAPER PRODUCTS SUPPLIERS,Invoice,BACS,None,08/04/2018 00:00,2018,1,9211015,G4545,REPROGRAPHICS UNIT,D3480,PAPER & BOARD (RECH)
GUILDFORD BOROUGH COUNCIL,HOMELESSNESS,REDACTED,0,05/04/2018 00:00,1997303,560,0,ACCOMMODATION: EMERGENCY B&B,PROPERTY LETTING AND ESTATE AGENTS,Invoice,BACS,None,02/04/2018 00:00,2018,1,REDACTED,C3316,EMERGENCY ACCOMMODATION,D4401,ACCOMMODATION: EMERGENCY B&B
GUILDFORD BOROUGH COUNCIL,DEMOCRATIC REPRESENTATION,RESTORE DATASHRED LIMITED,75332,17/04/2018 00:00,1998313,10.72,0,REMOVAL OF CONFIDENTIAL WASTE,CONFIDENTIAL WASTE DISPOSAL PROVIDERS,Invoice,BACS,None,05/04/2018 00:00,2018,1,682032,F2121,COUNCILLOR SERVICES,D4490,REMOVAL OF CONFIDENTIAL WASTE
GUILDFORD BOROUGH COUNCIL,HOUSING SURVEYING SERVICES,RESTORE DATASHRED LIMITED,75332,17/04/2018 00:00,1998310,0.1,0,REMOVAL OF CONFIDENTIAL WASTE,CONFIDENTIAL WASTE DISPOSAL PROVIDERS,Invoice,BACS,None,05/04/2018 00:00,2018,1,682029,G6525,HOUSING SURVEYING SERVICES,D4490,REMOVAL OF CONFIDENTIAL WASTE
GUILDFORD BOROUGH COUNCIL,DEVELOPMENT CONTROL,RESTORE DATASHRED LIMITED,75332,17/04/2018 00:00,1998310,1.6,0,REMOVAL OF CONFIDENTIAL WASTE,CONFIDENTIAL WASTE DISPOSAL PROVIDERS,Invoice,BACS,None,05/04/2018 00:00,2018,1,682029,D5100,DEVELOPMENT CONTROL - FEE EARN,D4490,REMOVAL OF CONFIDENTIAL WASTE
GUILDFORD BOROUGH COUNCIL,OFFICE SERVICES TEAM,RESTORE DATASHRED LIMITED,75332,17/04/2018 00:00,1998312,7.5,0,REMOVAL OF CONFIDENTIAL WASTE,CONFIDENTIAL WASTE DISPOSAL PROVIDERS,Invoice,BACS,None,05/04/2018 00:00,2018,1,682024,G7519,SCC FINANCE - MILLMEAD,D4490,REMOVAL OF CONFIDENTIAL WASTE
GUILDFORD BOROUGH COUNCIL,HOUSING SURVEYING SERVICES,RESTORE DATASHRED LIMITED,75332,17/04/2018 00:00,1998312,0.07,0,REMOVAL OF CONFIDENTIAL WASTE,CONFIDENTIAL WASTE DISPOSAL PROVIDERS,Invoice,BACS,None,05/04/2018 00:00,2018,1,682024,G6525,HOUSING SURVEYING SERVICES,D4490,REMOVAL OF CONFIDENTIAL WASTE
GUILDFORD BOROUGH COUNCIL,HOMELESSNESS,REDACTED,0,17/04/2018 00:00,1998343,280,0,ACCOMMODATION: EMERGENCY B&B,PROPERTY LETTING AND ESTATE AGENTS,Invoice,BACS,None,09/04/2018 00:00,2018,1,REDACTED,C3316,EMERGENCY ACCOMMODATION,D4401,ACCOMMODATION: EMERGENCY B&B
GUILDFORD BOROUGH COUNCIL,TENANT SELECTION,RESTORE DATASHRED LIMITED,75332,17/04/2018 00:00,1998312,0.87,0,REMOVAL OF CONFIDENTIAL WASTE,CONFIDENTIAL WASTE DISPOSAL PROVIDERS,Invoice,BACS,None,05/04/2018 00:00,2018,1,682024,M1131,"ADVICE,REGS,TENANT SELECT(SHS)",D4490,REMOVAL OF CONFIDENTIAL WASTE
GUILDFORD BOROUGH COUNCIL,COMMITTEE SERVICES,RESTORE DATASHRED LIMITED,75332,17/04/2018 00:00,1998312,4.81,0,REMOVAL OF CONFIDENTIAL WASTE,CONFIDENTIAL WASTE DISPOSAL PROVIDERS,Invoice,BACS,None,05/04/2018 00:00,2018,1,682024,G4565,COMMITTEE SERVICES,D4490,REMOVAL OF CONFIDENTIAL WASTE
GUILDFORD BOROUGH COUNCIL,GUILDFORD HOUSE,REDACTED,0,12/04/2018 00:00,1998440,12,0,CRAFTWORK - SALE OR RETURN,,Invoice,BACS,None,04/04/2018 00:00,2018,1,REDACTED,A4511,GUILDFORD HOUSE ADMINISTRATION,K3931,CRAFTWORK - SALE OR RETURN
GUILDFORD BOROUGH COUNCIL,GUILDFORD HOUSE,REDACTED,0,12/04/2018 00:00,1998440,-4.2,0,COMMISSION ON CRAFTWORK SALES,,Invoice,BACS,None,04/04/2018 00:00,2018,1,REDACTED,A4511,GUILDFORD HOUSE ADMINISTRATION,K5918,COMMISSION ON CRAFTWORK SALES
GUILDFORD BOROUGH COUNCIL,PAYROLL AND INSURANCE,RESTORE DATASHRED LIMITED,75332,17/04/2018 00:00,1998312,2.36,0,REMOVAL OF CONFIDENTIAL WASTE,CONFIDENTIAL WASTE DISPOSAL PROVIDERS,Invoice,BACS,None,05/04/2018 00:00,2018,1,682024,G3595,SALARIES,D4490,REMOVAL OF CONFIDENTIAL WASTE
GUILDFORD BOROUGH COUNCIL,BUSINESS RATES,RESTORE DATASHRED LIMITED,75332,17/04/2018 00:00,1998310,4.35,0,REMOVAL OF CONFIDENTIAL WASTE,CONFIDENTIAL WASTE DISPOSAL PROVIDERS,Invoice,BACS,None,05/04/2018 00:00,2018,1,682029,F6151,BUSINESS RATES COLLECTION EXPS,D4490,REMOVAL OF CONFIDENTIAL WASTE
GUILDFORD BOROUGH COUNCIL,STREET CLEANSING,PRISTINE GARDENS,69835,10/04/2018 00:00,1997922,120,0,ST LITTER BINS - PURCH/MTCE,GROUNDS MAINTENANCE PROVIDERS,Invoice,BACS,None,08/04/2018 00:00,2018,1,1248,K4551,STREET CLEANSING,D1496,ST LITTER BINS - PURCH/MTCE
GUILDFORD BOROUGH COUNCIL,DEMOCRATIC REPRESENTATION,RESTORE DATASHRED LIMITED,75332,17/04/2018 00:00,1998310,5.29,0,REMOVAL OF CONFIDENTIAL WASTE,CONFIDENTIAL WASTE DISPOSAL PROVIDERS,Invoice,BACS,None,05/04/2018 00:00,2018,1,682029,F2121,COUNCILLOR SERVICES,D4490,REMOVAL OF CONFIDENTIAL WASTE
GUILDFORD BOROUGH COUNCIL,HOMELESSNESS,REDACTED,0,17/04/2018 00:00,1998334,560,0,ACCOMMODATION: EMERGENCY B&B,PROPERTY LETTING AND ESTATE AGENTS,Invoice,BACS,None,09/04/2018 00:00,2018,1,REDACTED,C3316,EMERGENCY ACCOMMODATION,D4401,ACCOMMODATION: EMERGENCY B&B
GUILDFORD BOROUGH COUNCIL,DEMOCRATIC REPRESENTATION,RESTORE DATASHRED LIMITED,75332,17/04/2018 00:00,1998312,3.67,0,REMOVAL OF CONFIDENTIAL WASTE,CONFIDENTIAL WASTE DISPOSAL PROVIDERS,Invoice,BACS,None,05/04/2018 00:00,2018,1,682024,F2121,COUNCILLOR SERVICES,D4490,REMOVAL OF CONFIDENTIAL WASTE
GUILDFORD BOROUGH COUNCIL,POLICY,PRINT FOR BUSINESS LTD,6730,17/04/2018 00:00,1998649,1002.24,0,REFERENDUM EXPENSES,PRINTING SERVICE PROVIDERS,Invoice,BACS,None,07/04/2018 00:00,2018,1,64296,D5301,NEIGBOURHOOD PLANS,D1576,REFERENDUM EXPENSES
GUILDFORD BOROUGH COUNCIL,STREET CLEANSING,PRISTINE GARDENS,69835,17/04/2018 00:00,1997923,120,0,MISCELLANEOUS EXPENSES,GROUNDS MAINTENANCE PROVIDERS,Invoice,BACS,None,08/04/2018 00:00,2018,1,1249,P53005,TOWN CENTRE LITTER BINS,1444,MISCELLANEOUS EXPENSES
GUILDFORD BOROUGH COUNCIL,OFFICE SERVICES TEAM,RESTORE DATASHRED LIMITED,75332,17/04/2018 00:00,1998310,32.47,0,REMOVAL OF CONFIDENTIAL WASTE,CONFIDENTIAL WASTE DISPOSAL PROVIDERS,Invoice,BACS,None,05/04/2018 00:00,2018,1,682029,G7520,SCC - MILLMEAD,D4490,REMOVAL OF CONFIDENTIAL WASTE
GUILDFORD BOROUGH COUNCIL,PARKS & COUNTRYSIDE,RAPID OFFICE SYSTEMS LIMITED,7066,17/04/2018 00:00,1998415,734,0,FURNITURE; GENERAL,INTERIOR DESIGNERS,Invoice,BACS,None,11/04/2018 00:00,2018,1,99169,A1601,STOKE NURSERY OFFICES,D1444,FURNITURE; GENERAL
GUILDFORD BOROUGH COUNCIL,CORPORATE PROPERTY SERVICES,PROFESSIONAL CONFERENCES LTD,23161,12/04/2018 00:00,1998038,248,0,TRAINING,CONFERENCE AND EVENT ROOM HIRERS,Invoice,BACS,None,09/04/2018 00:00,2018,1,283188,G4575,CORPORATE PROPERTY SERVICES,A7161,TRAINING
GUILDFORD BOROUGH COUNCIL,COMMITTEE SERVICES,RESTORE DATASHRED LIMITED,75332,17/04/2018 00:00,1998313,14.06,0,REMOVAL OF CONFIDENTIAL WASTE,CONFIDENTIAL WASTE DISPOSAL PROVIDERS,Invoice,BACS,None,05/04/2018 00:00,2018,1,682032,G4565,COMMITTEE SERVICES,D4490,REMOVAL OF CONFIDENTIAL WASTE
GUILDFORD BOROUGH COUNCIL,PRIVATE SECTOR HOUSING,RESTORE DATASHRED LIMITED,75332,17/04/2018 00:00,1998310,2.05,0,REMOVAL OF CONFIDENTIAL WASTE,CONFIDENTIAL WASTE DISPOSAL PROVIDERS,Invoice,BACS,None,05/04/2018 00:00,2018,1,682029,C5122,PRIVATE SECTOR HOUSING STANDAR,D4490,REMOVAL OF CONFIDENTIAL WASTE
GUILDFORD BOROUGH COUNCIL,OFFICE SERVICES TEAM,RESTORE DATASHRED LIMITED,75332,17/04/2018 00:00,1998313,65.76,0,REMOVAL OF CONFIDENTIAL WASTE,CONFIDENTIAL WASTE DISPOSAL PROVIDERS,Invoice,BACS,None,05/04/2018 00:00,2018,1,682032,G7520,SCC - MILLMEAD,D4490,REMOVAL OF CONFIDENTIAL WASTE
GUILDFORD BOROUGH COUNCIL,CORP SERVICES,RESTORE DATASHRED LIMITED,75332,17/04/2018 00:00,1998313,28.96,0,REMOVAL OF CONFIDENTIAL WASTE,CONFIDENTIAL WASTE DISPOSAL PROVIDERS,Invoice,BACS,None,05/04/2018 00:00,2018,1,682032,F1111,CORPORATE SERVICES,D4490,REMOVAL OF CONFIDENTIAL WASTE
GUILDFORD BOROUGH COUNCIL,OFFICE SERVICES TEAM,RESTORE DATASHRED LIMITED,75332,17/04/2018 00:00,1998311,-479.65,0,REMOVAL OF CONFIDENTIAL WASTE,CONFIDENTIAL WASTE DISPOSAL PROVIDERS,Credit Note,,None,05/04/2018 00:00,2018,1,682026,G4585,OFFICE SERVICES,D4490,REMOVAL OF CONFIDENTIAL WASTE
GUILDFORD BOROUGH COUNCIL,PAYMENTS AND PURCHASING,RESTORE DATASHRED LIMITED,75332,17/04/2018 00:00,1998310,1.35,0,REMOVAL OF CONFIDENTIAL WASTE,CONFIDENTIAL WASTE DISPOSAL PROVIDERS,Invoice,BACS,None,05/04/2018 00:00,2018,1,682029,G3596,CREDITORS,D4490,REMOVAL OF CONFIDENTIAL WASTE
GUILDFORD BOROUGH COUNCIL,HOMELESSNESS,REDACTED,0,19/04/2018 00:00,1999312,560,0,ACCOMMODATION: EMERGENCY B&B,PROPERTY LETTING AND ESTATE AGENTS,Invoice,BACS,None,16/04/2018 00:00,2018,1,REDACTED,C3316,EMERGENCY ACCOMMODATION,D4401,ACCOMMODATION: EMERGENCY B&B
GUILDFORD BOROUGH COUNCIL,HR SERVICES,RESTORE DATASHRED LIMITED,75332,17/04/2018 00:00,1998310,3.71,0,REMOVAL OF CONFIDENTIAL WASTE,CONFIDENTIAL WASTE DISPOSAL PROVIDERS,Invoice,BACS,None,05/04/2018 00:00,2018,1,682029,G2555,HR SERVICES,D4490,REMOVAL OF CONFIDENTIAL WASTE
GUILDFORD BOROUGH COUNCIL,INCOME COLLECTION,RESTORE DATASHRED LIMITED,75332,17/04/2018 00:00,1998313,0.2,0,REMOVAL OF CONFIDENTIAL WASTE,CONFIDENTIAL WASTE DISPOSAL PROVIDERS,Invoice,BACS,None,05/04/2018 00:00,2018,1,682032,M1121,INCOME COLLECTION (BHS),D4490,REMOVAL OF CONFIDENTIAL WASTE
GUILDFORD BOROUGH COUNCIL,PARISH & LOCAL LIAISON,PIRBRIGHT PARISH COUNCIL,9783,05/04/2018 00:00,1997032,598.5,0,LCTSS PARISH GRANT,LOCAL GOVERNMENT [UK ONLY],Invoice,BACS,None,03/04/2018 00:00,2018,1,PARISH PRECEPT,F1115,PARISH LIAISON,D7431,LCTSS PARISH GRANT
GUILDFORD BOROUGH COUNCIL,ENVIRONMENTAL CONTROL,RESTORE DATASHRED LIMITED,75332,17/04/2018 00:00,1998312,4.06,0,REMOVAL OF CONFIDENTIAL WASTE,CONFIDENTIAL WASTE DISPOSAL PROVIDERS,Invoice,BACS,None,05/04/2018 00:00,2018,1,682024,C1113,ENVIRONMENTAL CONTROL,D4490,REMOVAL OF CONFIDENTIAL WASTE
GUILDFORD BOROUGH COUNCIL,ACCOUNTANCY,RESTORE DATASHRED LIMITED,75332,17/04/2018 00:00,1998312,4.45,0,REMOVAL OF CONFIDENTIAL WASTE,CONFIDENTIAL WASTE DISPOSAL PROVIDERS,Invoice,BACS,None,05/04/2018 00:00,2018,1,682024,G3565,ACCOUNTANCY SERVICES,D4490,REMOVAL OF CONFIDENTIAL WASTE
GUILDFORD BOROUGH COUNCIL,INTERNAL AUDIT,RESTORE DATASHRED LIMITED,75332,17/04/2018 00:00,1998312,1.73,0,REMOVAL OF CONFIDENTIAL WASTE,CONFIDENTIAL WASTE DISPOSAL PROVIDERS,Invoice,BACS,None,05/04/2018 00:00,2018,1,682024,G3525,INTERNAL AUDIT,D4490,REMOVAL OF CONFIDENTIAL WASTE
GUILDFORD BOROUGH COUNCIL,OTHER ST DEBTORS,REDACTED,0,19/04/2018 00:00,1999674,3125,0,CASH PAID,"YOUTH CLUBS, HOSTELS AND ASSOCIATIONS",Invoice,BACS,None,18/04/2018 00:00,2018,1,REDACTED,J01064,HOUSING H4U SCHEME,2175,CASH PAID
GUILDFORD BOROUGH COUNCIL,HOMELESSNESS,REDACTED,0,05/04/2018 00:00,1997302,280,0,ACCOMMODATION: EMERGENCY B&B,PROPERTY LETTING AND ESTATE AGENTS,Invoice,BACS,None,02/04/2018 00:00,2018,1,REDACTED,C3316,EMERGENCY ACCOMMODATION,D4401,ACCOMMODATION: EMERGENCY B&B
GUILDFORD BOROUGH COUNCIL,CORP SERVICES,RESTORE DATASHRED LIMITED,75332,17/04/2018 00:00,1998312,9.91,0,REMOVAL OF CONFIDENTIAL WASTE,CONFIDENTIAL WASTE DISPOSAL PROVIDERS,Invoice,BACS,None,05/04/2018 00:00,2018,1,682024,F1111,CORPORATE SERVICES,D4490,REMOVAL OF CONFIDENTIAL WASTE
GUILDFORD BOROUGH COUNCIL,GUILDFORD HOUSE,REDACTED,0,12/04/2018 00:00,1998449,49.2,0,CRAFTWORK - SALE OR RETURN,,Invoice,BACS,None,04/04/2018 00:00,2018,1,REDACTED,A4511,GUILDFORD HOUSE ADMINISTRATION,K3931,CRAFTWORK - SALE OR RETURN
GUILDFORD BOROUGH COUNCIL,PAYMENTS AND PURCHASING,RESTORE DATASHRED LIMITED,75332,17/04/2018 00:00,1998313,3.34,0,REMOVAL OF CONFIDENTIAL WASTE,CONFIDENTIAL WASTE DISPOSAL PROVIDERS,Invoice,BACS,None,05/04/2018 00:00,2018,1,682032,G3597,EPAYMENTS (INCOME),D4490,REMOVAL OF CONFIDENTIAL WASTE
GUILDFORD BOROUGH COUNCIL,PARISH & LOCAL LIAISON,PUTTENHAM PARISH COUNCIL,6767,05/04/2018 00:00,1997033,375,0,LCTSS PARISH GRANT,LOCAL GOVERNMENT [UK ONLY],Invoice,BACS,None,03/04/2018 00:00,2018,1,PARISH PRECEPT,F1115,PARISH LIAISON,D7431,LCTSS PARISH GRANT
GUILDFORD BOROUGH COUNCIL,HOMELESSNESS,REDACTED,0,19/04/2018 00:00,1999311,280,0,ACCOMMODATION: EMERGENCY B&B,PROPERTY LETTING AND ESTATE AGENTS,Invoice,BACS,None,16/04/2018 00:00,2018,1,REDACTED,C3316,EMERGENCY ACCOMMODATION,D4401,ACCOMMODATION: EMERGENCY B&B
GUILDFORD BOROUGH COUNCIL,PAYMENTS AND PURCHASING,RESTORE DATASHRED LIMITED,75332,17/04/2018 00:00,1998313,2.74,0,REMOVAL OF CONFIDENTIAL WASTE,CONFIDENTIAL WASTE DISPOSAL PROVIDERS,Invoice,BACS,None,05/04/2018 00:00,2018,1,682032,G3596,CREDITORS,D4490,REMOVAL OF CONFIDENTIAL WASTE
GUILDFORD BOROUGH COUNCIL,FOOD AND SAFETY SERVICES,RESTORE DATASHRED LIMITED,75332,17/04/2018 00:00,1998312,4.68,0,REMOVAL OF CONFIDENTIAL WASTE,CONFIDENTIAL WASTE DISPOSAL PROVIDERS,Invoice,BACS,None,05/04/2018 00:00,2018,1,682024,C1111,FOOD AND SAFETY SERVICES,D4490,REMOVAL OF CONFIDENTIAL WASTE
GUILDFORD BOROUGH COUNCIL,GUILDFORD HOUSE,REDACTED,0,12/04/2018 00:00,1998449,-17.22,0,COMMISSION ON CRAFTWORK SALES,,Invoice,BACS,None,04/04/2018 00:00,2018,1,REDACTED,A4511,GUILDFORD HOUSE ADMINISTRATION,K5918,COMMISSION ON CRAFTWORK SALES
GUILDFORD BOROUGH COUNCIL,OFFICE SERVICES TEAM,RESTORE DATASHRED LIMITED,75332,17/04/2018 00:00,1998312,22.51,0,REMOVAL OF CONFIDENTIAL WASTE,CONFIDENTIAL WASTE DISPOSAL PROVIDERS,Invoice,BACS,None,05/04/2018 00:00,2018,1,682024,G7520,SCC - MILLMEAD,D4490,REMOVAL OF CONFIDENTIAL WASTE
GUILDFORD BOROUGH COUNCIL,GF NET REVENUE ACCOUNT,PIRBRIGHT PARISH COUNCIL,9783,05/04/2018 00:00,1997032,28250,0,OOE - PARISH PRECEPTS PAID,LOCAL GOVERNMENT [UK ONLY],Invoice,BACS,None,03/04/2018 00:00,2018,1,PARISH PRECEPT,V01005,GF NET REVENUE ACCOUNT,2482,OOE - PARISH PRECEPTS PAID
GUILDFORD BOROUGH COUNCIL,TENANT SELECTION,RESTORE DATASHRED LIMITED,75332,17/04/2018 00:00,1998310,1.25,0,REMOVAL OF CONFIDENTIAL WASTE,CONFIDENTIAL WASTE DISPOSAL PROVIDERS,Invoice,BACS,None,05/04/2018 00:00,2018,1,682029,M1131,"ADVICE,REGS,TENANT SELECT(SHS)",D4490,REMOVAL OF CONFIDENTIAL WASTE
GUILDFORD BOROUGH COUNCIL,PRIVATE SECTOR HOUSING,RESTORE DATASHRED LIMITED,75332,17/04/2018 00:00,1998312,1.42,0,REMOVAL OF CONFIDENTIAL WASTE,CONFIDENTIAL WASTE DISPOSAL PROVIDERS,Invoice,BACS,None,05/04/2018 00:00,2018,1,682024,C5122,PRIVATE SECTOR HOUSING STANDAR,D4490,REMOVAL OF CONFIDENTIAL WASTE
GUILDFORD BOROUGH COUNCIL,OFFICE SERVICES TEAM,QUADIENT UK LTD,18672,17/04/2018 00:00,1998489,47.47,0,STATIONERY & OFFICE SUPPLIES,,Invoice,BACS,None,10/04/2018 00:00,2018,1,92446871,G4545,REPROGRAPHICS UNIT,D3472,STATIONERY & OFFICE SUPPLIES
GUILDFORD BOROUGH COUNCIL,GF NET REVENUE ACCOUNT,PUTTENHAM PARISH COUNCIL,6767,05/04/2018 00:00,1997033,6175,0,OOE - PARISH PRECEPTS PAID,LOCAL GOVERNMENT [UK ONLY],Invoice,BACS,None,03/04/2018 00:00,2018,1,PARISH PRECEPT,V01005,GF NET REVENUE ACCOUNT,2482,OOE - PARISH PRECEPTS PAID
GUILDFORD BOROUGH COUNCIL,INCOME COLLECTION,RESTORE DATASHRED LIMITED,75332,17/04/2018 00:00,1998312,0.07,0,REMOVAL OF CONFIDENTIAL WASTE,CONFIDENTIAL WASTE DISPOSAL PROVIDERS,Invoice,BACS,None,05/04/2018 00:00,2018,1,682024,M1121,INCOME COLLECTION (BHS),D4490,REMOVAL OF CONFIDENTIAL WASTE
GUILDFORD BOROUGH COUNCIL,INTERNAL AUDIT,RESTORE DATASHRED LIMITED,75332,17/04/2018 00:00,1998313,5.04,0,REMOVAL OF CONFIDENTIAL WASTE,CONFIDENTIAL WASTE DISPOSAL PROVIDERS,Invoice,BACS,None,05/04/2018 00:00,2018,1,682032,G3525,INTERNAL AUDIT,D4490,REMOVAL OF CONFIDENTIAL WASTE
GUILDFORD BOROUGH COUNCIL,INTERNAL AUDIT,RESTORE DATASHRED LIMITED,75332,17/04/2018 00:00,1998310,2.49,0,REMOVAL OF CONFIDENTIAL WASTE,CONFIDENTIAL WASTE DISPOSAL PROVIDERS,Invoice,BACS,None,05/04/2018 00:00,2018,1,682029,G3525,INTERNAL AUDIT,D4490,REMOVAL OF CONFIDENTIAL WASTE
GUILDFORD BOROUGH COUNCIL,COUNCIL TAX,RESTORE DATASHRED LIMITED,75332,17/04/2018 00:00,1998312,1.97,0,REMOVAL OF CONFIDENTIAL WASTE,CONFIDENTIAL WASTE DISPOSAL PROVIDERS,Invoice,BACS,None,05/04/2018 00:00,2018,1,682024,F6141,COUNCIL TAX COLLECTN EXPENSES,D4490,REMOVAL OF CONFIDENTIAL WASTE
GUILDFORD BOROUGH COUNCIL,PARKS & COUNTRYSIDE,RIGBY TAYLOR LIMITED,7146,17/04/2018 00:00,1998323,1118.88,0,MATERIALS,GARDENING EQUIPMENT SUPPLIERS,Invoice,BACS,None,06/04/2018 00:00,2018,1,RSIN0253749,A1270,WOODBRIDGE ROAD,D1545,MATERIALS
GUILDFORD BOROUGH COUNCIL,RESPONSIVE & PLANNED MAINTENAN,RICHARD FOAKES,7116,24/04/2018 00:00,1997911,180,0,"BRICKWORK, BLOCKWORK ETC.",SEWERAGE AND DRAINAGE SERVICE PROVIDERS,Invoice,BACS,None,07/04/2018 00:00,2018,1,9487,M5105,REPAIRS-GARAGES (BHS),B1311,"BRICKWORK, BLOCKWORK ETC."
GUILDFORD BOROUGH COUNCIL,PARKS & COUNTRYSIDE,RIGBY TAYLOR LIMITED,7146,17/04/2018 00:00,1998323,451.73,0,MATERIALS,GARDENING EQUIPMENT SUPPLIERS,Invoice,BACS,None,06/04/2018 00:00,2018,1,RSIN0253749,A1105,SPECTRUM AND LIDO CONTRACTS,D1545,MATERIALS
GUILDFORD BOROUGH COUNCIL,BUSINESS RATES,RESTORE DATASHRED LIMITED,75332,17/04/2018 00:00,1998312,3.01,0,REMOVAL OF CONFIDENTIAL WASTE,CONFIDENTIAL WASTE DISPOSAL PROVIDERS,Invoice,BACS,None,05/04/2018 00:00,2018,1,682024,F6151,BUSINESS RATES COLLECTION EXPS,D4490,REMOVAL OF CONFIDENTIAL WASTE
GUILDFORD BOROUGH COUNCIL,PARKS & COUNTRYSIDE,RIGBY TAYLOR LIMITED,7146,17/04/2018 00:00,1998323,237.59,0,MATERIALS,GARDENING EQUIPMENT SUPPLIERS,Invoice,BACS,None,06/04/2018 00:00,2018,1,RSIN0253749,A1210,STOUGHTON REC GROUND,D1545,MATERIALS
GUILDFORD BOROUGH COUNCIL,OFFICE SERVICES TEAM,RESTORE DATASHRED LIMITED,75332,17/04/2018 00:00,1998315,-30,0,REMOVAL OF CONFIDENTIAL WASTE,CONFIDENTIAL WASTE DISPOSAL PROVIDERS,Credit Note,,None,05/04/2018 00:00,2018,1,682034,G4585,OFFICE SERVICES,D4490,REMOVAL OF CONFIDENTIAL WASTE
GUILDFORD BOROUGH COUNCIL,INCOME COLLECTION,RESTORE DATASHRED LIMITED,75332,17/04/2018 00:00,1998310,0.1,0,REMOVAL OF CONFIDENTIAL WASTE,CONFIDENTIAL WASTE DISPOSAL PROVIDERS,Invoice,BACS,None,05/04/2018 00:00,2018,1,682029,M1121,INCOME COLLECTION (BHS),D4490,REMOVAL OF CONFIDENTIAL WASTE
GUILDFORD BOROUGH COUNCIL,PARKS & COUNTRYSIDE,RIGBY TAYLOR LIMITED,7146,17/04/2018 00:00,1998323,577.36,0,MATERIALS,GARDENING EQUIPMENT SUPPLIERS,Invoice,BACS,None,06/04/2018 00:00,2018,1,RSIN0253749,A1250,STOKE PARK,D1545,MATERIALS
GUILDFORD BOROUGH COUNCIL,BUILDING MAINTENANCE,REVIVE SERVICES,84625,12/04/2018 00:00,1998387,2450,0,PAYMENT TO CONTRACTORS,OTHER CLEANING AND JANITORIAL SERVICE PROVIDERS,Invoice,BACS,None,09/04/2018 00:00,2018,1,154,K1515,BUILDING MAINTENANCE,D4468,PAYMENT TO CONTRACTORS
GUILDFORD BOROUGH COUNCIL,PARKS & COUNTRYSIDE,RIGBY TAYLOR LIMITED,7146,17/04/2018 00:00,1998323,204.96,0,MATERIALS,GARDENING EQUIPMENT SUPPLIERS,Invoice,BACS,None,06/04/2018 00:00,2018,1,RSIN0253749,A1130,CASTLE GROUNDS,D1545,MATERIALS
GUILDFORD BOROUGH COUNCIL,ELECTORAL REGISTRATION,RESTORE DATASHRED LIMITED,75332,17/04/2018 00:00,1998312,4.43,0,REMOVAL OF CONFIDENTIAL WASTE,CONFIDENTIAL WASTE DISPOSAL PROVIDERS,Invoice,BACS,None,05/04/2018 00:00,2018,1,682024,F2511,ELECTORAL REGISTRATION,D4490,REMOVAL OF CONFIDENTIAL WASTE
GUILDFORD BOROUGH COUNCIL,LEISURE MANAGEMENT CONTRACT,RICHARD FOAKES,7116,24/04/2018 00:00,1998793,2265,0,R&M - GENERAL,SEWERAGE AND DRAINAGE SERVICE PROVIDERS,Invoice,BACS,None,12/04/2018 00:00,2018,1,9486,A7550,LIDO CLIENT,B1231,R&M - GENERAL
GUILDFORD BOROUGH COUNCIL,PARKS & COUNTRYSIDE,RIGBY TAYLOR LIMITED,7146,17/04/2018 00:00,1998323,4807.33,0,MATERIALS,GARDENING EQUIPMENT SUPPLIERS,Invoice,BACS,None,06/04/2018 00:00,2018,1,RSIN0253749,A1250,STOKE PARK,D1545,MATERIALS
GUILDFORD BOROUGH COUNCIL,PARKS & COUNTRYSIDE,RIGBY TAYLOR LIMITED,7146,17/04/2018 00:00,1998323,75.47,0,MATERIALS,GARDENING EQUIPMENT SUPPLIERS,Invoice,BACS,None,06/04/2018 00:00,2018,1,RSIN0253749,A1265,CARDWELLS KEEP,D1545,MATERIALS
GUILDFORD BOROUGH COUNCIL,ICT CUSTOMER TECHNICAL SUPPORT,RESTORE DATASHRED LIMITED,75332,17/04/2018 00:00,1998313,17.39,0,REMOVAL OF CONFIDENTIAL WASTE,CONFIDENTIAL WASTE DISPOSAL PROVIDERS,Invoice,BACS,None,05/04/2018 00:00,2018,1,682032,G3542,CUSTOMER AND TECHNICAL SUPPORT,D4490,REMOVAL OF CONFIDENTIAL WASTE
GUILDFORD BOROUGH COUNCIL,FOOD AND SAFETY SERVICES,RESTORE DATASHRED LIMITED,75332,17/04/2018 00:00,1998310,6.75,0,REMOVAL OF CONFIDENTIAL WASTE,CONFIDENTIAL WASTE DISPOSAL PROVIDERS,Invoice,BACS,None,05/04/2018 00:00,2018,1,682029,C1111,FOOD AND SAFETY SERVICES,D4490,REMOVAL OF CONFIDENTIAL WASTE
GUILDFORD BOROUGH COUNCIL,DEBTORS,RESTORE DATASHRED LIMITED,75332,17/04/2018 00:00,1998310,2.25,0,REMOVAL OF CONFIDENTIAL WASTE,CONFIDENTIAL WASTE DISPOSAL PROVIDERS,Invoice,BACS,None,05/04/2018 00:00,2018,1,682029,G3555,DEBTORS,D4490,REMOVAL OF CONFIDENTIAL WASTE
GUILDFORD BOROUGH COUNCIL,DEBTORS,RESTORE DATASHRED LIMITED,75332,17/04/2018 00:00,1998313,4.55,0,REMOVAL OF CONFIDENTIAL WASTE,CONFIDENTIAL WASTE DISPOSAL PROVIDERS,Invoice,BACS,None,05/04/2018 00:00,2018,1,682032,G3555,DEBTORS,D4490,REMOVAL OF CONFIDENTIAL WASTE
GUILDFORD BOROUGH COUNCIL,BUILDING MAINTENANCE,REVIVE SERVICES,84625,26/04/2018 00:00,2000232,2570,0,PAYMENT TO CONTRACTORS,OTHER CLEANING AND JANITORIAL SERVICE PROVIDERS,Invoice,BACS,None,23/04/2018 00:00,2018,1,156,K1515,BUILDING MAINTENANCE,D4468,PAYMENT TO CONTRACTORS
GUILDFORD BOROUGH COUNCIL,PARKS & COUNTRYSIDE,RIGBY TAYLOR LIMITED,7146,17/04/2018 00:00,1998323,164.96,0,MATERIALS,GARDENING EQUIPMENT SUPPLIERS,Invoice,BACS,None,06/04/2018 00:00,2018,1,RSIN0253749,A1294,EAST HORSLEY BOWLS GND,D1545,MATERIALS
GUILDFORD BOROUGH COUNCIL,PARKS & COUNTRYSIDE,RIGBY TAYLOR LIMITED,7146,17/04/2018 00:00,1998323,97.07,0,MATERIALS,GARDENING EQUIPMENT SUPPLIERS,Invoice,BACS,None,06/04/2018 00:00,2018,1,RSIN0253749,A1290,KINGSTON MEADOWS,D1545,MATERIALS
GUILDFORD BOROUGH COUNCIL,LEGAL SERVICES,RESTORE DATASHRED LIMITED,75332,17/04/2018 00:00,1998310,6.55,0,REMOVAL OF CONFIDENTIAL WASTE,CONFIDENTIAL WASTE DISPOSAL PROVIDERS,Invoice,BACS,None,05/04/2018 00:00,2018,1,682029,G4525,LEGAL SERVICES,D4490,REMOVAL OF CONFIDENTIAL WASTE
GUILDFORD BOROUGH COUNCIL,PARKS & COUNTRYSIDE,RIGBY TAYLOR LIMITED,7146,17/04/2018 00:00,1998323,234.73,0,MATERIALS,GARDENING EQUIPMENT SUPPLIERS,Invoice,BACS,None,06/04/2018 00:00,2018,1,RSIN0253749,A1294,EAST HORSLEY BOWLS GND,D1545,MATERIALS
GUILDFORD BOROUGH COUNCIL,PARKS & COUNTRYSIDE,RIGBY TAYLOR LIMITED,7146,17/04/2018 00:00,1998323,129.46,0,MATERIALS,GARDENING EQUIPMENT SUPPLIERS,Invoice,BACS,None,06/04/2018 00:00,2018,1,RSIN0253749,A1233,SUTH'LAND MEM PARK GBC,D1545,MATERIALS
GUILDFORD BOROUGH COUNCIL,PARKS & COUNTRYSIDE,RIGBY TAYLOR LIMITED,7146,17/04/2018 00:00,1998323,288.68,0,MATERIALS,GARDENING EQUIPMENT SUPPLIERS,Invoice,BACS,None,06/04/2018 00:00,2018,1,RSIN0253749,A1232,SUTHERLAND MEMORIAL PK,D1545,MATERIALS
GUILDFORD BOROUGH COUNCIL,ELECTORAL REGISTRATION,RESTORE DATASHRED LIMITED,75332,17/04/2018 00:00,1998313,12.93,0,REMOVAL OF CONFIDENTIAL WASTE,CONFIDENTIAL WASTE DISPOSAL PROVIDERS,Invoice,BACS,None,05/04/2018 00:00,2018,1,682032,F2511,ELECTORAL REGISTRATION,D4490,REMOVAL OF CONFIDENTIAL WASTE
GUILDFORD BOROUGH COUNCIL,OFFICE SERVICES TEAM,RESTORE DATASHRED LIMITED,75332,17/04/2018 00:00,1998310,10.82,0,REMOVAL OF CONFIDENTIAL WASTE,CONFIDENTIAL WASTE DISPOSAL PROVIDERS,Invoice,BACS,None,05/04/2018 00:00,2018,1,682029,G7519,SCC FINANCE - MILLMEAD,D4490,REMOVAL OF CONFIDENTIAL WASTE
GUILDFORD BOROUGH COUNCIL,PARKS & COUNTRYSIDE,RIGBY TAYLOR LIMITED,7146,17/04/2018 00:00,1998323,234.73,0,MATERIALS,GARDENING EQUIPMENT SUPPLIERS,Invoice,BACS,None,06/04/2018 00:00,2018,1,RSIN0253749,A1130,CASTLE GROUNDS,D1545,MATERIALS
GUILDFORD BOROUGH COUNCIL,LEGAL SERVICES,RESTORE DATASHRED LIMITED,75332,17/04/2018 00:00,1998312,4.54,0,REMOVAL OF CONFIDENTIAL WASTE,CONFIDENTIAL WASTE DISPOSAL PROVIDERS,Invoice,BACS,None,05/04/2018 00:00,2018,1,682024,G4525,LEGAL SERVICES,D4490,REMOVAL OF CONFIDENTIAL WASTE
GUILDFORD BOROUGH COUNCIL,PARKS & COUNTRYSIDE,RIGBY TAYLOR LIMITED,7146,26/04/2018 00:00,1999382,528.13,0,NEW / REPLACE EQUIP. & TOOLS;,GARDENING EQUIPMENT SUPPLIERS,Invoice,BACS,None,17/04/2018 00:00,2018,1,RSIN0255414,A1270,WOODBRIDGE ROAD,D1428,NEW / REPLACE EQUIP. & TOOLS;
GUILDFORD BOROUGH COUNCIL,VEHICLE MAINTENANCE,ROSSETTS (UK) LTD,7209,26/04/2018 00:00,1998327,399.11,0,PURCHASES FOR RESALE,TRUCK AND BUS DEALERS,Invoice,BACS,None,10/04/2018 00:00,2018,1,42593613,K5551,VEHICLE MAINTENANCE,D1579,PURCHASES FOR RESALE
GUILDFORD BOROUGH COUNCIL,ELECTIONS,RESTORE DATASHRED LIMITED,75332,17/04/2018 00:00,1998312,7.54,0,REMOVAL OF CONFIDENTIAL WASTE,CONFIDENTIAL WASTE DISPOSAL PROVIDERS,Invoice,BACS,None,05/04/2018 00:00,2018,1,682024,F2151,ELECTIONS,D4490,REMOVAL OF CONFIDENTIAL WASTE
GUILDFORD BOROUGH COUNCIL,PARKS & COUNTRYSIDE,RIGBY TAYLOR LIMITED,7146,26/04/2018 00:00,1999381,2491.12,0,OPERATIONAL INVESTMENT,GARDENING EQUIPMENT SUPPLIERS,Invoice,BACS,None,17/04/2018 00:00,2018,1,ISINV0255241,A1270,WOODBRIDGE ROAD,D9428,OPERATIONAL INVESTMENT
GUILDFORD BOROUGH COUNCIL,GUILDFORD HOUSE,REDACTED,0,12/04/2018 00:00,1998452,206,0,CRAFTWORK - SALE OR RETURN,,Invoice,BACS,None,04/04/2018 00:00,2018,1,REDACTED,A4511,GUILDFORD HOUSE ADMINISTRATION,K3931,CRAFTWORK - SALE OR RETURN
GUILDFORD BOROUGH COUNCIL,GUILDFORD HOUSE,REDACTED,0,12/04/2018 00:00,1998452,-72.1,0,COMMISSION ON CRAFTWORK SALES,,Invoice,BACS,None,04/04/2018 00:00,2018,1,REDACTED,A4511,GUILDFORD HOUSE ADMINISTRATION,K5918,COMMISSION ON CRAFTWORK SALES
GUILDFORD BOROUGH COUNCIL,PARKS & COUNTRYSIDE,RIGBY TAYLOR LIMITED,7146,17/04/2018 00:00,1998323,112,0,MATERIALS,GARDENING EQUIPMENT SUPPLIERS,Invoice,BACS,None,06/04/2018 00:00,2018,1,RSIN0253749,A1240,KINGS COLLEGE,D1545,MATERIALS
GUILDFORD BOROUGH COUNCIL,ENVIRONMENTAL CONTROL,ROYAL MAIL GROUP PLC,15531,17/04/2018 00:00,1997860,10.97,0,POSTAGE DIRECT USAGE,POSTAL AND COURIER SERVICE PROVIDERS,Invoice,BACS,None,03/04/2018 00:00,2018,1,9056351435,C1113,ENVIRONMENTAL CONTROL,D5466,POSTAGE DIRECT USAGE
GUILDFORD BOROUGH COUNCIL,RESPONSIVE & PLANNED MAINTENAN,RESTORE DATASHRED LIMITED,75332,17/04/2018 00:00,1998313,8.72,0,REMOVAL OF CONFIDENTIAL WASTE,CONFIDENTIAL WASTE DISPOSAL PROVIDERS,Invoice,BACS,None,05/04/2018 00:00,2018,1,682032,M5111,REPAIRS-ADMIN (BHS),D4490,REMOVAL OF CONFIDENTIAL WASTE
GUILDFORD BOROUGH COUNCIL,RESPONSIVE & PLANNED MAINTENAN,RICHARD FOAKES,7116,24/04/2018 00:00,1997911,670,0,"BRICKWORK, BLOCKWORK ETC.",SEWERAGE AND DRAINAGE SERVICE PROVIDERS,Invoice,BACS,None,07/04/2018 00:00,2018,1,9487,M5105,REPAIRS-GARAGES (BHS),B1311,"BRICKWORK, BLOCKWORK ETC."
GUILDFORD BOROUGH COUNCIL,PARKS & COUNTRYSIDE,RIGBY TAYLOR LIMITED,7146,17/04/2018 00:00,1998323,453.63,0,MATERIALS,GARDENING EQUIPMENT SUPPLIERS,Invoice,BACS,None,06/04/2018 00:00,2018,1,RSIN0253749,A1232,SUTHERLAND MEMORIAL PK,D1545,MATERIALS
GUILDFORD BOROUGH COUNCIL,ACCOUNTANCY,RESTORE DATASHRED LIMITED,75332,17/04/2018 00:00,1998313,13,0,REMOVAL OF CONFIDENTIAL WASTE,CONFIDENTIAL WASTE DISPOSAL PROVIDERS,Invoice,BACS,None,05/04/2018 00:00,2018,1,682032,G3565,ACCOUNTANCY SERVICES,D4490,REMOVAL OF CONFIDENTIAL WASTE
GUILDFORD BOROUGH COUNCIL,HOUSING SURVEYING SERVICES,RESTORE DATASHRED LIMITED,75332,17/04/2018 00:00,1998313,0.2,0,REMOVAL OF CONFIDENTIAL WASTE,CONFIDENTIAL WASTE DISPOSAL PROVIDERS,Invoice,BACS,None,05/04/2018 00:00,2018,1,682032,G6525,HOUSING SURVEYING SERVICES,D4490,REMOVAL OF CONFIDENTIAL WASTE
GUILDFORD BOROUGH COUNCIL,ON STREET PARKING,ROYAL MAIL GROUP PLC,15531,12/04/2018 00:00,1998353,9.26,0,POSTAGE DIRECT USAGE,POSTAL AND COURIER SERVICE PROVIDERS,Invoice,BACS,None,05/04/2018 00:00,2018,1,9056349876,B2217,GUILDFORD ON-STREET,D5466,POSTAGE DIRECT USAGE
GUILDFORD BOROUGH COUNCIL,ENVIRONMENTAL CONTROL,ROYAL MAIL GROUP PLC,15531,17/04/2018 00:00,1997860,10.97,0,POSTAGE DIRECT USAGE,POSTAL AND COURIER SERVICE PROVIDERS,Invoice,BACS,None,03/04/2018 00:00,2018,1,9056351435,C1115,ENVIRONMENTAL PROTECTION,D5466,POSTAGE DIRECT USAGE
GUILDFORD BOROUGH COUNCIL,LEISURE MANAGEMENT CONTRACT,RICHARD FOAKES,7116,24/04/2018 00:00,1998793,360,0,R&M - GENERAL,SEWERAGE AND DRAINAGE SERVICE PROVIDERS,Invoice,BACS,None,12/04/2018 00:00,2018,1,9486,A7550,LIDO CLIENT,B1231,R&M - GENERAL
GUILDFORD BOROUGH COUNCIL,ACCOUNTANCY,RESTORE DATASHRED LIMITED,75332,17/04/2018 00:00,1998310,6.42,0,REMOVAL OF CONFIDENTIAL WASTE,CONFIDENTIAL WASTE DISPOSAL PROVIDERS,Invoice,BACS,None,05/04/2018 00:00,2018,1,682029,G3565,ACCOUNTANCY SERVICES,D4490,REMOVAL OF CONFIDENTIAL WASTE
GUILDFORD BOROUGH COUNCIL,PARKS & COUNTRYSIDE,RIGBY TAYLOR LIMITED,7146,17/04/2018 00:00,1998323,97.07,0,MATERIALS,GARDENING EQUIPMENT SUPPLIERS,Invoice,BACS,None,06/04/2018 00:00,2018,1,RSIN0253749,A1285,ONSLOW VILLAGE RECREATION GROU,D1545,MATERIALS
GUILDFORD BOROUGH COUNCIL,RESPONSIVE & PLANNED MAINTENAN,RESTORE DATASHRED LIMITED,75332,17/04/2018 00:00,1998312,2.99,0,REMOVAL OF CONFIDENTIAL WASTE,CONFIDENTIAL WASTE DISPOSAL PROVIDERS,Invoice,BACS,None,05/04/2018 00:00,2018,1,682024,M5111,REPAIRS-ADMIN (BHS),D4490,REMOVAL OF CONFIDENTIAL WASTE
GUILDFORD BOROUGH COUNCIL,OFFICE SERVICES TEAM,RESTORE DATASHRED LIMITED,75332,17/04/2018 00:00,1998313,21.92,0,REMOVAL OF CONFIDENTIAL WASTE,CONFIDENTIAL WASTE DISPOSAL PROVIDERS,Invoice,BACS,None,05/04/2018 00:00,2018,1,682032,G7519,SCC FINANCE - MILLMEAD,D4490,REMOVAL OF CONFIDENTIAL WASTE
GUILDFORD BOROUGH COUNCIL,PARKS & COUNTRYSIDE,RIGBY TAYLOR LIMITED,7146,17/04/2018 00:00,1998323,145.17,0,MATERIALS,GARDENING EQUIPMENT SUPPLIERS,Invoice,BACS,None,06/04/2018 00:00,2018,1,RSIN0253749,A1270,WOODBRIDGE ROAD,D1545,MATERIALS
GUILDFORD BOROUGH COUNCIL,PARKS & COUNTRYSIDE,RIGBY TAYLOR LIMITED,7146,26/04/2018 00:00,1999382,110.2,0,NEW / REPLACE EQUIP. & TOOLS;,GARDENING EQUIPMENT SUPPLIERS,Invoice,BACS,None,17/04/2018 00:00,2018,1,RSIN0255414,A1250,STOKE PARK,D1428,NEW / REPLACE EQUIP. & TOOLS;
GUILDFORD BOROUGH COUNCIL,PARKS & COUNTRYSIDE,RIGBY TAYLOR LIMITED,7146,17/04/2018 00:00,1998323,327.57,0,MATERIALS,GARDENING EQUIPMENT SUPPLIERS,Invoice,BACS,None,06/04/2018 00:00,2018,1,RSIN0253749,A1245,STOKE RECREATION GROUND,D1545,MATERIALS
GUILDFORD BOROUGH COUNCIL,ELECTIONS,RESTORE DATASHRED LIMITED,75332,17/04/2018 00:00,1998313,22.03,0,REMOVAL OF CONFIDENTIAL WASTE,CONFIDENTIAL WASTE DISPOSAL PROVIDERS,Invoice,BACS,None,05/04/2018 00:00,2018,1,682032,F2151,ELECTIONS,D4490,REMOVAL OF CONFIDENTIAL WASTE
GUILDFORD BOROUGH COUNCIL,COUNCIL TAX,RESTORE DATASHRED LIMITED,75332,17/04/2018 00:00,1998310,2.84,0,REMOVAL OF CONFIDENTIAL WASTE,CONFIDENTIAL WASTE DISPOSAL PROVIDERS,Invoice,BACS,None,05/04/2018 00:00,2018,1,682029,F6141,COUNCIL TAX COLLECTN EXPENSES,D4490,REMOVAL OF CONFIDENTIAL WASTE
GUILDFORD BOROUGH COUNCIL,BUILDING MAINTENANCE,REVIVE SERVICES,84625,26/04/2018 00:00,2000227,3310,0,PAYMENT TO CONTRACTORS,OTHER CLEANING AND JANITORIAL SERVICE PROVIDERS,Invoice,BACS,None,16/04/2018 00:00,2018,1,155,K1515,BUILDING MAINTENANCE,D4468,PAYMENT TO CONTRACTORS
GUILDFORD BOROUGH COUNCIL,BUILDING MAINTENANCE,RGB DECORATING LIMITED,76960,12/04/2018 00:00,1998395,7370,0,PAYMENT TO CONTRACTORS,PAINTERS AND DECORATORS,Invoice,BACS,None,10/04/2018 00:00,2018,1,1,K1515,BUILDING MAINTENANCE,D4468,PAYMENT TO CONTRACTORS
GUILDFORD BOROUGH COUNCIL,PRIVATE SECTOR HOUSING,RESTORE DATASHRED LIMITED,75332,17/04/2018 00:00,1998313,4.15,0,REMOVAL OF CONFIDENTIAL WASTE,CONFIDENTIAL WASTE DISPOSAL PROVIDERS,Invoice,BACS,None,05/04/2018 00:00,2018,1,682032,C5122,PRIVATE SECTOR HOUSING STANDAR,D4490,REMOVAL OF CONFIDENTIAL WASTE
GUILDFORD BOROUGH COUNCIL,VEHICLE MAINTENANCE,ROSSETTS (UK) LTD,7209,26/04/2018 00:00,1998675,289.53,0,SPARES FOR VEHICLES,TRUCK AND BUS DEALERS,Invoice,BACS,None,10/04/2018 00:00,2018,1,42593601,K5551,VEHICLE MAINTENANCE,D1589,SPARES FOR VEHICLES
GUILDFORD BOROUGH COUNCIL,ENVIRONMENTAL CONTROL,RESTORE DATASHRED LIMITED,75332,17/04/2018 00:00,1998310,5.86,0,REMOVAL OF CONFIDENTIAL WASTE,CONFIDENTIAL WASTE DISPOSAL PROVIDERS,Invoice,BACS,None,05/04/2018 00:00,2018,1,682029,C1113,ENVIRONMENTAL CONTROL,D4490,REMOVAL OF CONFIDENTIAL WASTE
GUILDFORD BOROUGH COUNCIL,ENVIRONMENTAL CONTROL,RESTORE DATASHRED LIMITED,75332,17/04/2018 00:00,1998313,11.86,0,REMOVAL OF CONFIDENTIAL WASTE,CONFIDENTIAL WASTE DISPOSAL PROVIDERS,Invoice,BACS,None,05/04/2018 00:00,2018,1,682032,C1113,ENVIRONMENTAL CONTROL,D4490,REMOVAL OF CONFIDENTIAL WASTE
GUILDFORD BOROUGH COUNCIL,COUNCIL TAX,RESTORE DATASHRED LIMITED,75332,17/04/2018 00:00,1998313,5.75,0,REMOVAL OF CONFIDENTIAL WASTE,CONFIDENTIAL WASTE DISPOSAL PROVIDERS,Invoice,BACS,None,05/04/2018 00:00,2018,1,682032,F6141,COUNCIL TAX COLLECTN EXPENSES,D4490,REMOVAL OF CONFIDENTIAL WASTE
GUILDFORD BOROUGH COUNCIL,RESPONSIVE & PLANNED MAINTENAN,RESTORE DATASHRED LIMITED,75332,17/04/2018 00:00,1998310,4.31,0,REMOVAL OF CONFIDENTIAL WASTE,CONFIDENTIAL WASTE DISPOSAL PROVIDERS,Invoice,BACS,None,05/04/2018 00:00,2018,1,682029,M5111,REPAIRS-ADMIN (BHS),D4490,REMOVAL OF CONFIDENTIAL WASTE
GUILDFORD BOROUGH COUNCIL,GF NET REVENUE ACCOUNT,RIPLEY PARISH COUNCIL,7150,05/04/2018 00:00,1997038,32318,0,OOE - PARISH PRECEPTS PAID,LOCAL GOVERNMENT [UK ONLY],Invoice,BACS,None,03/04/2018 00:00,2018,1,PARISH PRECEPT,V01005,GF NET REVENUE ACCOUNT,2482,OOE - PARISH PRECEPTS PAID
GUILDFORD BOROUGH COUNCIL,PAYMENTS AND PURCHASING,RR DONNELLEY UK LIMITED,68572,17/04/2018 00:00,1997798,1588.89,0,PAYMENT TO CONTRACTORS,DIRECT MARKETING SERVICE PROVIDERS,Invoice,BACS,None,05/04/2018 00:00,2018,1,18002441/RD,G3597,EPAYMENTS (INCOME),D4468,PAYMENT TO CONTRACTORS
GUILDFORD BOROUGH COUNCIL,CORP SERVICES,RESTORE DATASHRED LIMITED,75332,17/04/2018 00:00,1998310,14.3,0,REMOVAL OF CONFIDENTIAL WASTE,CONFIDENTIAL WASTE DISPOSAL PROVIDERS,Invoice,BACS,None,05/04/2018 00:00,2018,1,682029,F1111,CORPORATE SERVICES,D4490,REMOVAL OF CONFIDENTIAL WASTE
GUILDFORD BOROUGH COUNCIL,TENANT SELECTION,RESTORE DATASHRED LIMITED,75332,17/04/2018 00:00,1998313,2.54,0,REMOVAL OF CONFIDENTIAL WASTE,CONFIDENTIAL WASTE DISPOSAL PROVIDERS,Invoice,BACS,None,05/04/2018 00:00,2018,1,682032,M1131,"ADVICE,REGS,TENANT SELECT(SHS)",D4490,REMOVAL OF CONFIDENTIAL WASTE
GUILDFORD BOROUGH COUNCIL,ICT CUSTOMER TECHNICAL SUPPORT,RESTORE DATASHRED LIMITED,75332,17/04/2018 00:00,1998310,8.59,0,REMOVAL OF CONFIDENTIAL WASTE,CONFIDENTIAL WASTE DISPOSAL PROVIDERS,Invoice,BACS,None,05/04/2018 00:00,2018,1,682029,G3542,CUSTOMER AND TECHNICAL SUPPORT,D4490,REMOVAL OF CONFIDENTIAL WASTE
GUILDFORD BOROUGH COUNCIL,PARISH & LOCAL LIAISON,RIPLEY PARISH COUNCIL,7150,05/04/2018 00:00,1997038,1902.5,0,LCTSS PARISH GRANT,LOCAL GOVERNMENT [UK ONLY],Invoice,BACS,None,03/04/2018 00:00,2018,1,PARISH PRECEPT,F1115,PARISH LIAISON,D7431,LCTSS PARISH GRANT
GUILDFORD BOROUGH COUNCIL,BUILDING MAINTENANCE,REVIVE SERVICES,84625,10/04/2018 00:00,1997933,2050,0,PAYMENT TO CONTRACTORS,OTHER CLEANING AND JANITORIAL SERVICE PROVIDERS,Invoice,BACS,None,03/04/2018 00:00,2018,1,153,K1515,BUILDING MAINTENANCE,D4468,PAYMENT TO CONTRACTORS
GUILDFORD BOROUGH COUNCIL,BUSINESS RATES,RESTORE DATASHRED LIMITED,75332,17/04/2018 00:00,1998313,8.8,0,REMOVAL OF CONFIDENTIAL WASTE,CONFIDENTIAL WASTE DISPOSAL PROVIDERS,Invoice,BACS,None,05/04/2018 00:00,2018,1,682032,F6151,BUSINESS RATES COLLECTION EXPS,D4490,REMOVAL OF CONFIDENTIAL WASTE
GUILDFORD BOROUGH COUNCIL,HOUSING BENEFITS,RESTORE DATASHRED LIMITED,75332,17/04/2018 00:00,1998310,47.29,0,REMOVAL OF CONFIDENTIAL WASTE,CONFIDENTIAL WASTE DISPOSAL PROVIDERS,Invoice,BACS,None,05/04/2018 00:00,2018,1,682029,C4511,HOUSING BENEFITS ADMIN.,D4490,REMOVAL OF CONFIDENTIAL WASTE
GUILDFORD BOROUGH COUNCIL,DEVELOPMENT CONTROL,RESTORE DATASHRED LIMITED,75332,17/04/2018 00:00,1998312,1.11,0,REMOVAL OF CONFIDENTIAL WASTE,CONFIDENTIAL WASTE DISPOSAL PROVIDERS,Invoice,BACS,None,05/04/2018 00:00,2018,1,682024,D5100,DEVELOPMENT CONTROL - FEE EARN,D4490,REMOVAL OF CONFIDENTIAL WASTE
GUILDFORD BOROUGH COUNCIL,HR SERVICES,RESTORE DATASHRED LIMITED,75332,17/04/2018 00:00,1998312,2.57,0,REMOVAL OF CONFIDENTIAL WASTE,CONFIDENTIAL WASTE DISPOSAL PROVIDERS,Invoice,BACS,None,05/04/2018 00:00,2018,1,682024,G2555,HR SERVICES,D4490,REMOVAL OF CONFIDENTIAL WASTE
GUILDFORD BOROUGH COUNCIL,DEBTORS,RESTORE DATASHRED LIMITED,75332,17/04/2018 00:00,1998312,1.56,0,REMOVAL OF CONFIDENTIAL WASTE,CONFIDENTIAL WASTE DISPOSAL PROVIDERS,Invoice,BACS,None,05/04/2018 00:00,2018,1,682024,G3555,DEBTORS,D4490,REMOVAL OF CONFIDENTIAL WASTE
GUILDFORD BOROUGH COUNCIL,HR SERVICES,RESTORE DATASHRED LIMITED,75332,17/04/2018 00:00,1998313,7.51,0,REMOVAL OF CONFIDENTIAL WASTE,CONFIDENTIAL WASTE DISPOSAL PROVIDERS,Invoice,BACS,None,05/04/2018 00:00,2018,1,682032,G2555,HR SERVICES,D4490,REMOVAL OF CONFIDENTIAL WASTE
GUILDFORD BOROUGH COUNCIL,HOUSING BENEFITS,RESTORE DATASHRED LIMITED,75332,17/04/2018 00:00,1998313,95.76,0,REMOVAL OF CONFIDENTIAL WASTE,CONFIDENTIAL WASTE DISPOSAL PROVIDERS,Invoice,BACS,None,05/04/2018 00:00,2018,1,682032,C4511,HOUSING BENEFITS ADMIN.,D4490,REMOVAL OF CONFIDENTIAL WASTE
GUILDFORD BOROUGH COUNCIL,ICT CUSTOMER TECHNICAL SUPPORT,RESTORE DATASHRED LIMITED,75332,17/04/2018 00:00,1998312,5.96,0,REMOVAL OF CONFIDENTIAL WASTE,CONFIDENTIAL WASTE DISPOSAL PROVIDERS,Invoice,BACS,None,05/04/2018 00:00,2018,1,682024,G3542,CUSTOMER AND TECHNICAL SUPPORT,D4490,REMOVAL OF CONFIDENTIAL WASTE
GUILDFORD BOROUGH COUNCIL,PAYROLL AND INSURANCE,RESTORE DATASHRED LIMITED,75332,17/04/2018 00:00,1998313,6.89,0,REMOVAL OF CONFIDENTIAL WASTE,CONFIDENTIAL WASTE DISPOSAL PROVIDERS,Invoice,BACS,None,05/04/2018 00:00,2018,1,682032,G3595,SALARIES,D4490,REMOVAL OF CONFIDENTIAL WASTE
GUILDFORD BOROUGH COUNCIL,PARKS & COUNTRYSIDE,RIGBY TAYLOR LIMITED,7146,26/04/2018 00:00,1999382,110.2,0,NEW / REPLACE EQUIP. & TOOLS;,GARDENING EQUIPMENT SUPPLIERS,Invoice,BACS,None,17/04/2018 00:00,2018,1,RSIN0255414,A1240,KINGS COLLEGE,D1428,NEW / REPLACE EQUIP. & TOOLS;
GUILDFORD BOROUGH COUNCIL,FOOD AND SAFETY SERVICES,RESTORE DATASHRED LIMITED,75332,17/04/2018 00:00,1998313,13.66,0,REMOVAL OF CONFIDENTIAL WASTE,CONFIDENTIAL WASTE DISPOSAL PROVIDERS,Invoice,BACS,None,05/04/2018 00:00,2018,1,682032,C1111,FOOD AND SAFETY SERVICES,D4490,REMOVAL OF CONFIDENTIAL WASTE
GUILDFORD BOROUGH COUNCIL,PAYMENTS AND PURCHASING,RR DONNELLEY UK LIMITED,68572,26/04/2018 00:00,1999388,16.85,0,PAYMENT TO CONTRACTORS,DIRECT MARKETING SERVICE PROVIDERS,Invoice,BACS,None,18/04/2018 00:00,2018,1,18002748/RD,G3597,EPAYMENTS (INCOME),D4468,PAYMENT TO CONTRACTORS
GUILDFORD BOROUGH COUNCIL,PAYMENTS AND PURCHASING,RESTORE DATASHRED LIMITED,75332,17/04/2018 00:00,1998310,1.65,0,REMOVAL OF CONFIDENTIAL WASTE,CONFIDENTIAL WASTE DISPOSAL PROVIDERS,Invoice,BACS,None,05/04/2018 00:00,2018,1,682029,G3597,EPAYMENTS (INCOME),D4490,REMOVAL OF CONFIDENTIAL WASTE
GUILDFORD BOROUGH COUNCIL,ELECTORAL REGISTRATION,RESTORE DATASHRED LIMITED,75332,17/04/2018 00:00,1998310,6.39,0,REMOVAL OF CONFIDENTIAL WASTE,CONFIDENTIAL WASTE DISPOSAL PROVIDERS,Invoice,BACS,None,05/04/2018 00:00,2018,1,682029,F2511,ELECTORAL REGISTRATION,D4490,REMOVAL OF CONFIDENTIAL WASTE
GUILDFORD BOROUGH COUNCIL,PARKS & COUNTRYSIDE,RIGBY TAYLOR LIMITED,7146,17/04/2018 00:00,1998323,123.72,0,MATERIALS,GARDENING EQUIPMENT SUPPLIERS,Invoice,BACS,None,06/04/2018 00:00,2018,1,RSIN0253749,A1245,STOKE RECREATION GROUND,D1545,MATERIALS
GUILDFORD BOROUGH COUNCIL,BUILDING MAINTENANCE,RGB DECORATING LIMITED,76960,24/04/2018 00:00,1999828,6636,0,PAYMENT TO CONTRACTORS,PAINTERS AND DECORATORS,Invoice,BACS,None,19/04/2018 00:00,2018,1,2,K1515,BUILDING MAINTENANCE,D4468,PAYMENT TO CONTRACTORS
GUILDFORD BOROUGH COUNCIL,GUILDFORD HOUSE,REDACTED,0,12/04/2018 00:00,1998448,-68.53,0,COMMISSION ON CRAFTWORK SALES,,Invoice,BACS,None,04/04/2018 00:00,2018,1,REDACTED,A4511,GUILDFORD HOUSE ADMINISTRATION,K5918,COMMISSION ON CRAFTWORK SALES
GUILDFORD BOROUGH COUNCIL,GUILDFORD HOUSE,REDACTED,0,12/04/2018 00:00,1998448,195.8,0,CRAFTWORK - SALE OR RETURN,,Invoice,BACS,None,04/04/2018 00:00,2018,1,REDACTED,A4511,GUILDFORD HOUSE ADMINISTRATION,K3931,CRAFTWORK - SALE OR RETURN
GUILDFORD BOROUGH COUNCIL,PARKS & COUNTRYSIDE,RIGBY TAYLOR LIMITED,7146,17/04/2018 00:00,1998323,485.98,0,MATERIALS,GARDENING EQUIPMENT SUPPLIERS,Invoice,BACS,None,06/04/2018 00:00,2018,1,RSIN0253749,A1220,SHALFORD PARK,D1545,MATERIALS
GUILDFORD BOROUGH COUNCIL,LEGAL SERVICES,RESTORE DATASHRED LIMITED,75332,17/04/2018 00:00,1998313,13.27,0,REMOVAL OF CONFIDENTIAL WASTE,CONFIDENTIAL WASTE DISPOSAL PROVIDERS,Invoice,BACS,None,05/04/2018 00:00,2018,1,682032,G4525,LEGAL SERVICES,D4490,REMOVAL OF CONFIDENTIAL WASTE
GUILDFORD BOROUGH COUNCIL,LICENSING SERVICES,ROYAL MAIL GROUP PLC,15531,17/04/2018 00:00,1997860,10.96,0,POSTAGE DIRECT USAGE,POSTAL AND COURIER SERVICE PROVIDERS,Invoice,BACS,None,03/04/2018 00:00,2018,1,9056351435,H2100,LICENSING SERVICES,D5466,POSTAGE DIRECT USAGE
GUILDFORD BOROUGH COUNCIL,COMMITTEE SERVICES,RESTORE DATASHRED LIMITED,75332,17/04/2018 00:00,1998310,6.94,0,REMOVAL OF CONFIDENTIAL WASTE,CONFIDENTIAL WASTE DISPOSAL PROVIDERS,Invoice,BACS,None,05/04/2018 00:00,2018,1,682029,G4565,COMMITTEE SERVICES,D4490,REMOVAL OF CONFIDENTIAL WASTE
GUILDFORD BOROUGH COUNCIL,BUSINESS & TOURISM,GUILDFORD SHAKESPEARE COMPANY TRUST LTD,65370,19/04/2018 00:00,1999275,55,0,GENERAL TOURISM MARKETING,THEATRES,Invoice,BACS,None,13/04/2018 00:00,2018,1,663,F5545,TOURISM,D9403,GENERAL TOURISM MARKETING
GUILDFORD BOROUGH COUNCIL,VEHICLE MAINTENANCE,HENDY GROUP LTD,89391,26/04/2018 00:00,1998924,15.21,0,SPARES FOR VEHICLES,CAR AND VAN DEALERS,Invoice,BACS,None,12/04/2018 00:00,2018,1,66361440,K5551,VEHICLE MAINTENANCE,D1589,SPARES FOR VEHICLES
GUILDFORD BOROUGH COUNCIL,BUILDING CONTROL SUMMARY,HAYS SPECIALIST RECRUITMENT LIMITED,15625,12/04/2018 00:00,1997890,2729.59,0,AGENCY STAFF,OTHER RECRUITMENT AGENCIES AND SERVICE PROVIDERS,Invoice,BACS,None,04/04/2018 00:00,2018,1,1008462589,D5700,BUILDING CONTROL - FEE,A5191,AGENCY STAFF
GUILDFORD BOROUGH COUNCIL,VEHICLE MAINTENANCE,HENDY GROUP LTD,89391,26/04/2018 00:00,1998925,149.63,0,SPARES FOR VEHICLES,CAR AND VAN DEALERS,Invoice,BACS,None,12/04/2018 00:00,2018,1,66361441,K5551,VEHICLE MAINTENANCE,D1589,SPARES FOR VEHICLES
GUILDFORD BOROUGH COUNCIL,VEHICLE MAINTENANCE,HENDY GROUP LTD,89391,26/04/2018 00:00,1998051,56.08,0,SPARES FOR VEHICLES,CAR AND VAN DEALERS,Invoice,BACS,None,09/04/2018 00:00,2018,1,66360682,K5551,VEHICLE MAINTENANCE,D1589,SPARES FOR VEHICLES
GUILDFORD BOROUGH COUNCIL,CIVIC EXPENSES,HIGH SHERIFF OF SURREY YOUTH AWARDS,43864,24/04/2018 00:00,1999365,1500,0,BOROUGH PROMOTIONAL EXPENSES,"YOUTH CLUBS, HOSTELS AND ASSOCIATIONS",Invoice,BACS,None,09/04/2018 00:00,2018,1,2018/193,F2131,CIVIC EXPENSES,D9421,BOROUGH PROMOTIONAL EXPENSES
GUILDFORD BOROUGH COUNCIL,TAXI LICENSING,HML INDEPENDENT MEDICAL ADVICE LTD,37284,12/04/2018 00:00,1998056,250,0,CONSULTANTS (PROJECTS),OTHER MEDICAL PROFESSIONALS,Invoice,BACS,None,09/04/2018 00:00,2018,1,GUDL/3040/18,H1104,HC PH DRIVERS,D4511,CONSULTANTS (PROJECTS)
GUILDFORD BOROUGH COUNCIL,BUILDING CONTROL SUMMARY,HAYS SPECIALIST RECRUITMENT LIMITED,15625,17/04/2018 00:00,1998808,2127.45,0,AGENCY STAFF,OTHER RECRUITMENT AGENCIES AND SERVICE PROVIDERS,Invoice,BACS,None,11/04/2018 00:00,2018,1,1008495534,D5700,BUILDING CONTROL - FEE,A5191,AGENCY STAFF
GUILDFORD BOROUGH COUNCIL,OTHER ST CREDITORS,HAMPSHIRE COUNTY COUNCIL,2362,10/04/2018 00:00,1997805,41724.98,0,CURRENT YEARS EXPENDITURE,LOCAL GOVERNMENT [UK ONLY],Invoice,BACS,None,06/04/2018 00:00,2018,1,SAMM 4TH QUARTE,L12104,NATURAL ENGLAND SAMM RIA,2239,CURRENT YEARS EXPENDITURE
GUILDFORD BOROUGH COUNCIL,ELECTORAL REGISTRATION,IDOX SOFTWARE LTD,65093,24/04/2018 00:00,1999733,820,0,TRAINING,SOFTWARE DEVELOPERS,Invoice,BACS,None,18/04/2018 00:00,2018,1,7020699,F2511,ELECTORAL REGISTRATION,A7161,TRAINING
GUILDFORD BOROUGH COUNCIL,VEHICLE MAINTENANCE,HENDY GROUP LTD,89391,26/04/2018 00:00,1998931,22.11,0,SPARES FOR VEHICLES,CAR AND VAN DEALERS,Invoice,BACS,None,12/04/2018 00:00,2018,1,66361353,K5551,VEHICLE MAINTENANCE,D1589,SPARES FOR VEHICLES
GUILDFORD BOROUGH COUNCIL,BUILDING CONTROL SUMMARY,HAYS SPECIALIST RECRUITMENT LIMITED,15625,17/04/2018 00:00,1998804,2852.2,0,AGENCY STAFF,OTHER RECRUITMENT AGENCIES AND SERVICE PROVIDERS,Invoice,BACS,None,11/04/2018 00:00,2018,1,1008495533,D5700,BUILDING CONTROL - FEE,A5191,AGENCY STAFF
GUILDFORD BOROUGH COUNCIL,LEISURE G LIVE,HQ THEATRE GUILDFORD LIMITED,65289,17/04/2018 00:00,1998316,27382.91,0,MANAGEMENT FEE,THEATRES,Invoice,BACS,None,07/04/2018 00:00,2018,1,SIN003538,A2141,G LIVE,D4459,MANAGEMENT FEE
GUILDFORD BOROUGH COUNCIL,PARKS & COUNTRYSIDE,COUNTRYSIDE CONTRACTS LTD,71369,19/04/2018 00:00,1999298,300,0,SPA ENDOWMENT EXP.,TREE WORK CONTRACTORS,Invoice,BACS,None,17/04/2018 00:00,2018,1,1549,A1378,LAKESIDE,E5000,SPA ENDOWMENT EXP.
GUILDFORD BOROUGH COUNCIL,FLATS COMMUNAL SERVICES,CRANLEIGH AERIALS LIMITED,69899,26/04/2018 00:00,2000083,75,0,MECHANICAL/ELECTRICAL MNTCE AG,AUDIO AND VISUAL EQUIPMENT SUPPLIERS,Invoice,BACS,None,10/04/2018 00:00,2018,1,704043,M2751,HAZEL COURT 13-24 (12),B1221,MECHANICAL/ELECTRICAL MNTCE AG
GUILDFORD BOROUGH COUNCIL,VEHICLE MAINTENANCE,CONNECTIONS UK,1450,26/04/2018 00:00,1999318,213.1,0,CONSUMABLES,EVENT MANAGEMENT AGENCIES,Invoice,BACS,None,13/04/2018 00:00,2018,1,3079,K5551,VEHICLE MAINTENANCE,D1587,CONSUMABLES
GUILDFORD BOROUGH COUNCIL,LEGAL SERVICES,CORNERSTONE BARRISTERS,44239,17/04/2018 00:00,1998840,415,0,LEGAL EXPENSES,BARRISTERS,Invoice,BACS,None,03/04/2018 00:00,2018,1,REF 138802,G4525,LEGAL SERVICES,D4457,LEGAL EXPENSES
GUILDFORD BOROUGH COUNCIL,VEHICLE MAINTENANCE,CONNECTIONS UK,1450,26/04/2018 00:00,1998052,334.6,0,CONSUMABLES,EVENT MANAGEMENT AGENCIES,Invoice,BACS,None,06/04/2018 00:00,2018,1,3066,K5551,VEHICLE MAINTENANCE,D1587,CONSUMABLES
GUILDFORD BOROUGH COUNCIL,REFUSE AND RECYCLING,CRAEMER UK LTD,83063,26/04/2018 00:00,1999380,11856,0,REFUSE CONTAINERS PURCHASE,OTHER PLASTIC GOODS SUPPLIERS,Invoice,BACS,None,18/04/2018 00:00,2018,1,3015645,K3551,REFUSE COLLECTION,D1485,REFUSE CONTAINERS PURCHASE
GUILDFORD BOROUGH COUNCIL,VEHICLE MAINTENANCE,CONNECTIONS UK,1450,26/04/2018 00:00,1998926,69,0,CLOTHING & UNIFORM,EVENT MANAGEMENT AGENCIES,Invoice,BACS,None,13/04/2018 00:00,2018,1,3078,K5551,VEHICLE MAINTENANCE,D2421,CLOTHING & UNIFORM
GUILDFORD BOROUGH COUNCIL,HOUSING BENEFITS,E-PERSONNEL LTD,72039,17/04/2018 00:00,1998350,468.18,0,AGENCY STAFF,OTHER RECRUITMENT AGENCIES AND SERVICE PROVIDERS,Invoice,BACS,None,10/04/2018 00:00,2018,1,72325,C4511,HOUSING BENEFITS ADMIN.,A5191,AGENCY STAFF
GUILDFORD BOROUGH COUNCIL,OFFICE SERVICES TEAM,EDF ENERGY CUSTOMER FIELD SERVICES,51487,24/04/2018 00:00,1998255,255.03,0,ELECTRICITY,,Invoice,BACS,None,08/04/2018 00:00,2018,1,600004325,G7511,MILLMEAD HOUSE,B2215,ELECTRICITY
GUILDFORD BOROUGH COUNCIL,OFF STREET PARKING,EDF ENERGY CUSTOMER FIELD SERVICES,51487,24/04/2018 00:00,1998253,143.8,0,ELECTRICITY,,Invoice,BACS,None,08/04/2018 00:00,2018,1,600004321,B2277,CASTLE MSCP,B2215,ELECTRICITY
GUILDFORD BOROUGH COUNCIL,GYPSY AND TRAVELLER SITES,EDF ENERGY CUSTOMER FIELD SERVICES,51487,24/04/2018 00:00,1998257,255.03,0,ELECTRICITY,,Invoice,BACS,None,08/04/2018 00:00,2018,1,600004327,C1521,COBBETTS CLOSE,B2215,ELECTRICITY
GUILDFORD BOROUGH COUNCIL,GF NET REVENUE ACCOUNT,EAST CLANDON PARISH COUNCIL,1813,05/04/2018 00:00,1997024,3878,0,OOE - PARISH PRECEPTS PAID,LOCAL GOVERNMENT [UK ONLY],Invoice,BACS,None,03/04/2018 00:00,2018,1,PARISH PRECEPT,V01005,GF NET REVENUE ACCOUNT,2482,OOE - PARISH PRECEPTS PAID
GUILDFORD BOROUGH COUNCIL,BUSINESS & TOURISM,DIVERSIFIED BUSINESS COMMUNICTIONS UK LTD,80805,26/04/2018 00:00,1999940,250,0,GENERAL TOURISM MARKETING,EVENT MANAGEMENT AGENCIES,Invoice,BACS,None,20/04/2018 00:00,2018,1,84676,F5545,TOURISM,D9403,GENERAL TOURISM MARKETING
GUILDFORD BOROUGH COUNCIL,SNOW & ICE PLAN,CTG ENTERPRISES LTD,79580,17/04/2018 00:00,1997270,280,0,NEW / REPLACE EQUIP. & TOOLS;,OTHER CLEANING AND JANITORIAL SERVICE PROVIDERS,Invoice,BACS,None,01/04/2018 00:00,2018,1,GU1165GBC,K1555,SNOW & ICE PLAN - HOLDING ACCO,D1428,NEW / REPLACE EQUIP. & TOOLS;
GUILDFORD BOROUGH COUNCIL,BUILDING MAINTENANCE,D G PROPERTY REFURBISHMENT LTD,71371,26/04/2018 00:00,2000214,5000,0,MATERIALS; SUB CONTRACTOR,RESTORATION SPECIALISTS,Invoice,BACS,None,23/04/2018 00:00,2018,1,55,K1515,BUILDING MAINTENANCE,D1542,MATERIALS; SUB CONTRACTOR
GUILDFORD BOROUGH COUNCIL,WOKING ROAD DEPOT,EDF ENERGY CUSTOMER FIELD SERVICES,51487,24/04/2018 00:00,1998252,143.8,0,ELECTRICITY,,Invoice,BACS,None,08/04/2018 00:00,2018,1,60004318,B4452,WOKING ROAD DEPOT,B2215,ELECTRICITY
GUILDFORD BOROUGH COUNCIL,PARISH & LOCAL LIAISON,EAST CLANDON PARISH COUNCIL,1813,05/04/2018 00:00,1997024,73,0,LCTSS PARISH GRANT,LOCAL GOVERNMENT [UK ONLY],Invoice,BACS,None,03/04/2018 00:00,2018,1,PARISH PRECEPT,F1115,PARISH LIAISON,D7431,LCTSS PARISH GRANT
GUILDFORD BOROUGH COUNCIL,TENANTS' SERVICES,EDF ENERGY,65619,01/05/2018 00:00,2000926,93.4,0,ELECTRICITY,MAINS ELECTRICITY SUPPLIERS,Invoice,BACS,None,16/04/2018 00:00,2018,1,6.71105E+11,M1151,TENANTS SERVICES (BHS),B2215,ELECTRICITY
GUILDFORD BOROUGH COUNCIL,BUILDING MAINTENANCE,D G PROPERTY REFURBISHMENT LTD,71371,26/04/2018 00:00,2000213,2000,0,MATERIALS; SUB CONTRACTOR,RESTORATION SPECIALISTS,Invoice,BACS,None,23/04/2018 00:00,2018,1,54,K1515,BUILDING MAINTENANCE,D1542,MATERIALS; SUB CONTRACTOR
GUILDFORD BOROUGH COUNCIL,BUILDING MAINTENANCE,D G PROPERTY REFURBISHMENT LTD,71371,19/04/2018 00:00,1999339,3495.25,0,PAYMENT TO CONTRACTORS,RESTORATION SPECIALISTS,Invoice,BACS,None,13/04/2018 00:00,2018,1,52,K1515,BUILDING MAINTENANCE,D4468,PAYMENT TO CONTRACTORS
GUILDFORD BOROUGH COUNCIL,PARKS & COUNTRYSIDE,CTG ENTERPRISES LTD,79580,17/04/2018 00:00,1997268,140,0,GAMES & PLAYGROUND EQUIPMENT,OTHER CLEANING AND JANITORIAL SERVICE PROVIDERS,Invoice,BACS,None,03/04/2018 00:00,2018,1,GU1180GBC,A1268,BANNISTERS FIELD,D1455,GAMES & PLAYGROUND EQUIPMENT
GUILDFORD BOROUGH COUNCIL,STREET CLEANSING,CTG ENTERPRISES LTD,79580,17/04/2018 00:00,1997269,2500,0,PAYMENT TO CONTRACTORS,OTHER CLEANING AND JANITORIAL SERVICE PROVIDERS,Invoice,BACS,None,03/04/2018 00:00,2018,1,GUI166GBC,K4551,STREET CLEANSING,D4468,PAYMENT TO CONTRACTORS
GUILDFORD BOROUGH COUNCIL,BUILDING MAINTENANCE,D G PROPERTY REFURBISHMENT LTD,71371,19/04/2018 00:00,1999339,3800,0,MATERIALS; SUB CONTRACTOR,RESTORATION SPECIALISTS,Invoice,BACS,None,13/04/2018 00:00,2018,1,52,K1515,BUILDING MAINTENANCE,D1542,MATERIALS; SUB CONTRACTOR
GUILDFORD BOROUGH COUNCIL,HOUSING BENEFITS,EDEN BROWN LTD,82954,17/04/2018 00:00,1997657,756.25,0,AGENCY STAFF,OTHER RECRUITMENT AGENCIES AND SERVICE PROVIDERS,Invoice,BACS,None,04/04/2018 00:00,2018,1,1154534,C4511,HOUSING BENEFITS ADMIN.,A5191,AGENCY STAFF
GUILDFORD BOROUGH COUNCIL,BUILDING MAINTENANCE,D G PROPERTY REFURBISHMENT LTD,71371,19/04/2018 00:00,1999338,4000,0,MATERIALS; SUB CONTRACTOR,RESTORATION SPECIALISTS,Invoice,BACS,None,16/04/2018 00:00,2018,1,53,K1515,BUILDING MAINTENANCE,D1542,MATERIALS; SUB CONTRACTOR
GUILDFORD BOROUGH COUNCIL,HOUSING OUTSIDE THE HRA,EDF ENERGY,65619,17/04/2018 00:00,1998682,16.38,0,ELECTRICITY,MAINS ELECTRICITY SUPPLIERS,Invoice,BACS,None,04/04/2018 00:00,2018,1,6.73118E+11,C5571,"OLD MANOR HOUSE, EAST HORSLEY",B2215,ELECTRICITY
GUILDFORD BOROUGH COUNCIL,BUILDING MAINTENANCE,D G PROPERTY REFURBISHMENT LTD,71371,19/04/2018 00:00,1999338,3762.05,0,PAYMENT TO CONTRACTORS,RESTORATION SPECIALISTS,Invoice,BACS,None,16/04/2018 00:00,2018,1,53,K1515,BUILDING MAINTENANCE,D4468,PAYMENT TO CONTRACTORS
GUILDFORD BOROUGH COUNCIL,BUILDING MAINTENANCE,D G PROPERTY REFURBISHMENT LTD,71371,26/04/2018 00:00,2000214,2000,0,PAYMENT TO CONTRACTORS,RESTORATION SPECIALISTS,Invoice,BACS,None,23/04/2018 00:00,2018,1,55,K1515,BUILDING MAINTENANCE,D4468,PAYMENT TO CONTRACTORS
GUILDFORD BOROUGH COUNCIL,REFUSE AND RECYCLING,CROMWELL POLYTHENE LTD,1538,26/04/2018 00:00,1998803,783,0,REFUSE SACKS; PURCHASE,OTHER PLASTIC GOODS SUPPLIERS,Invoice,BACS,None,12/04/2018 00:00,2018,1,INV0124671,B7766,KERBSIDE RECYCLING,D1582,REFUSE SACKS; PURCHASE
GUILDFORD BOROUGH COUNCIL,HOUSING BENEFITS,E-PERSONNEL LTD,72039,17/04/2018 00:00,1997639,460.5,0,AGENCY STAFF,OTHER RECRUITMENT AGENCIES AND SERVICE PROVIDERS,Invoice,BACS,None,03/04/2018 00:00,2018,1,72207,C4511,HOUSING BENEFITS ADMIN.,A5191,AGENCY STAFF
GUILDFORD BOROUGH COUNCIL,PARKS & COUNTRYSIDE,CTG ENTERPRISES LTD,79580,17/04/2018 00:00,1997268,420,0,GAMES & PLAYGROUND EQUIPMENT,OTHER CLEANING AND JANITORIAL SERVICE PROVIDERS,Invoice,BACS,None,03/04/2018 00:00,2018,1,GU1180GBC,A1209,PARKS AND OPEN SPACES GENERAL,D1455,GAMES & PLAYGROUND EQUIPMENT
GUILDFORD BOROUGH COUNCIL,HOUSING BENEFITS,EDEN BROWN LTD,82954,17/04/2018 00:00,1998495,807.19,0,AGENCY STAFF,OTHER RECRUITMENT AGENCIES AND SERVICE PROVIDERS,Invoice,BACS,None,11/04/2018 00:00,2018,1,1155570,C4511,HOUSING BENEFITS ADMIN.,A5191,AGENCY STAFF
GUILDFORD BOROUGH COUNCIL,BUILDING MAINTENANCE,D G PROPERTY REFURBISHMENT LTD,71371,26/04/2018 00:00,2000213,2520.31,0,PAYMENT TO CONTRACTORS,RESTORATION SPECIALISTS,Invoice,BACS,None,23/04/2018 00:00,2018,1,54,K1515,BUILDING MAINTENANCE,D4468,PAYMENT TO CONTRACTORS
GUILDFORD BOROUGH COUNCIL,OFF STREET PARKING,EDF ENERGY CUSTOMER FIELD SERVICES,51487,24/04/2018 00:00,1998254,255.03,0,ELECTRICITY,,Invoice,BACS,None,08/04/2018 00:00,2018,1,600004324,B2219,BEDFORD ROAD MSCP,B2215,ELECTRICITY
GUILDFORD BOROUGH COUNCIL,PARKS & COUNTRYSIDE,CTG ENTERPRISES LTD,79580,17/04/2018 00:00,1997268,140,0,GAMES & PLAYGROUND EQUIPMENT,OTHER CLEANING AND JANITORIAL SERVICE PROVIDERS,Invoice,BACS,None,03/04/2018 00:00,2018,1,GU1180GBC,A1962,WESTBOROUGH WOODS,D1455,GAMES & PLAYGROUND EQUIPMENT
GUILDFORD BOROUGH COUNCIL,LEISURE MANAGEMENT CONTRACT,EDF ENERGY CUSTOMER FIELD SERVICES,51487,24/04/2018 00:00,1998251,143.8,0,ELECTRICITY,,Invoice,BACS,None,08/04/2018 00:00,2018,1,600004316,A7550,LIDO CLIENT,B2215,ELECTRICITY
GUILDFORD BOROUGH COUNCIL,PARKS & COUNTRYSIDE,CTG ENTERPRISES LTD,79580,17/04/2018 00:00,1997268,140,0,GAMES & PLAYGROUND EQUIPMENT,OTHER CLEANING AND JANITORIAL SERVICE PROVIDERS,Invoice,BACS,None,03/04/2018 00:00,2018,1,GU1180GBC,A1286,BELLFIELDS GREEN,D1455,GAMES & PLAYGROUND EQUIPMENT
GUILDFORD BOROUGH COUNCIL,LEISURE MANAGEMENT CONTRACT,EDF ENERGY CUSTOMER FIELD SERVICES,51487,24/04/2018 00:00,1998959,451.47,0,ELECTRICITY,,Invoice,BACS,None,08/04/2018 00:00,2018,1,600006049,A7540,SPECTRUM CLIENT,B2215,ELECTRICITY
GUILDFORD BOROUGH COUNCIL,LEISURE - MISCELLANEOUS,DAVID A ANNAND SCULPTOR,92487,19/04/2018 00:00,1999372,25000,0,CONTRACT PYTS-MAIN CONTRACTOR,ARTISTS AND AUTHORS,Invoice,BACS,None,07/04/2018 00:00,2018,1,359,P29017,New War Memorial Castle Ground,1233,CONTRACT PYTS-MAIN CONTRACTOR
GUILDFORD BOROUGH COUNCIL,NEW BUILD,"DJJH CONSULTING LIMITED, T/A IBIS",84484,24/04/2018 00:00,1999731,1040,0,CONSULTANTS FEES - PROJECTS,CONSTRUCTION PROJECT MANAGEMENT CONSULTANTS,Invoice,BACS,None,03/04/2018 00:00,2018,1,INV-001020,N30012,APPLETREE PUB SITE,1221,CONSULTANTS FEES - PROJECTS
GUILDFORD BOROUGH COUNCIL,PARISH & LOCAL LIAISON,EAST HORSLEY PARISH COUNCIL,1816,05/04/2018 00:00,1997028,738,0,LCTSS PARISH GRANT,LOCAL GOVERNMENT [UK ONLY],Invoice,BACS,None,03/04/2018 00:00,2018,1,PARISH PRECEPT,F1115,PARISH LIAISON,D7431,LCTSS PARISH GRANT
